Local authority department which incurred the expenditure,Service Division,Summary of the Purpose of Expenditure,Expense Type,Detailed Expense Type,Date of Transaction,Beneficiary,Merchant Category,Gross Amount,VAT,Net Amount
Children and Adult Services,Education,Selby Cottage Childcare Centre,Supplies and Services,Clothing Uniforms and Laundry,01-Jun-2016,POUNDLAND LTD 1330,Clothing uniforms and laundry,45.20,0.00,45.20
Children and Adult Services,Childrens Services,Bishop Auckland and Barnard Castle Locality,Supplies and Services,Equipment and Materials,01-Jun-2016,WWW.PEEKS.CO.UK,Other consumables,58.07,0.00,58.07
Children and Adult Services,Childrens Services,Bishop Auckland and Barnard Castle Locality,Supplies and Services,Furniture,01-Jun-2016,POUNDSTRETCHER 692,Furniture repair and replacement,17.94,0.00,17.94
Children and Adult Services,Childrens Services,Bishop Auckland and Barnard Castle Locality,Supplies and Services,Provisions,01-Jun-2016,TESCO STORES 6329,Catering costs - provisions,4.50,0.00,4.50
Children and Adult Services,Childrens Services,Families First Consett,Supplies and Services,Miscellaneous Expenses,01-Jun-2016,NEWCASTLE CITY COUNCIL,Other expenses,26.52,0.00,26.52
Children and Adult Services,Childrens Services,9 Cedar Drive Aycliffe,Supplies and Services,Provisions,01-Jun-2016,ALDI,Catering costs - provisions,14.24,0.00,14.24
Children and Adult Services,Childrens Services,9 Cedar Drive Aycliffe,Supplies and Services,Provisions,01-Jun-2016,TESCO STORES 2916,Catering costs - provisions,90.55,0.00,90.55
Resources,Financial Services,SF-Financial Services Team,Supplies and Services,Furniture,01-Jun-2016,MAGUIRE TA LTD,Furniture repair and replacement,340.00,0.00,340.00
Neighbourhood Services,Direct Services,Catering - County Hall Restaurant,Supplies and Services,Provisions,01-Jun-2016,JR HOLLAND FOODSERVICE,Catering costs - provisions,137.61,0.00,137.61
Neighbourhood Services,Direct Services,Catering - County Hall Restaurant,Supplies and Services,Provisions,01-Jun-2016,JR HOLLAND FOODSERVICE,Catering costs - provisions,49.47,0.00,49.47
Neighbourhood Services,Direct Services,Catering - County Hall Restaurant,Supplies and Services,Provisions,01-Jun-2016,JR HOLLAND FOODSERVICE,Catering costs - provisions,48.66,0.00,48.66
Neighbourhood Services,Direct Services,Catering - County Hall Restaurant,Supplies and Services,Provisions,01-Jun-2016,JR HOLLAND FOODSERVICE,Catering costs - provisions,22.04,0.00,22.04
Neighbourhood Services,Direct Services,Catering - County Hall Restaurant,Supplies and Services,Provisions,01-Jun-2016,JR HOLLAND FOODSERVICE,Catering costs - provisions,13.52,0.00,13.52
Neighbourhood Services,Direct Services,Catering - County Hall Restaurant,Supplies and Services,Provisions,01-Jun-2016,JR HOLLAND FOODSERVICE,Catering costs - provisions,13.16,0.00,13.16
Neighbourhood Services,Direct Services,Catering - County Hall Restaurant,Supplies and Services,Provisions,01-Jun-2016,JR HOLLAND FOODSERVICE,Catering costs - provisions,6.58,0.00,6.58
Neighbourhood Services,Direct Services,Catering - County Hall Restaurant,Supplies and Services,Provisions,01-Jun-2016,BRAKE BROS LTD,Catering costs - provisions,129.42,21.57,107.85
Neighbourhood Services,Direct Services,Catering - County Hall Restaurant,Supplies and Services,Provisions,01-Jun-2016,BRAKE BROS LTD,Catering costs - provisions,73.74,,73.74
Resources,I.C.T. Services,ICT School Services - DLG,Supplies and Services,Subscriptions,01-Jun-2016,WEB NETWORKSOLUTIONS,Subscriptions,140.63,0.00,140.63
Neighbourhood Services,Culture & Sport,Gala Theatre - Catering etc,Supplies and Services,Provisions,01-Jun-2016,JR HOLLAND FOODSERVICE,Catering costs - provisions,32.44,0.00,32.44
Children and Adult Services,Childrens Services,Framwellgate Moor CU,Supplies and Services,Provisions,01-Jun-2016,ASDA HOME SHOPPING,Catering costs - provisions,122.61,0.00,122.61
Neighbourhood Services,Direct Services,C&G - North Grounds Maintenance,Supplies and Services,Equipment and Materials,01-Jun-2016,HARELAW SAWMILL,Equipment-purchase and rental,421.21,70.20,351.01
Children and Adult Services,Childrens Services,Durham and Chester Le Street Locality,Supplies and Services,Newspapers Books and Periodicals,01-Jun-2016,Amazon EU,Books-school library,12.73,0.00,12.73
Children and Adult Services,Childrens Services,Support Services,Supplies and Services,Furniture,01-Jun-2016,MODERN RUGS LTD,Furniture repair and replacement,89.00,0.00,89.00
Children and Adult Services,Childrens Services,Support Services,Supplies and Services,Provisions,01-Jun-2016,TESCO STORES 6329,Catering costs - provisions,85.89,0.00,85.89
Children and Adult Services,Childrens Services,Support Services,Supplies and Services,Clothing Uniforms and Laundry,01-Jun-2016,WWW.TOPSHOP.COM,Clothing uniforms and laundry,41.00,0.00,41.00
Children and Adult Services,Childrens Services,Support Services,Supplies and Services,Computers and Communications,01-Jun-2016,VERY.CO.UK,Computer hardware,45.00,0.00,45.00
Children and Adult Services,Childrens Services,Support Services,Supplies and Services,Computers and Communications,01-Jun-2016,VERY.CO.UK,Computer hardware,3.99,0.00,3.99
Neighbourhood Services,Culture & Sport,Hardwick Park Catering,Supplies and Services,Provisions,01-Jun-2016,JR HOLLAND FOODSERVICE,Catering costs - provisions,76.58,0.00,76.58
Neighbourhood Services,Culture & Sport,Hardwick Park Catering,Supplies and Services,Provisions,01-Jun-2016,JR HOLLAND FOODSERVICE,Catering costs - provisions,55.87,0.00,55.87
Neighbourhood Services,Culture & Sport,Hardwick Park Catering,Supplies and Services,Provisions,01-Jun-2016,JR HOLLAND FOODSERVICE,Catering costs - provisions,20.42,0.00,20.42
Neighbourhood Services,Culture & Sport,Hardwick Park Catering,Supplies and Services,Provisions,01-Jun-2016,JR HOLLAND FOODSERVICE,Catering costs - provisions,7.70,0.00,7.70
Neighbourhood Services,Culture & Sport,Hardwick Park Catering,Supplies and Services,Provisions,01-Jun-2016,JR HOLLAND FOODSERVICE,Catering costs - provisions,4.70,0.00,4.70
Neighbourhood Services,Culture & Sport,Hardwick Park Catering,Supplies and Services,Provisions,01-Jun-2016,BRAKE BROS LTD,Catering costs - provisions,479.52,79.92,399.60
Neighbourhood Services,Culture & Sport,Hardwick Park Catering,Supplies and Services,Provisions,01-Jun-2016,BRAKE BROS LTD,Catering costs - provisions,58.27,,58.27
Neighbourhood Services,Culture & Sport,Hardwick Park Catering,Supplies and Services,Provisions,01-Jun-2016,BRAKE BROS LTD,Catering costs - provisions,140.34,23.39,116.95
Neighbourhood Services,Culture & Sport,Hardwick Park Catering,Supplies and Services,Provisions,01-Jun-2016,BRAKE BROS LTD,Catering costs - provisions,132.42,,132.42
Neighbourhood Services,Direct Services,Catering - Green Lane Canteen,Supplies and Services,Provisions,01-Jun-2016,JR HOLLAND FOODSERVICE,Catering costs - provisions,24.89,0.00,24.89
Neighbourhood Services,Direct Services,Catering - Green Lane Canteen,Supplies and Services,Provisions,01-Jun-2016,JR HOLLAND FOODSERVICE,Catering costs - provisions,8.18,0.00,8.18
Children and Adult Services,Childrens Services,Tow Law CU,Supplies and Services,Provisions,01-Jun-2016,CO-OP GROUP 010989,Catering costs - provisions,37.84,0.00,37.84
Resources,Corporate Finance,Corporate Procurement,Supplies and Services,Postages,01-Jun-2016,WWW.ROYALMAIL.COM,Postages,110.00,0.00,110.00
Neighbourhood Services,Direct Services,C&G - South Grounds Maintenance,Supplies and Services,Equipment and Materials,01-Jun-2016,JEWSON LTD,Equipment-purchase and rental,6.48,1.08,5.40
Regeneration & Economic Development,Economic Development and Housing,Employability - Youth Contract,Employees,Recruitment Instruction and Training,01-Jun-2016,VUE NCS CITB HS&E TEST,Training-all costs,19.50,0.00,19.50
Children and Adult Services,Childrens Services,TTF-Attachment and Results,Supplies and Services,Furniture,01-Jun-2016,FRANKS THE FLOORING ST,Furniture repair and replacement,100.00,0.00,100.00
Resources,I.C.T. Services,Administration,Supplies and Services,Printing Stationery and Gen Off Exps,01-Jun-2016,PAYPAL DYNAMONORTH,Stationery,156.00,26.00,130.00
Neighbourhood Services,Culture & Sport,Bp Auckland Town Hall Cafe,Supplies and Services,Provisions,01-Jun-2016,JR HOLLAND FOODSERVICE,Catering costs - provisions,16.55,0.00,16.55
Neighbourhood Services,Direct Services,Catering - Service Direct,Supplies and Services,Provisions,01-Jun-2016,JR HOLLAND FOODSERVICE,Catering costs - provisions,52.22,0.00,52.22
Neighbourhood Services,Direct Services,Catering - Service Direct,Supplies and Services,Provisions,01-Jun-2016,JR HOLLAND FOODSERVICE,Catering costs - provisions,9.87,0.00,9.87
Neighbourhood Services,Direct Services,Catering - Service Direct,Supplies and Services,Provisions,01-Jun-2016,BRAKE BROS LTD,Catering costs - provisions,97.44,16.24,81.20
Neighbourhood Services,Direct Services,Catering - Service Direct,Supplies and Services,Provisions,01-Jun-2016,BRAKE BROS LTD,Catering costs - provisions,74.72,,74.72
Regeneration & Economic Development,Economic Development and Housing,Durham Employment & Skills - General,Employees,Recruitment Instruction and Training,01-Jun-2016,CITB,Training-all costs,30.00,0.00,30.00
Children and Adult Services,Childrens Services,Laurel Avenue Childrens Centre,Supplies and Services,Clothing Uniforms and Laundry,01-Jun-2016,POUNDWORLD RETAIL,Clothing uniforms and laundry,19.10,0.00,19.10
Children and Adult Services,Childrens Services,Laurel Avenue Childrens Centre,Supplies and Services,Newspapers Books and Periodicals,01-Jun-2016,HOME BARGAINS,Books-school library,16.55,0.00,16.55
Children and Adult Services,Childrens Services,Laurel Avenue Childrens Centre,Supplies and Services,Newspapers Books and Periodicals,01-Jun-2016,HOME BARGAINS,Books-school library,4.47,0.00,4.47
Children and Adult Services,Childrens Services,Laurel Avenue Childrens Centre,Supplies and Services,Clothing Uniforms and Laundry,01-Jun-2016,B & M RETAIL,Clothing uniforms and laundry,56.50,0.00,56.50
Children and Adult Services,Childrens Services,Operations Manager Adoption & Fostering,Supplies and Services,Advertising,01-Jun-2016,FACEBOOK NXWVX9JDR2,Advertising other than for staff,554.52,0.00,554.52
Neighbourhood Services,Culture & Sport,Woodhouse Close Leisure Complex,Supplies and Services,Provisions,01-Jun-2016,JR HOLLAND FOODSERVICE,Catering costs - provisions,34.83,0.00,34.83
Neighbourhood Services,Culture & Sport,Woodhouse Close Leisure Complex,Supplies and Services,Provisions,01-Jun-2016,JR HOLLAND FOODSERVICE,Catering costs - provisions,23.52,0.00,23.52
Neighbourhood Services,Culture & Sport,Woodhouse Close Leisure Complex,Supplies and Services,Provisions,01-Jun-2016,BRAKE BROS LTD,Catering costs - provisions,115.12,0.00,115.12
Resources,I.C.T. Services,ICT School Services - DLG,Supplies and Services,Subscriptions,02-Jun-2016,WEB NETWORKSOLUTIONS,Subscriptions,3.87,0.00,3.87
Regeneration & Economic Development,Economic Development and Housing,Business Growth and Innovation General,Supplies and Services,Equipment and Materials,02-Jun-2016,ADOBE CREATIVE CLOUD,Other consumables,45.73,7.62,38.11
Regeneration & Economic Development,Economic Development and Housing,Business Growth and Innovation General,Supplies and Services,Newspapers Books and Periodicals,02-Jun-2016,FASTHOSTS INTERNET,Books-school library,59.99,10.00,49.99
Neighbourhood Services,Direct Services,Catering - County Hall Restaurant,Supplies and Services,Provisions,02-Jun-2016,FREEMAN CATERING BUTCH,Catering costs - provisions,136.72,0.00,136.72
Neighbourhood Services,Direct Services,Catering - County Hall Restaurant,Supplies and Services,Provisions,02-Jun-2016,FREEMAN CATERING BUTCH,Catering costs - provisions,115.11,0.00,115.11
Neighbourhood Services,Direct Services,C&G - South Grounds Maintenance,Supplies and Services,Equipment and Materials,02-Jun-2016,AYCLIFFE DECORATIV,Equipment-purchase and rental,38.40,6.40,32.00
Neighbourhood Services,Culture & Sport,Gala Theatre - Catering etc,Supplies and Services,Provisions,02-Jun-2016,FREEMAN CATERING BUTCH,Catering costs - provisions,54.36,0.00,54.36
Neighbourhood Services,Culture & Sport,Office Services,Supplies and Services,Advertising,02-Jun-2016,TWITTER ADVERTISING,Advertising other than for staff,35.00,0.00,35.00
Neighbourhood Services,Culture & Sport,Office Services,Supplies and Services,Equipment and Materials,02-Jun-2016,GOOGLE ADWS2420292471,Misc equipment tools and materials,11.81,0.00,11.81
Children and Adult Services,Education,Durham Learning Resources,Supplies and Services,Equipment and Materials,02-Jun-2016,WWW.RIMMN JUDAICA,Other consumables,416.38,0.00,416.38
Children and Adult Services,Education,Emotional Wellbeing Team,Supplies and Services,Newspapers Books and Periodicals,02-Jun-2016,Amazon EU,Books-school library,13.57,0.00,13.57
Children and Adult Services,Childrens Services,Durham and Chester Le Street Locality,Supplies and Services,Clothing Uniforms and Laundry,02-Jun-2016,ARGOS RETAIL GROUP,Clothing uniforms and laundry,306.99,0.00,306.99
Children and Adult Services,Childrens Services,Support Services,Supplies and Services,Newspapers Books and Periodicals,02-Jun-2016,Amazon UK Marketplace,Books-school library,14.97,0.00,14.97
Children and Adult Services,Childrens Services,Support Services,Supplies and Services,Newspapers Books and Periodicals,02-Jun-2016,Amazon UK Marketplace,Books-school library,25.95,0.00,25.95
Children and Adult Services,Childrens Services,Support Services,Supplies and Services,Newspapers Books and Periodicals,02-Jun-2016,Amazon UK Marketplace,Books-school library,45.80,0.00,45.80
Children and Adult Services,Childrens Services,Support Services,Supplies and Services,Provisions,02-Jun-2016,TESCO STORES 6329,Catering costs - provisions,64.62,0.00,64.62
Neighbourhood Services,Direct Services,C&G - South Grounds Maintenance,Supplies and Services,Equipment and Materials,02-Jun-2016,SCREWFIX,Equipment-purchase and rental,14.76,2.46,12.30
Neighbourhood Services,Culture & Sport,Hardwick Park Catering,Supplies and Services,Provisions,02-Jun-2016,FREEMAN CATERING BUTCH,Catering costs - provisions,30.82,0.00,30.82
Neighbourhood Services,Culture & Sport,Hardwick Park Catering,Supplies and Services,Provisions,02-Jun-2016,FREEMAN CATERING BUTCH,Catering costs - provisions,14.43,0.00,14.43
Resources,I.C.T. Services,Operations - System & Repairs Team,Supplies and Services,Computers and Communications,02-Jun-2016,WWW.ALIEXPRESS.COM,Computer hardware,346.25,0.00,346.25
Resources,I.C.T. Services,Operations - System & Repairs Team,Supplies and Services,Equipment and Materials,02-Jun-2016,THE REPLACE BASE LTD,Other consumables,29.10,0.00,29.10
Neighbourhood Services,Culture & Sport,Gala Theatre Stage School,Supplies and Services,Newspapers Books and Periodicals,02-Jun-2016,"Amazon Svcs Europe,SAR",Books-school library,123.86,0.00,123.86
Children and Adult Services,Childrens Services,Tow Law CU,Supplies and Services,Provisions,02-Jun-2016,TESCO STORES 2371,Catering costs - provisions,172.49,0.00,172.49
Children and Adult Services,Childrens Services,Bishop Auckland 0 - 5,Supplies and Services,Miscellaneous Expenses,02-Jun-2016,W BOYES & CO LTD BISHO,Other expenses,7.25,0.00,7.25
Children and Adult Services,Childrens Services,Bishop Auckland 0 - 5,Supplies and Services,Equipment and Materials,02-Jun-2016,WILKO RETAIL LIMIT,Other consumables,7.50,0.00,7.50
Children and Adult Services,Childrens Services,Bishop Auckland 0 - 5,Supplies and Services,Provisions,02-Jun-2016,WM MORRISON 040,Catering costs - provisions,35.16,0.00,35.16
Children and Adult Services,Childrens Services,Consett and Stanley Locality,Supplies and Services,Newspapers Books and Periodicals,02-Jun-2016,Amazon EU,Books-school library,92.25,0.00,92.25
Resources,I.C.T. Services,Administration,Supplies and Services,Newspapers Books and Periodicals,02-Jun-2016,Amazon UK Marketplace,Books-school library,131.56,0.00,131.56
Neighbourhood Services,Direct Services,C&G - North Grounds Maintenance,Supplies and Services,Equipment and Materials,02-Jun-2016,BESCOL,Other consumables,4.03,0.67,3.36
Neighbourhood Services,Direct Services,Catering - Service Direct,Supplies and Services,Provisions,02-Jun-2016,FREEMAN CATERING BUTCH,Catering costs - provisions,71.30,0.00,71.30
Neighbourhood Services,Direct Services,Catering - Service Direct,Supplies and Services,Provisions,02-Jun-2016,FREEMAN CATERING BUTCH,Catering costs - provisions,46.66,0.00,46.66
Children and Adult Services,Childrens Services,Ferryhill and Newton Aycliffe Locality,Supplies and Services,Equipment and Materials,02-Jun-2016,SUNDERLAND MARINA,Misc equipment tools and materials,220.00,0.00,220.00
Children and Adult Services,Childrens Services,Laurel Avenue Childrens Centre,Supplies and Services,Clothing Uniforms and Laundry,02-Jun-2016,B & M RETAIL,Clothing uniforms and laundry,34.94,0.00,34.94
Neighbourhood Services,Culture & Sport,Woodhouse Close Leisure Complex,Supplies and Services,Provisions,02-Jun-2016,FREEMAN CATERING BUTCH,Catering costs - provisions,37.56,0.00,37.56
Neighbourhood Services,Culture & Sport,Woodhouse Close Leisure Complex,Supplies and Services,Provisions,02-Jun-2016,BRAKE BROS LTD,Catering costs - provisions,43.62,7.27,36.35
Neighbourhood Services,Culture & Sport,Woodhouse Close Leisure Complex,Supplies and Services,Provisions,02-Jun-2016,BRAKE BROS LTD,Catering costs - provisions,82.17,,82.17
Regeneration & Economic Development,Economic Development and Housing,Employability - Youth Contract,Supplies and Services,Equipment and Materials,02-Jun-2016,J.T.ATKINSON,Equipment-purchase and rental,355.02,59.17,295.85
Regeneration & Economic Development,Economic Development and Housing,Employability - Youth Contract,Supplies and Services,Equipment and Materials,02-Jun-2016,J.T.ATKINSON,Equipment-purchase and rental,58.56,,58.56
Children and Adult Services,Childrens Services,Support Services,Supplies and Services,Clothing Uniforms and Laundry,02-Jun-2016,NEW LOOK INTERNET,Clothing uniforms and laundry,-19.98,0.00,-19.98
Children and Adult Services,Education,Selby Cottage Childcare Centre,Supplies and Services,Provisions,03-Jun-2016,TESCO STORES 2278,Catering costs - provisions,33.55,0.00,33.55
Neighbourhood Services,Direct Services,C&G - South Grounds Maintenance,Supplies and Services,Equipment and Materials,03-Jun-2016,SCREWFIX,Equipment-purchase and rental,25.99,4.33,21.66
Neighbourhood Services,Direct Services,Catering - County Hall Restaurant,Supplies and Services,Provisions,03-Jun-2016,BRAKE BROS LTD,Catering costs - provisions,126.16,0.00,126.16
Children and Adult Services,Childrens Services,Bishop Auckland 0 - 5,Supplies and Services,Equipment and Materials,03-Jun-2016,POUNDLAND LTD 1554,Other consumables,1.00,0.00,1.00
Neighbourhood Services,Culture & Sport,Office Services,Supplies and Services,Advertising,03-Jun-2016,TWITTER ADVERTISING,Advertising other than for staff,5.00,0.00,5.00
Children and Adult Services,Childrens Services,Support Services,Supplies and Services,Provisions,03-Jun-2016,TESCO STORES 6329,Catering costs - provisions,101.83,0.00,101.83
Neighbourhood Services,Culture & Sport,Hardwick Park Catering,Supplies and Services,Provisions,03-Jun-2016,BRAKE BROS LTD,Catering costs - provisions,193.92,32.32,161.60
Neighbourhood Services,Culture & Sport,Hardwick Park Catering,Supplies and Services,Provisions,03-Jun-2016,BRAKE BROS LTD,Catering costs - provisions,254.77,,254.77
Neighbourhood Services,Culture & Sport,Hardwick Park Catering,Supplies and Services,Provisions,03-Jun-2016,BRAKE BROS LTD,Catering costs - provisions,137.46,22.91,114.55
Neighbourhood Services,Culture & Sport,Hardwick Park Catering,Supplies and Services,Provisions,03-Jun-2016,BRAKE BROS LTD,Catering costs - provisions,30.05,,30.05
Children and Adult Services,Education,CPD Conferences,Supplies and Services,Provisions,03-Jun-2016,SAINSBURYS 0776,Catering costs - provisions,25.90,4.32,21.58
Children and Adult Services,Childrens Services,Consett and Stanley Locality,Supplies and Services,Miscellaneous Expenses,03-Jun-2016,IRONBRIDGE GORGE T,Recreational exps outings parties,68.00,0.00,68.00
Regeneration & Economic Development,Economic Development and Housing,Employability - Youth Contract,Transport,Contract Hire,03-Jun-2016,SEAHAM SST,Pupils-transport to play fields etc,20.90,0.00,20.90
Neighbourhood Services,Projects and Business services,Business Support,Employees,Recruitment Instruction and Training,03-Jun-2016,CIEH,Training-all costs,358.00,0.00,358.00
Children and Adult Services,Childrens Services,Consett and Stanley Locality,Supplies and Services,Newspapers Books and Periodicals,03-Jun-2016,Amazon EU,Books-school library,72.42,0.00,72.42
Children and Adult Services,Childrens Services,Consett and Stanley Locality,Supplies and Services,Provisions,03-Jun-2016,WM MORRISONS,Catering costs - provisions,36.00,0.00,36.00
Regeneration & Economic Development,Economic Development and Housing,Business Services General,Supplies and Services,Provisions,03-Jun-2016,TESCO STORES 6029,Catering costs - provisions,20.15,0.00,20.15
Resources,I.C.T. Services,Administration,Supplies and Services,Advertising,03-Jun-2016,TWITTER ADVERTISING,Advertising other than for staff,73.14,0.00,73.14
Neighbourhood Services,Direct Services,C&G - North Grounds Maintenance,Supplies and Services,Equipment and Materials,03-Jun-2016,HARELAW SAWMILL,Equipment-purchase and rental,18.03,3.01,15.02
Children and Adult Services,Childrens Services,Operations Manager Adoption & Fostering,Supplies and Services,Furniture,03-Jun-2016,SBC BEDS LIMITED,Furniture repair and replacement,258.00,0.00,258.00
Dedicated Schools Grant,Dedicated Schools Grant,Part Sighted-Belmont Comp,Supplies and Services,Equipment and Materials,03-Jun-2016,Audible Ltd,Misc equipment tools and materials,7.99,1.33,6.66
Regeneration & Economic Development,Economic Development and Housing,VCD - Marketing & Information,Supplies and Services,Subscriptions,03-Jun-2016,HOOTSUITE MEDIA INC.,Subscriptions,88.81,0.00,88.81
Neighbourhood Services,EnvironmentHealth & Consumer Protection,Consumer Protection,Supplies and Services,Services,03-Jun-2016,HMCOURTS-SERVICE.G,Court Costs,"1,030.00",0.00,1030.00
Children and Adult Services,Childrens Services,9 Cedar Drive Aycliffe,Supplies and Services,Provisions,04-Jun-2016,TESCO STORES 2916,Catering costs - provisions,59.64,0.00,59.64
Regeneration & Economic Development,Economic Development and Housing,Business Growth and Innovation General,Supplies and Services,Equipment and Materials,04-Jun-2016,MEETEDGAR.COM STARTER,Other consumables,33.61,0.00,33.61
Children and Adult Services,Childrens Services,Support Services,Supplies and Services,Provisions,04-Jun-2016,TESCO STORES 6329,Catering costs - provisions,86.30,0.00,86.30
Regeneration & Economic Development,Economic Development and Housing,Employability - Youth Contract,Supplies and Services,Provisions,04-Jun-2016,ASDA HOME SHOPPING,Catering costs - provisions,36.65,0.00,36.65
Neighbourhood Services,Direct Services,Catering - Service Direct,Supplies and Services,Provisions,04-Jun-2016,BRAKE BROS LTD,Catering costs - provisions,-16.98,-2.83,-14.15
Neighbourhood Services,Culture & Sport,Bp Auckland Town Hall Library,Supplies and Services,Newspapers Books and Periodicals,05-Jun-2016,Amazon EU,Books-school library,40.99,0.00,40.99
Neighbourhood Services,Culture & Sport,Office Services,Supplies and Services,Advertising,05-Jun-2016,FACEBOOK 3FAJQ9N6F2,Advertising other than for staff,40.16,0.00,40.16
Resources,Resources Management,Resources Management,Supplies and Services,Provisions,05-Jun-2016,CO-OP GROUP 010830,Catering costs - provisions,2.05,0.00,2.05
Resources,I.C.T. Services,Administration,Supplies and Services,Newspapers Books and Periodicals,05-Jun-2016,Amazon UK Marketplace,Books-school library,5.80,0.00,5.80
Regeneration & Economic Development,Spatial Policy Planning Assets & Environment,North Pennines Core,Supplies and Services,Subscriptions,05-Jun-2016,SURVEYMONKEY.COM,Subscriptions,26.00,0.00,26.00
Regeneration & Economic Development,Economic Development and Housing,Business Growth and Innovation General,Supplies and Services,Equipment and Materials,06-Jun-2016,MEETEDGAR.COM STARTER,Other consumables,0.92,0.00,0.92
Regeneration & Economic Development,Economic Development and Housing,VCD - Marketing & Information,Supplies and Services,Subscriptions,06-Jun-2016,HOOTSUITE MEDIA INC.,Subscriptions,2.44,0.00,2.44
Children and Adult Services,Childrens Services,9 Cedar Drive Aycliffe,Supplies and Services,Provisions,06-Jun-2016,TESCO STORES 2916,Catering costs - provisions,10.55,0.00,10.55
Neighbourhood Services,Direct Services,Catering - County Hall Restaurant,Supplies and Services,Provisions,06-Jun-2016,BRAMBLES FOODS LTD,Catering costs - provisions,415.34,0.00,415.34
Neighbourhood Services,Direct Services,Catering - County Hall Restaurant,Supplies and Services,Provisions,06-Jun-2016,JR HOLLAND FOODSERVICE,Catering costs - provisions,176.81,0.00,176.81
Neighbourhood Services,Direct Services,Catering - County Hall Restaurant,Supplies and Services,Provisions,06-Jun-2016,JR HOLLAND FOODSERVICE,Catering costs - provisions,70.73,0.00,70.73
Neighbourhood Services,Direct Services,Catering - County Hall Restaurant,Supplies and Services,Provisions,06-Jun-2016,JR HOLLAND FOODSERVICE,Catering costs - provisions,43.42,0.00,43.42
Neighbourhood Services,Direct Services,Catering - County Hall Restaurant,Supplies and Services,Provisions,06-Jun-2016,JR HOLLAND FOODSERVICE,Catering costs - provisions,35.78,0.00,35.78
Neighbourhood Services,Direct Services,Catering - County Hall Restaurant,Supplies and Services,Provisions,06-Jun-2016,JR HOLLAND FOODSERVICE,Catering costs - provisions,31.35,0.00,31.35
Neighbourhood Services,Direct Services,Catering - County Hall Restaurant,Supplies and Services,Provisions,06-Jun-2016,JR HOLLAND FOODSERVICE,Catering costs - provisions,13.52,0.00,13.52
Neighbourhood Services,Direct Services,Catering - County Hall Restaurant,Supplies and Services,Provisions,06-Jun-2016,JR HOLLAND FOODSERVICE,Catering costs - provisions,13.16,0.00,13.16
Neighbourhood Services,Direct Services,Catering - County Hall Restaurant,Supplies and Services,Provisions,06-Jun-2016,BRAKE BROS LTD,Catering costs - provisions,298.78,0.00,298.78
Neighbourhood Services,Culture & Sport,Gala Theatre - Catering etc,Supplies and Services,Provisions,06-Jun-2016,JR HOLLAND FOODSERVICE,Catering costs - provisions,16.41,0.00,16.41
Regeneration & Economic Development,Economic Development and Housing,Employability - Youth Contract,Transport,Public Transport,06-Jun-2016,GO NORTH EAST - V/T,Staff travelling,4.85,0.00,4.85
Children and Adult Services,Education,Dean Bank Childcare,Supplies and Services,Provisions,06-Jun-2016,ASDA HOME SHOPPING,Catering costs - provisions,57.91,0.00,57.91
Children and Adult Services,Education,Psychological-HQ,Supplies and Services,Newspapers Books and Periodicals,06-Jun-2016,Amazon UK Marketplace,Books-school library,44.10,0.00,44.10
Children and Adult Services,Education,Durham Learning Resources,Supplies and Services,Miscellaneous Expenses,06-Jun-2016,PAYPAL SPACEKIDS,Other expenses,76.97,0.00,76.97
Children and Adult Services,Childrens Services,Support Services,Supplies and Services,Clothing Uniforms and Laundry,06-Jun-2016,ARGOS RETAIL GROUP,Clothing uniforms and laundry,-59.98,0.00,-59.98
Neighbourhood Services,Culture & Sport,Hardwick Park Catering,Supplies and Services,Provisions,06-Jun-2016,JR HOLLAND FOODSERVICE,Catering costs - provisions,104.46,0.00,104.46
Neighbourhood Services,Culture & Sport,Hardwick Park Catering,Supplies and Services,Provisions,06-Jun-2016,JR HOLLAND FOODSERVICE,Catering costs - provisions,42.51,0.00,42.51
Neighbourhood Services,Culture & Sport,Hardwick Park Catering,Supplies and Services,Provisions,06-Jun-2016,JR HOLLAND FOODSERVICE,Catering costs - provisions,12.56,0.00,12.56
Neighbourhood Services,Culture & Sport,Hardwick Park Catering,Supplies and Services,Provisions,06-Jun-2016,BRAKE BROS LTD,Catering costs - provisions,295.80,49.30,246.50
Neighbourhood Services,Culture & Sport,Hardwick Park Catering,Supplies and Services,Provisions,06-Jun-2016,BRAKE BROS LTD,Catering costs - provisions,158.56,,158.56
Neighbourhood Services,Culture & Sport,Hardwick Park Catering,Supplies and Services,Provisions,06-Jun-2016,BRAKE BROS LTD,Catering costs - provisions,407.04,67.84,339.20
Neighbourhood Services,Culture & Sport,Hardwick Park Catering,Supplies and Services,Provisions,06-Jun-2016,BRAKE BROS LTD,Catering costs - provisions,25.35,,25.35
Neighbourhood Services,Culture & Sport,Hardwick Park Catering,Supplies and Services,Provisions,06-Jun-2016,BRAKE BROS LTD,Catering costs - provisions,146.70,24.45,122.25
Neighbourhood Services,Culture & Sport,Hardwick Park Catering,Supplies and Services,Provisions,06-Jun-2016,BRAKE BROS LTD,Catering costs - provisions,85.01,,85.01
Resources,I.C.T. Services,Operations - System & Repairs Team,Supplies and Services,Newspapers Books and Periodicals,06-Jun-2016,Amazon UK Marketplace,Books-school library,9.99,0.00,9.99
Resources,I.C.T. Services,Operations - System & Repairs Team,Supplies and Services,Newspapers Books and Periodicals,06-Jun-2016,Amazon UK Marketplace,Books-school library,16.37,0.00,16.37
Neighbourhood Services,Direct Services,Catering - Green Lane Canteen,Supplies and Services,Provisions,06-Jun-2016,BRAMBLES FOODS LTD,Catering costs - provisions,67.91,0.00,67.91
Neighbourhood Services,Direct Services,Catering - Green Lane Canteen,Supplies and Services,Provisions,06-Jun-2016,JR HOLLAND FOODSERVICE,Catering costs - provisions,68.47,0.00,68.47
Children and Adult Services,Childrens Services,Bishop Auckland 0 - 5,Supplies and Services,Provisions,06-Jun-2016,TESCO STORES 6329,Catering costs - provisions,18.19,0.00,18.19
Children and Adult Services,Childrens Services,Middlestone Moor CU,Supplies and Services,Provisions,06-Jun-2016,TESCO STORES 6329,Catering costs - provisions,187.77,0.00,187.77
Neighbourhood Services,Direct Services,C&G - South Grounds Maintenance,Supplies and Services,Equipment and Materials,06-Jun-2016,NEW ROW FARM NURSERIES,Misc equipment tools and materials,236.87,39.48,197.39
Children and Adult Services,Childrens Services,Consett and Stanley Locality,Supplies and Services,Provisions,06-Jun-2016,TESCO STORES 4358,Catering costs - provisions,20.15,0.00,20.15
Regeneration & Economic Development,Spatial Policy Planning Assets & Environment,North Pennines Core,Supplies and Services,Subscriptions,06-Jun-2016,WWW.THETELEGRAPHAN,Subscriptions,52.00,0.00,52.00
Regeneration & Economic Development,Economic Development and Housing,Business Services General,Transport,Public Transport,06-Jun-2016,INTERNATIONAL CENT,Staff travelling,2.50,0.00,2.50
Neighbourhood Services,Direct Services,C&G - South Grounds Maintenance,Supplies and Services,Provisions,06-Jun-2016,TESCO STORES 2916,Catering costs - provisions,12.58,0.00,12.58
Resources,Financial Services,SF-Financial Services Team,Supplies and Services,Services,06-Jun-2016,HMCOURTS-SERVICE.G,Court Costs,"8,685.00",0.00,8685.00
Resources,Financial Services,SF-Financial Services Team,Supplies and Services,Services,06-Jun-2016,HMCOURTS-SERVICE.G,Court Costs,"11,793.00",0.00,11793.00
Neighbourhood Services,Culture & Sport,Bp Auckland Town Hall Cafe,Supplies and Services,Provisions,06-Jun-2016,BRAMBLES FOODS LTD,Catering costs - provisions,104.45,0.00,104.45
Neighbourhood Services,Culture & Sport,Bp Auckland Town Hall Cafe,Supplies and Services,Provisions,06-Jun-2016,JR HOLLAND FOODSERVICE,Catering costs - provisions,20.31,0.00,20.31
Neighbourhood Services,Culture & Sport,Bp Auckland Town Hall Cafe,Supplies and Services,Provisions,06-Jun-2016,JR HOLLAND FOODSERVICE,Catering costs - provisions,15.62,0.00,15.62
Neighbourhood Services,Culture & Sport,Bp Auckland Town Hall Cafe,Supplies and Services,Provisions,06-Jun-2016,JR HOLLAND FOODSERVICE,Catering costs - provisions,5.90,0.00,5.90
Neighbourhood Services,Culture & Sport,Bp Auckland Town Hall Cafe,Supplies and Services,Provisions,06-Jun-2016,BRAKE BROS LTD,Catering costs - provisions,297.93,0.00,297.93
Neighbourhood Services,Culture & Sport,Bp Auckland Town Hall Cafe,Supplies and Services,Provisions,06-Jun-2016,BRAKE BROS LTD,Catering costs - provisions,67.26,11.21,56.05
Neighbourhood Services,Culture & Sport,Bp Auckland Town Hall Cafe,Supplies and Services,Provisions,06-Jun-2016,BRAKE BROS LTD,Catering costs - provisions,146.83,,146.83
Neighbourhood Services,Direct Services,Catering - Service Direct,Supplies and Services,Provisions,06-Jun-2016,BRAMBLES FOODS LTD,Catering costs - provisions,33.68,0.00,33.68
Neighbourhood Services,Direct Services,Catering - Service Direct,Supplies and Services,Provisions,06-Jun-2016,JR HOLLAND FOODSERVICE,Catering costs - provisions,44.00,0.00,44.00
Neighbourhood Services,Direct Services,Catering - Service Direct,Supplies and Services,Provisions,06-Jun-2016,JR HOLLAND FOODSERVICE,Catering costs - provisions,9.87,0.00,9.87
Neighbourhood Services,Culture & Sport,Woodhouse Close Leisure Complex,Supplies and Services,Provisions,06-Jun-2016,JR HOLLAND FOODSERVICE,Catering costs - provisions,32.38,0.00,32.38
Neighbourhood Services,Culture & Sport,Woodhouse Close Leisure Complex,Supplies and Services,Provisions,06-Jun-2016,JR HOLLAND FOODSERVICE,Catering costs - provisions,24.97,0.00,24.97
Neighbourhood Services,Culture & Sport,Woodhouse Close Leisure Complex,Supplies and Services,Provisions,06-Jun-2016,BRAKE BROS LTD,Catering costs - provisions,67.70,0.00,67.70
Neighbourhood Services,Culture & Sport,Woodhouse Close Leisure Complex,Supplies and Services,Provisions,06-Jun-2016,JR HOLLAND FOODSERVICE,Catering costs - provisions,-10.17,0.00,-10.17
Children and Adult Services,Education,Selby Cottage Childcare Centre,Supplies and Services,Clothing Uniforms and Laundry,07-Jun-2016,ARGOS LTD,Clothing uniforms and laundry,85.96,0.00,85.96
Children and Adult Services,Childrens Services,Bishop Auckland and Barnard Castle Locality,Supplies and Services,Provisions,07-Jun-2016,ASDA STORES,Catering costs - provisions,64.14,0.00,64.14
Neighbourhood Services,Culture & Sport,Facilities Management - Ferryhill Leisure Centre (S),Supplies and Services,Equipment and Materials,07-Jun-2016,Amazon UK Marketplace,Equipment-purchase and rental,6.54,0.00,6.54
Children and Adult Services,Education,Durham Learning Resources,Supplies and Services,Equipment and Materials,07-Jun-2016,CRESTOFLONDON.CO.U,Materials,284.70,0.00,284.70
Children and Adult Services,Education,Durham Learning Resources,Supplies and Services,Equipment and Materials,07-Jun-2016,GOLD BROTHERS,Materials,119.85,0.00,119.85
Regeneration & Economic Development,Economic Development and Housing,Business Growth and Innovation General,Transport,Public Transport,07-Jun-2016,VIRGINTRAINSEC WI-FI,Staff travelling,9.95,0.00,9.95
Resources,Financial Services,Collections,Income,Fees and Charges,07-Jun-2016,WWW.MONEYCLAIM.GOV,Fees-legal,185.00,0.00,185.00
Resources,I.C.T. Services,Domains,Supplies and Services,Subscriptions,07-Jun-2016,WEB NETWORKSOLUTIONS,Subscriptions,1.64,0.00,1.64
Neighbourhood Services,Culture & Sport,Gala Theatre - Catering etc,Supplies and Services,Provisions,07-Jun-2016,BRAKE BROS LTD,Catering costs - provisions,103.44,17.24,86.20
Neighbourhood Services,Culture & Sport,Gala Theatre - Catering etc,Supplies and Services,Provisions,07-Jun-2016,BRAKE BROS LTD,Catering costs - provisions,57.16,,57.16
Children and Adult Services,Childrens Services,Framwellgate Moor CU,Supplies and Services,Provisions,07-Jun-2016,ASDA HOME SHOPPING,Catering costs - provisions,157.56,0.00,157.56
Children and Adult Services,Childrens Services,Framwellgate Moor CU,Supplies and Services,Provisions,07-Jun-2016,ASDA HOME SHOPPING,Catering costs - provisions,-1.98,0.00,-1.98
Children and Adult Services,Childrens Services,Middlestone Moor CU,Supplies and Services,Equipment and Materials,07-Jun-2016,TESCO - Lakeland,Other consumables,327.87,0.00,327.87
Children and Adult Services,Childrens Services,Support Services,Supplies and Services,Clothing Uniforms and Laundry,07-Jun-2016,ARGOS RETAIL GROUP,Clothing uniforms and laundry,38.97,0.00,38.97
Children and Adult Services,Childrens Services,Support Services,Supplies and Services,Equipment and Materials,07-Jun-2016,WWW.FOOTASYLUM.COM,Equipment-purchase and rental,164.96,0.00,164.96
Children and Adult Services,Childrens Services,Support Services,Supplies and Services,Clothing Uniforms and Laundry,07-Jun-2016,SP EADE SONS LTD,Clothing uniforms and laundry,24.99,0.00,24.99
Neighbourhood Services,Culture & Sport,Hardwick Park Catering,Supplies and Services,Provisions,07-Jun-2016,FREEMAN CATERING BUTCH,Catering costs - provisions,29.97,0.00,29.97
Resources,I.C.T. Services,Operations - System & Repairs Team,Supplies and Services,Newspapers Books and Periodicals,07-Jun-2016,Amazon UK Marketplace,Books-school library,11.99,0.00,11.99
Neighbourhood Services,Direct Services,Catering - Green Lane Canteen,Supplies and Services,Provisions,07-Jun-2016,FREEMAN CATERING BUTCH,Catering costs - provisions,19.32,0.00,19.32
Neighbourhood Services,Direct Services,Catering - Green Lane Canteen,Supplies and Services,Provisions,07-Jun-2016,BRAKE BROS LTD,Catering costs - provisions,49.14,8.19,40.95
Neighbourhood Services,Direct Services,Catering - Green Lane Canteen,Supplies and Services,Provisions,07-Jun-2016,BRAKE BROS LTD,Catering costs - provisions,90.93,,90.93
Neighbourhood Services,Culture & Sport,Peterlee Library,Supplies and Services,Equipment and Materials,07-Jun-2016,"Amazon Svcs Europe,SAR",Toys,68.97,0.00,68.97
Children and Adult Services,Childrens Services,Tow Law CU,Supplies and Services,Provisions,07-Jun-2016,CO-OP GROUP 010989,Catering costs - provisions,32.86,0.00,32.86
Neighbourhood Services,Projects and Business services,Business Support,Supplies and Services,Newspapers Books and Periodicals,07-Jun-2016,Amazon UK Marketplace,Books-school library,8.99,0.00,8.99
Children and Adult Services,Childrens Services,TTF-Attachment and Results,Supplies and Services,Equipment and Materials,07-Jun-2016,WILKO.COM,Other consumables,143.00,0.00,143.00
Children and Adult Services,Childrens Services,TTF-Attachment and Results,Supplies and Services,Equipment and Materials,07-Jun-2016,TESCO - Seller_IST_1_2,Other consumables,149.99,25.00,124.99
Resources,I.C.T. Services,Administration,Supplies and Services,Equipment and Materials,07-Jun-2016,DISCLOSURE SCOT,Equipment-purchase and rental,25.00,0.00,25.00
Regeneration & Economic Development,Transport and Contracted Services,Care Connect All Localities,Supplies and Services,Telephones,07-Jun-2016,BT BILL PAYMENT 1,Telephones general-all costs,27.94,4.66,23.28
Neighbourhood Services,Direct Services,Catering - Service Direct,Supplies and Services,Provisions,07-Jun-2016,FREEMAN CATERING BUTCH,Catering costs - provisions,61.48,0.00,61.48
Neighbourhood Services,Direct Services,Catering - Service Direct,Supplies and Services,Provisions,07-Jun-2016,BRAKE BROS LTD,Catering costs - provisions,48.50,0.00,48.50
Neighbourhood Services,Direct Services,C&G - North Grounds Maintenance,Supplies and Services,Equipment and Materials,07-Jun-2016,HSS HIRE,Direct materials,200.00,33.33,166.67
Neighbourhood Services,Technical Services,Training and Development,Employees,Recruitment Instruction and Training,07-Jun-2016,WWW.BPEC.ORG.UK,Training-all costs,490.50,0.00,490.50
Children and Adult Services,Childrens Services,Ferryhill 0 - 5,Supplies and Services,Provisions,07-Jun-2016,ASDA HOME SHOPPING,Catering costs - provisions,45.78,0.00,45.78
Children and Adult Services,Education,EYDCP-Sustainability EDS,Supplies and Services,Equipment and Materials,07-Jun-2016,Amazon UK Marketplace,Other consumables,27.48,0.00,27.48
Children and Adult Services,Childrens Services,TTF-Attachment and Results,Supplies and Services,Furniture,07-Jun-2016,FRANKS THE FLOORIN,Furniture repair and replacement,141.00,0.00,141.00
Children and Adult Services,Education,Selby Cottage Childcare Centre,Supplies and Services,Clothing Uniforms and Laundry,07-Jun-2016,B & M RETAIL,Clothing uniforms and laundry,211.89,0.00,211.89
Neighbourhood Services,Culture & Sport,Gala Theatre - Catering etc,Supplies and Services,Provisions,07-Jun-2016,JR HOLLAND FOODSERVICE,Catering costs - provisions,42.32,0.00,42.32
Children and Adult Services,Childrens Services,Support Services,Supplies and Services,Clothing Uniforms and Laundry,07-Jun-2016,NEW LOOK INTERNET,Clothing uniforms and laundry,26.98,0.00,26.98
Children and Adult Services,Childrens Services,Support Services,Supplies and Services,Clothing Uniforms and Laundry,07-Jun-2016,WWW.TOPSHOP.COM,Clothing uniforms and laundry,82.00,0.00,82.00
Neighbourhood Services,Culture & Sport,Hardwick Park Catering,Supplies and Services,Provisions,07-Jun-2016,JR HOLLAND FOODSERVICE,Catering costs - provisions,29.97,0.00,29.97
Neighbourhood Services,Culture & Sport,Hardwick Park Catering,Supplies and Services,Provisions,07-Jun-2016,JR HOLLAND FOODSERVICE,Catering costs - provisions,28.98,0.00,28.98
Neighbourhood Services,Culture & Sport,Hardwick Park Catering,Supplies and Services,Provisions,07-Jun-2016,JR HOLLAND FOODSERVICE,Catering costs - provisions,14.33,0.00,14.33
Neighbourhood Services,Culture & Sport,Hardwick Park Catering,Supplies and Services,Provisions,07-Jun-2016,JR HOLLAND FOODSERVICE,Catering costs - provisions,9.73,0.00,9.73
Children and Adult Services,Childrens Services,Consett and Stanley Locality,Supplies and Services,Clothing Uniforms and Laundry,07-Jun-2016,B&M RETAIL,Clothing uniforms and laundry,28.37,0.00,28.37
Neighbourhood Services,Culture & Sport,Wellbeing4Life,Supplies and Services,Equipment and Materials,07-Jun-2016,UK.POWERMUSIC.COM,Other consumables,17.94,2.99,14.95
Children and Adult Services,Childrens Services,Support Services,Supplies and Services,Clothing Uniforms and Laundry,07-Jun-2016,WWW.TOPSHOP.COM,Clothing uniforms and laundry,-52.00,0.00,-52.00
Resources,I.C.T. Services,Domains,Supplies and Services,Subscriptions,08-Jun-2016,WEB NETWORKSOLUTIONS,Subscriptions,0.05,0.00,0.05
Children and Adult Services,Education,Selby Cottage Childcare Centre,Supplies and Services,Equipment and Materials,08-Jun-2016,WILKO RETAIL LIMIT,Equipment-purchase and rental,23.85,0.00,23.85
Children and Adult Services,Education,Selby Cottage Childcare Centre,Supplies and Services,Equipment and Materials,08-Jun-2016,WILKO RETAIL LIMIT,Equipment-purchase and rental,4.75,0.00,4.75
Children and Adult Services,Education,Durham Learning Resources,Supplies and Services,Equipment and Materials,08-Jun-2016,WELSH GIFTS,Other consumables,131.80,0.00,131.80
Children and Adult Services,Childrens Services,Bishop Auckland and Barnard Castle Locality,Supplies and Services,Provisions,08-Jun-2016,ALDI,Catering costs - provisions,18.55,0.00,18.55
Children and Adult Services,Childrens Services,Bishop Auckland and Barnard Castle Locality,Supplies and Services,Furniture,08-Jun-2016,EDS BEDS LTD,Furniture repair and replacement,85.00,0.00,85.00
Children and Adult Services,AWH Redundant Cost Centres,Abbey Woods,Supplies and Services,Equipment and Materials,08-Jun-2016,WWW.SDFIREALARMS.CO.UK,Equipment-purchase and rental,12.09,0.00,12.09
Neighbourhood Services,Direct Services,C&G - South Street Cleansing,Transport,Running Costs of Vehicles,08-Jun-2016,SNOWBALLS (RAILWAY,Vehicle running expenses,113.94,18.99,94.95
Children and Adult Services,Childrens Services,9 Cedar Drive Aycliffe,Supplies and Services,Provisions,08-Jun-2016,TESCO STORES 2916,Catering costs - provisions,180.53,0.00,180.53
Neighbourhood Services,Direct Services,Catering - County Hall Restaurant,Supplies and Services,Provisions,08-Jun-2016,BRAKE BROS LTD,Catering costs - provisions,359.16,59.86,299.30
Neighbourhood Services,Direct Services,Catering - County Hall Restaurant,Supplies and Services,Provisions,08-Jun-2016,BRAKE BROS LTD,Catering costs - provisions,243.62,,243.62
Neighbourhood Services,Direct Services,Catering - County Hall Restaurant,Supplies and Services,Provisions,08-Jun-2016,BRAKE BROS LTD,Catering costs - provisions,196.15,0.00,196.15
Assistant Chief Executive,Partnerships & Community Engagement Div.,Stanley AAP,Supplies and Services,Subscriptions,08-Jun-2016,NOMINET UK,Subscriptions,13.50,2.25,11.25
Resources,I.C.T. Services,Domains,Supplies and Services,Subscriptions,08-Jun-2016,NOMINET UK,Subscriptions,36.00,6.00,30.00
Neighbourhood Services,Culture & Sport,Office Services,Supplies and Services,Advertising,08-Jun-2016,FACEBOOK YXMXH929Y2,Advertising other than for staff,680.64,0.00,680.64
Children and Adult Services,Childrens Services,Support Services,Supplies and Services,Provisions,08-Jun-2016,TESCO STORES 6329,Catering costs - provisions,105.76,0.00,105.76
Children and Adult Services,Childrens Services,Support Services,Supplies and Services,Equipment and Materials,08-Jun-2016,Amazon UK Marketplace,Other consumables,-8.98,0.00,-8.98
Neighbourhood Services,Direct Services,C&G - North Grounds Maintenance,Supplies and Services,Equipment and Materials,08-Jun-2016,BESCOL,Other consumables,142.37,23.73,118.64
Neighbourhood Services,Culture & Sport,Hardwick Park Catering,Supplies and Services,Provisions,08-Jun-2016,BRAKE BROS LTD,Catering costs - provisions,444.60,74.10,370.50
Neighbourhood Services,Culture & Sport,Hardwick Park Catering,Supplies and Services,Provisions,08-Jun-2016,BRAKE BROS LTD,Catering costs - provisions,21.22,,21.22
Neighbourhood Services,Culture & Sport,Hardwick Park Catering,Supplies and Services,Provisions,08-Jun-2016,BRAKE BROS LTD,Catering costs - provisions,144.00,24.00,120.00
Neighbourhood Services,Culture & Sport,Hardwick Park Catering,Supplies and Services,Provisions,08-Jun-2016,BRAKE BROS LTD,Catering costs - provisions,189.69,,189.69
Children and Adult Services,Childrens Services,Durham and Chester Le Street Locality,Supplies and Services,Computers and Communications,08-Jun-2016,WWW.LEISURE.ORDNANCE,Computer hardware,188.87,0.00,188.87
Children and Adult Services,Childrens Services,Tow Law CU,Supplies and Services,Clothing Uniforms and Laundry,08-Jun-2016,BEALES DEPARTMENT ST,Clothing uniforms and laundry,249.99,0.00,249.99
Children and Adult Services,Childrens Services,Tow Law CU,Supplies and Services,Provisions,08-Jun-2016,TESCO STORES 2371,Catering costs - provisions,143.25,0.00,143.25
Children and Adult Services,Childrens Services,Bishop Auckland 0 - 5,Supplies and Services,Provisions,08-Jun-2016,ASDA STORES,Catering costs - provisions,10.37,0.00,10.37
Resources,Corporate Finance,Corporate Procurement,Supplies and Services,Equipment and Materials,08-Jun-2016,MACHINE MART WEB,Direct materials,565.20,94.20,471.00
Children and Adult Services,Childrens Services,Consett and Stanley Locality,Supplies and Services,Newspapers Books and Periodicals,08-Jun-2016,Amazon UK Marketplace,Books-school library,15.39,0.00,15.39
Children and Adult Services,Childrens Services,Consett and Stanley Locality,Supplies and Services,Newspapers Books and Periodicals,08-Jun-2016,Amazon EU,Books-school library,21.99,0.00,21.99
Children and Adult Services,Childrens Services,Consett and Stanley Locality,Supplies and Services,Newspapers Books and Periodicals,08-Jun-2016,Amazon UK Marketplace,Books-school library,3.80,0.00,3.80
Children and Adult Services,Childrens Services,Consett and Stanley Locality,Supplies and Services,Newspapers Books and Periodicals,08-Jun-2016,Amazon UK Marketplace,Books-school library,8.39,0.00,8.39
Children and Adult Services,Childrens Services,TTF-Attachment and Results,Supplies and Services,Equipment and Materials,08-Jun-2016,TESCO DIRECT,Other consumables,51.95,0.00,51.95
Resources,I.C.T. Services,Administration,Supplies and Services,Newspapers Books and Periodicals,08-Jun-2016,Amazon UK Marketplace,Books-school library,13.85,0.00,13.85
Resources,I.C.T. Services,Administration,Supplies and Services,Subsistence,08-Jun-2016,THE IVY WRAGBY,Subsistence,59.00,9.83,49.17
Neighbourhood Services,Direct Services,C&G - North Grounds Maintenance,Supplies and Services,Provisions,08-Jun-2016,J VAN VLIET GATESHEAD,Catering costs - provisions,85.68,14.28,71.40
Children and Adult Services,Childrens Services,CDYOS - Support,Supplies and Services,Miscellaneous Expenses,08-Jun-2016,GRAFF CITY LTD,Other expenses,151.20,0.00,151.20
Children and Adult Services,Childrens Services,CDYOS - Support,Supplies and Services,Subsistence,08-Jun-2016,BELLA ITALIA,Subsistence,80.00,0.00,80.00
Regeneration & Economic Development,Transport and Contracted Services,Care Connect All Localities,Supplies and Services,Telephones,08-Jun-2016,BT BILL PAYMENT 2,Telephones general-all costs,24.86,4.14,20.72
Regeneration & Economic Development,Transport and Contracted Services,Care Connect All Localities,Supplies and Services,Telephones,08-Jun-2016,BT BILL PAYMENT 2,Telephones general-all costs,15.97,2.66,13.31
Regeneration & Economic Development,Transport and Contracted Services,Care Connect All Localities,Supplies and Services,Telephones,08-Jun-2016,BT BILL PAYMENT 2,Telephones general-all costs,83.82,13.97,69.85
Regeneration & Economic Development,Transport and Contracted Services,Care Connect All Localities,Supplies and Services,Telephones,08-Jun-2016,BT BILL PAYMENT 2,Telephones general-all costs,83.82,13.97,69.85
Regeneration & Economic Development,Transport and Contracted Services,Care Connect All Localities,Supplies and Services,Telephones,08-Jun-2016,BT BILL PAYMENT 2,Telephones general-all costs,63.23,10.54,52.69
Regeneration & Economic Development,Transport and Contracted Services,Care Connect All Localities,Supplies and Services,Telephones,08-Jun-2016,BT BILL PAYMENT 2,Telephones general-all costs,83.82,13.97,69.85
Regeneration & Economic Development,Transport and Contracted Services,Care Connect All Localities,Supplies and Services,Telephones,08-Jun-2016,BT BILL PAYMENT 2,Telephones general-all costs,17.02,2.84,14.18
Neighbourhood Services,Direct Services,Catering - Service Direct,Supplies and Services,Provisions,08-Jun-2016,BRAKE BROS LTD,Catering costs - provisions,105.18,17.53,87.65
Neighbourhood Services,Direct Services,Catering - Service Direct,Supplies and Services,Provisions,08-Jun-2016,BRAKE BROS LTD,Catering costs - provisions,48.69,,48.69
Neighbourhood Services,Direct Services,C&G - North Grounds Maintenance,Supplies and Services,Equipment and Materials,08-Jun-2016,B & Q 1343,Equipment-purchase and rental,57.19,9.53,47.66
Neighbourhood Services,Direct Services,C&G - North Grounds Maintenance,Supplies and Services,Equipment and Materials,08-Jun-2016,HSS HIRE,Direct materials,200.00,33.33,166.67
Children and Adult Services,Childrens Services,Laurel Avenue Childrens Centre,Supplies and Services,Provisions,08-Jun-2016,TESCO STORES 2371,Catering costs - provisions,9.22,0.00,9.22
Children and Adult Services,Education,Music Service,Supplies and Services,Newspapers Books and Periodicals,08-Jun-2016,PAYPAL PIANOACCESS,Newspapers books and periodicals,104.00,0.00,104.00
Assistant Chief Executive,Policy & Communications Division,Corporate Policy,Supplies and Services,Equipment and Materials,08-Jun-2016,WILKO DURHAM 426,Equipment-purchase and rental,133.10,0.00,133.10
Assistant Chief Executive,Policy & Communications Division,Corporate Policy,Supplies and Services,Provisions,08-Jun-2016,ASDA STORES LTD 4313,Catering costs - provisions,297.10,0.00,297.10
Neighbourhood Services,Culture & Sport,Office Services,Supplies and Services,Advertising,08-Jun-2016,BANDSINTOWN LLC,Advertising other than for staff,73.89,0.00,73.89
Children and Adult Services,Childrens Services,Support Services,Supplies and Services,Equipment and Materials,08-Jun-2016,SPORTSDIRECT.COM,Equipment-purchase and rental,43.98,7.33,36.65
Children and Adult Services,Head of Adults,OP/PD Durham & CLS,Supplies and Services,Postages,08-Jun-2016,POST OFFICE SHOP,Postages,143.49,0.00,143.49
Resources,I.C.T. Services,Administration,Supplies and Services,Equipment and Materials,08-Jun-2016,AMAZON UK RETAIL AMAZO,Other consumables,52.94,0.00,52.94
Children and Adult Services,Education,Selby Cottage Childcare Centre,Supplies and Services,Provisions,09-Jun-2016,ASDA HOME SHOPPING,Catering costs - provisions,149.60,0.00,149.60
Children and Adult Services,Education,Selby Cottage Childcare Centre,Supplies and Services,Provisions,09-Jun-2016,TESCO STORES 2278,Catering costs - provisions,12.87,0.00,12.87
Children and Adult Services,Education,Selby Cottage Childcare Centre,Supplies and Services,Provisions,09-Jun-2016,ASDA HOME SHOPPING,Catering costs - provisions,-4.00,0.00,-4.00
Regeneration & Economic Development,Economic Development and Housing,Wembley Phase 2 (John & Thomas Street),Income,Fees and Charges,09-Jun-2016,WWW.MONEYCLAIM.GOV,Fees-legal,105.00,0.00,105.00
Children and Adult Services,Childrens Services,9 Cedar Drive Aycliffe,Supplies and Services,Furniture,09-Jun-2016,IKEA,Furniture repair and replacement,51.00,0.00,51.00
Children and Adult Services,Childrens Services,9 Cedar Drive Aycliffe,Supplies and Services,Furniture,09-Jun-2016,IKEA,Furniture repair and replacement,205.30,34.22,171.08
Resources,Financial Services,Collections,Income,Fees and Charges,09-Jun-2016,CCBCOFFICE,Fees-legal,100.00,0.00,100.00
Neighbourhood Services,EnvironmentHealth & Consumer Protection,Works in Default Holding Code,Income,Fees and Charges,09-Jun-2016,WWW.MONEYCLAIM.GOV,Fees-legal,70.00,0.00,70.00
Neighbourhood Services,Direct Services,Nei.Prot - Countywide Civic Pride,Supplies and Services,Miscellaneous Expenses,09-Jun-2016,Amazon UK Marketplace,Other expenses,299.85,0.00,299.85
Neighbourhood Services,Direct Services,Nei.Prot - Countywide Civic Pride,Supplies and Services,Miscellaneous Expenses,09-Jun-2016,Amazon UK Marketplace,Other expenses,164.85,0.00,164.85
Neighbourhood Services,Direct Services,Nei.Prot - Countywide Civic Pride,Supplies and Services,Miscellaneous Expenses,09-Jun-2016,Amazon UK Marketplace,Other expenses,55.96,0.00,55.96
Children and Adult Services,Childrens Services,Newton Aycliffe Childrens Centre,Supplies and Services,Postages,09-Jun-2016,WWW.ROYALMAIL.COM,Postages,79.49,0.00,79.49
Children and Adult Services,Head of Adults,Maple Court Extra,Supplies and Services,Equipment and Materials,09-Jun-2016,TESCO DIRECT,Equipment-purchase and rental,141.00,0.00,141.00
Neighbourhood Services,Direct Services,C&G - South Grounds Maintenance,Supplies and Services,Equipment and Materials,09-Jun-2016,MKM PETERLEE,Equipment-purchase and rental,8.70,1.45,7.25
Neighbourhood Services,Direct Services,Catering - County Hall Restaurant,Supplies and Services,Provisions,09-Jun-2016,JR HOLLAND FOODSERVICE,Catering costs - provisions,79.64,0.00,79.64
Neighbourhood Services,Direct Services,Catering - County Hall Restaurant,Supplies and Services,Provisions,09-Jun-2016,JR HOLLAND FOODSERVICE,Catering costs - provisions,40.34,0.00,40.34
Neighbourhood Services,Direct Services,Catering - County Hall Restaurant,Supplies and Services,Provisions,09-Jun-2016,JR HOLLAND FOODSERVICE,Catering costs - provisions,31.35,0.00,31.35
Neighbourhood Services,Direct Services,Catering - County Hall Restaurant,Supplies and Services,Provisions,09-Jun-2016,JR HOLLAND FOODSERVICE,Catering costs - provisions,13.16,0.00,13.16
Neighbourhood Services,Direct Services,Catering - County Hall Restaurant,Supplies and Services,Provisions,09-Jun-2016,JR HOLLAND FOODSERVICE,Catering costs - provisions,3.60,0.00,3.60
Neighbourhood Services,Culture & Sport,Gala Theatre - Catering etc,Supplies and Services,Provisions,09-Jun-2016,JR HOLLAND FOODSERVICE,Catering costs - provisions,46.45,0.00,46.45
Regeneration & Economic Development,Spatial Policy Planning Assets & Environment,North Pennines - Bowlees,Transport,Contract Hire,09-Jun-2016,THE RABY ESTATES,Pupils-transport to play fields etc,25.00,0.00,25.00
Children and Adult Services,Education,Dean Bank Childcare,Supplies and Services,Clothing Uniforms and Laundry,09-Jun-2016,B&M RETAIL LTD,Clothing uniforms and laundry,29.24,0.00,29.24
Neighbourhood Services,Culture & Sport,HM Prison Frankland - LLC,Supplies and Services,Miscellaneous Expenses,09-Jun-2016,Amazon UK Marketplace,Other expenses,24.94,0.00,24.94
Children and Adult Services,Childrens Services,Newton Aycliffe 5 - 19,Supplies and Services,Equipment and Materials,09-Jun-2016,ARGOS LTD,Other consumables,63.98,0.00,63.98
Children and Adult Services,Childrens Services,Support Services,Supplies and Services,Newspapers Books and Periodicals,09-Jun-2016,Amazon UK Marketplace,Books-school library,3.85,0.00,3.85
Children and Adult Services,Childrens Services,Support Services,Supplies and Services,Newspapers Books and Periodicals,09-Jun-2016,Amazon UK Marketplace,Books-school library,32.01,0.00,32.01
Children and Adult Services,Childrens Services,Support Services,Supplies and Services,Provisions,09-Jun-2016,TESCO STORES 6329,Catering costs - provisions,60.01,0.00,60.01
Neighbourhood Services,Direct Services,C&G - South Grounds Maintenance,Supplies and Services,Equipment and Materials,09-Jun-2016,GUSTHARTS CHAINSAW CTR,Misc equipment tools and materials,402.00,67.00,335.00
Neighbourhood Services,Culture & Sport,Hardwick Park Catering,Supplies and Services,Provisions,09-Jun-2016,JR HOLLAND FOODSERVICE,Catering costs - provisions,32.77,0.00,32.77
Neighbourhood Services,Culture & Sport,Hardwick Park Catering,Supplies and Services,Provisions,09-Jun-2016,JR HOLLAND FOODSERVICE,Catering costs - provisions,26.20,0.00,26.20
Children and Adult Services,Education,CPD Conferences,Supplies and Services,Provisions,09-Jun-2016,ASDA SUPERSTORE 4987,Catering costs - provisions,13.13,2.19,10.94
Neighbourhood Services,Direct Services,Catering - Green Lane Canteen,Supplies and Services,Provisions,09-Jun-2016,JR HOLLAND FOODSERVICE,Catering costs - provisions,36.34,0.00,36.34
Children and Adult Services,Childrens Services,Consett and Stanley Locality,Supplies and Services,Furniture,09-Jun-2016,MAGUIRES,Furniture repair and replacement,148.00,24.67,123.33
Resources,I.C.T. Services,Administration,Supplies and Services,Equipment and Materials,09-Jun-2016,DISCLOSURE SCOT,Equipment-purchase and rental,25.00,0.00,25.00
Neighbourhood Services,Culture & Sport,Bp Auckland Town Hall Cafe,Supplies and Services,Provisions,09-Jun-2016,JR HOLLAND FOODSERVICE,Catering costs - provisions,36.33,0.00,36.33
Neighbourhood Services,Direct Services,Catering - Service Direct,Supplies and Services,Provisions,09-Jun-2016,JR HOLLAND FOODSERVICE,Catering costs - provisions,39.99,0.00,39.99
Neighbourhood Services,Direct Services,Catering - Service Direct,Supplies and Services,Provisions,09-Jun-2016,JR HOLLAND FOODSERVICE,Catering costs - provisions,13.45,0.00,13.45
Regeneration & Economic Development,Economic Development and Housing,Durham Employment & Skills - General,Employees,Recruitment Instruction and Training,09-Jun-2016,CITB,Training-all costs,30.00,0.00,30.00
Neighbourhood Services,Culture & Sport,Positive Futures,Supplies and Services,Provisions,09-Jun-2016,CO-OP GROUP 010490,Catering costs - provisions,9.69,0.00,9.69
Children and Adult Services,Childrens Services,Peterlee and Seaham Locality,Supplies and Services,Newspapers Books and Periodicals,09-Jun-2016,WATERSTONES.COM,Books-school library,139.80,0.00,139.80
Children and Adult Services,Childrens Services,Laurel Avenue Childrens Centre,Supplies and Services,Clothing Uniforms and Laundry,09-Jun-2016,B & M RETAIL,Clothing uniforms and laundry,3.97,0.00,3.97
Neighbourhood Services,Culture & Sport,Woodhouse Close Leisure Complex,Supplies and Services,Provisions,09-Jun-2016,JR HOLLAND FOODSERVICE,Catering costs - provisions,24.29,0.00,24.29
Neighbourhood Services,Culture & Sport,Woodhouse Close Leisure Complex,Supplies and Services,Provisions,09-Jun-2016,BRAKE BROS LTD,Catering costs - provisions,67.86,11.31,56.55
Neighbourhood Services,Culture & Sport,Woodhouse Close Leisure Complex,Supplies and Services,Provisions,09-Jun-2016,BRAKE BROS LTD,Catering costs - provisions,58.14,,58.14
Assistant Chief Executive,Policy & Communications Division,Corporate Policy,Supplies and Services,Equipment and Materials,09-Jun-2016,WILKO.COM,Equipment-purchase and rental,34.00,0.00,34.00
Children and Adult Services,Childrens Services,Peterlee and Seaham Locality,Supplies and Services,Newspapers Books and Periodicals,09-Jun-2016,Amazon UK Marketplace,Books-school library,36.12,6.02,30.10
Children and Adult Services,Childrens Services,Support Services,Supplies and Services,Equipment and Materials,09-Jun-2016,SPORTSDIRECT.COM,Equipment-purchase and rental,34.99,5.83,29.16
Neighbourhood Services,Culture & Sport,Office Services,Supplies and Services,Advertising,10-Jun-2016,BANDSINTOWN LLC,Advertising other than for staff,2.03,0.00,2.03
Children and Adult Services,Education,Selby Cottage Childcare Centre,Supplies and Services,Provisions,10-Jun-2016,TESCO STORES 2278,Catering costs - provisions,45.96,0.00,45.96
Children and Adult Services,Education,Selby Cottage Childcare Centre,Supplies and Services,Equipment and Materials,10-Jun-2016,WILKO RETAIL LIMIT,Equipment-purchase and rental,6.00,0.00,6.00
Children and Adult Services,Childrens Services,9 Cedar Drive Aycliffe,Employees,Recruitment Instruction and Training,10-Jun-2016,PARENTPAY.COM,Training-all costs,25.00,0.00,25.00
Neighbourhood Services,Direct Services,Catering - County Hall Restaurant,Supplies and Services,Provisions,10-Jun-2016,JR HOLLAND FOODSERVICE,Catering costs - provisions,82.62,0.00,82.62
Neighbourhood Services,Direct Services,Catering - County Hall Restaurant,Supplies and Services,Provisions,10-Jun-2016,JR HOLLAND FOODSERVICE,Catering costs - provisions,13.16,0.00,13.16
Neighbourhood Services,Direct Services,Catering - County Hall Restaurant,Supplies and Services,Provisions,10-Jun-2016,BRAKE BROS LTD,Catering costs - provisions,164.10,0.00,164.10
Children and Adult Services,Childrens Services,Framwellgate Moor CU,Supplies and Services,Newspapers Books and Periodicals,10-Jun-2016,Amazon UK Marketplace,Books-school library,27.89,0.00,27.89
Children and Adult Services,Childrens Services,Framwellgate Moor CU,Supplies and Services,Newspapers Books and Periodicals,10-Jun-2016,Amazon UK Marketplace,Books-school library,21.62,0.00,21.62
Neighbourhood Services,Culture & Sport,Office Services,Supplies and Services,Advertising,10-Jun-2016,TWITTER ADVERTISING,Advertising other than for staff,25.00,0.00,25.00
Regeneration & Economic Development,Economic Development and Housing,Employability - Youth Contract,Supplies and Services,Equipment and Materials,10-Jun-2016,GATESHEAD COUNCIL MOTO,Equipment-purchase and rental,16.00,0.00,16.00
Children and Adult Services,Childrens Services,High Etherley Satelite Home,Supplies and Services,Services,10-Jun-2016,HMCOURTS-SERVICE.G,Court Costs,15.00,0.00,15.00
Children and Adult Services,Childrens Services,Support Services,Supplies and Services,Newspapers Books and Periodicals,10-Jun-2016,Amazon UK Marketplace,Books-school library,28.96,0.00,28.96
Children and Adult Services,Childrens Services,Support Services,Supplies and Services,Newspapers Books and Periodicals,10-Jun-2016,Amazon UK Marketplace,Books-school library,23.99,0.00,23.99
Children and Adult Services,Childrens Services,Support Services,Supplies and Services,Newspapers Books and Periodicals,10-Jun-2016,Amazon UK Marketplace,Books-school library,33.98,0.00,33.98
Children and Adult Services,Childrens Services,Support Services,Supplies and Services,Provisions,10-Jun-2016,ASDA 4387,Catering costs - provisions,30.95,0.00,30.95
Children and Adult Services,Childrens Services,Support Services,Supplies and Services,Provisions,10-Jun-2016,TESCO STORES 6329,Catering costs - provisions,97.49,0.00,97.49
Children and Adult Services,Childrens Services,Support Services,Supplies and Services,Equipment and Materials,10-Jun-2016,TESCO DIRECT,Other consumables,94.50,0.00,94.50
Children and Adult Services,Childrens Services,Support Services,Supplies and Services,Equipment and Materials,10-Jun-2016,TESCO DIRECT,Other consumables,73.50,0.00,73.50
Children and Adult Services,Childrens Services,Support Services,Supplies and Services,Clothing Uniforms and Laundry,10-Jun-2016,ARGOS RETAIL GROUP,Clothing uniforms and laundry,74.99,0.00,74.99
Neighbourhood Services,Direct Services,C&G - North Grounds Maintenance,Supplies and Services,Equipment and Materials,10-Jun-2016,PLANTSCAPE LTD,Direct materials,377.28,0.00,377.28
Neighbourhood Services,Culture & Sport,Hardwick Park Catering,Supplies and Services,Provisions,10-Jun-2016,JR HOLLAND FOODSERVICE,Catering costs - provisions,46.94,0.00,46.94
Neighbourhood Services,Culture & Sport,Hardwick Park Catering,Supplies and Services,Provisions,10-Jun-2016,BRAKE BROS LTD,Catering costs - provisions,194.10,32.35,161.75
Neighbourhood Services,Culture & Sport,Hardwick Park Catering,Supplies and Services,Provisions,10-Jun-2016,BRAKE BROS LTD,Catering costs - provisions,324.14,,324.14
Neighbourhood Services,Culture & Sport,Hardwick Park Catering,Supplies and Services,Provisions,10-Jun-2016,BRAKE BROS LTD,Catering costs - provisions,427.08,71.18,355.90
Neighbourhood Services,Culture & Sport,Hardwick Park Catering,Supplies and Services,Provisions,10-Jun-2016,BRAKE BROS LTD,Catering costs - provisions,89.09,,89.09
Regeneration & Economic Development,Economic Development and Housing,International Relations,Transport,Public Transport,10-Jun-2016,PRINCE BISHOP SHOPPING,Staff travelling,2.10,0.00,2.10
Neighbourhood Services,Direct Services,Catering - Green Lane Canteen,Supplies and Services,Provisions,10-Jun-2016,JR HOLLAND FOODSERVICE,Catering costs - provisions,49.01,0.00,49.01
Resources,Corporate Finance,Corporate Procurement,Supplies and Services,Subscriptions,10-Jun-2016,WWW.UK.AUTODATA-GROUP.,Subscriptions,954.00,159.00,795.00
Children and Adult Services,Childrens Services,Consett and Stanley Locality,Supplies and Services,Newspapers Books and Periodicals,10-Jun-2016,Amazon UK Marketplace,Books-school library,10.06,0.00,10.06
Children and Adult Services,Childrens Services,Consett and Stanley Locality,Supplies and Services,Furniture,10-Jun-2016,MAGUIRES,Furniture repair and replacement,117.00,0.00,117.00
Resources,I.C.T. Services,Administration,Supplies and Services,Equipment and Materials,10-Jun-2016,ADOBE CAPTIVATE SUBS,Other consumables,22.86,0.00,22.86
Resources,I.C.T. Services,Administration,Supplies and Services,Newspapers Books and Periodicals,10-Jun-2016,Amazon UK Marketplace,Books-school library,61.25,0.00,61.25
Resources,I.C.T. Services,Administration,Supplies and Services,Equipment and Materials,10-Jun-2016,ENTERPRISE EVENTS LTD,Other consumables,270.00,45.00,225.00
Neighbourhood Services,Direct Services,Catering - Service Direct,Supplies and Services,Provisions,10-Jun-2016,JR HOLLAND FOODSERVICE,Catering costs - provisions,29.98,0.00,29.98
Neighbourhood Services,Direct Services,Catering - Service Direct,Supplies and Services,Provisions,10-Jun-2016,JR HOLLAND FOODSERVICE,Catering costs - provisions,9.87,0.00,9.87
Neighbourhood Services,Direct Services,C&G - North Grounds Maintenance,Supplies and Services,Newspapers Books and Periodicals,10-Jun-2016,GRALANDS WOODWORK SUPP,Books-school library,4.50,0.75,3.75
Children and Adult Services,Childrens Services,Bishop Auckland and Barnard Castle Locality,Supplies and Services,Newspapers Books and Periodicals,10-Jun-2016,Amazon UK Marketplace,Books-school library,52.79,0.00,52.79
Neighbourhood Services,Technical Services,Training and Development,Supplies and Services,Newspapers Books and Periodicals,10-Jun-2016,Amazon UK Marketplace,Books-school library,22.00,0.00,22.00
Neighbourhood Services,Technical Services,Training and Development,Supplies and Services,Newspapers Books and Periodicals,10-Jun-2016,Amazon EU,Books-school library,67.14,0.00,67.14
Children and Adult Services,Childrens Services,Ferryhill 0 - 5,Supplies and Services,Provisions,10-Jun-2016,ASDA SUPERSTORE 4987,Catering costs - provisions,14.59,0.00,14.59
Dedicated Schools Grant,Dedicated Schools Grant,Part Sighted-Belmont Comp,Supplies and Services,Newspapers Books and Periodicals,10-Jun-2016,Amazon UK Marketplace,Books-school library,14.60,0.00,14.60
Dedicated Schools Grant,Dedicated Schools Grant,Part Sighted-Belmont Comp,Supplies and Services,Newspapers Books and Periodicals,10-Jun-2016,Amazon UK Marketplace,Books-school library,46.56,0.00,46.56
Regeneration & Economic Development,Economic Development and Housing,Organisational Training & Development,Employees,Recruitment Instruction and Training,10-Jun-2016,PAYPAL PEARSONDRIV,Training-all costs,487.50,0.00,487.50
Regeneration & Economic Development,Economic Development and Housing,Organisational Training & Development,Supplies and Services,Equipment and Materials,10-Jun-2016,DJMEDICAL,Equipment-purchase and rental,369.70,61.62,308.08
Neighbourhood Services,Direct Services,C&G - North Grounds Maintenance,Supplies and Services,Advertising,10-Jun-2016,LOVE2SHOP.CO.UK,Advertising other than for staff,50.00,0.00,50.00
Neighbourhood Services,Culture & Sport,Woodhouse Close Leisure Complex,Supplies and Services,Provisions,10-Jun-2016,BRAKE BROS LTD,Catering costs - provisions,56.34,0.00,56.34
Assistant Chief Executive,Policy & Communications Division,Corporate Policy,Supplies and Services,Provisions,10-Jun-2016,ASDA STORES LTD 4313,Catering costs - provisions,29.05,0.00,29.05
Assistant Chief Executive,Policy & Communications Division,Corporate Policy,Supplies and Services,Clothing Uniforms and Laundry,10-Jun-2016,Argos Durham Arnis,Clothing uniforms and laundry,20.98,0.00,20.98
Neighbourhood Services,Direct Services,Catering - County Hall Restaurant,Supplies and Services,Provisions,11-Jun-2016,BRAKE BROS LTD,Catering costs - provisions,-6.84,0.00,-6.84
Children and Adult Services,Childrens Services,Support Services,Supplies and Services,Newspapers Books and Periodicals,11-Jun-2016,Amazon UK Marketplace,Books-school library,4.20,0.00,4.20
Children and Adult Services,Childrens Services,Support Services,Supplies and Services,Provisions,11-Jun-2016,TESCO STORES 6329,Catering costs - provisions,87.49,0.00,87.49
Children and Adult Services,Childrens Services,Tow Law CU,Supplies and Services,Provisions,11-Jun-2016,TESCO STORES 2371,Catering costs - provisions,93.55,0.00,93.55
Neighbourhood Services,Culture & Sport,Woodhouse Close Leisure Complex,Supplies and Services,Provisions,11-Jun-2016,BRAKE BROS LTD,Catering costs - provisions,-2.76,0.00,-2.76
Children and Adult Services,Education,Selby Cottage Childcare Centre,Supplies and Services,Provisions,13-Jun-2016,TESCO STORES 2278,Catering costs - provisions,3.85,0.00,3.85
Children and Adult Services,Education,Shildon Childcare,Supplies and Services,Provisions,13-Jun-2016,ASDA HOME SHOPPING,Catering costs - provisions,38.39,0.00,38.39
Children and Adult Services,Education,Shildon Childcare,Supplies and Services,Provisions,13-Jun-2016,ASDA HOME SHOPPING,Catering costs - provisions,-0.13,0.00,-0.13
Children and Adult Services,Childrens Services,9 Cedar Drive Aycliffe,Supplies and Services,Equipment and Materials,13-Jun-2016,WILKO RETAIL LIMIT,Equipment-purchase and rental,44.15,0.00,44.15
Children and Adult Services,Childrens Services,9 Cedar Drive Aycliffe,Supplies and Services,Provisions,13-Jun-2016,TESCO STORES 2916,Catering costs - provisions,23.28,0.00,23.28
Children and Adult Services,Childrens Services,9 Cedar Drive Aycliffe,Supplies and Services,Provisions,13-Jun-2016,TESCO STORES 2916,Catering costs - provisions,12.20,0.00,12.20
Neighbourhood Services,Direct Services,Catering - County Hall Restaurant,Supplies and Services,Provisions,13-Jun-2016,BRAMBLES FOODS LTD,Catering costs - provisions,625.56,0.00,625.56
Neighbourhood Services,Direct Services,Catering - County Hall Restaurant,Supplies and Services,Provisions,13-Jun-2016,JR HOLLAND FOODSERVICE,Catering costs - provisions,77.76,0.00,77.76
Neighbourhood Services,Direct Services,Catering - County Hall Restaurant,Supplies and Services,Provisions,13-Jun-2016,JR HOLLAND FOODSERVICE,Catering costs - provisions,13.52,0.00,13.52
Neighbourhood Services,Direct Services,Catering - County Hall Restaurant,Supplies and Services,Provisions,13-Jun-2016,BRAKE BROS LTD,Catering costs - provisions,194.34,0.00,194.34
Children and Adult Services,Childrens Services,Framwellgate Moor CU,Supplies and Services,Newspapers Books and Periodicals,13-Jun-2016,Amazon UK Marketplace,Books-school library,6.37,0.00,6.37
Children and Adult Services,Childrens Services,Framwellgate Moor CU,Supplies and Services,Newspapers Books and Periodicals,13-Jun-2016,Amazon UK Marketplace,Books-school library,25.00,0.00,25.00
Children and Adult Services,Childrens Services,Bishop Auckland 0 - 5,Supplies and Services,Provisions,13-Jun-2016,SAINSBURYS 2199,Catering costs - provisions,36.33,0.00,36.33
Regeneration & Economic Development,Economic Development and Housing,Employability - Youth Contract,Transport,Public Transport,13-Jun-2016,GO NORTH EAST - V/T,Staff travelling,4.85,0.00,4.85
Children and Adult Services,Education,Dean Bank Childcare,Supplies and Services,Provisions,13-Jun-2016,ASDA HOME SHOPPING,Catering costs - provisions,58.36,0.00,58.36
Neighbourhood Services,Culture & Sport,Hardwick Park Catering,Supplies and Services,Provisions,13-Jun-2016,JR HOLLAND FOODSERVICE,Catering costs - provisions,67.81,0.00,67.81
Neighbourhood Services,Culture & Sport,Parks & Countryside,Supplies and Services,Advertising,13-Jun-2016,FACEBOOK JAMMW96KS2,Advertising other than for staff,20.05,0.00,20.05
Regeneration & Economic Development,Economic Development and Housing,B& B - Temp Accom,Supplies and Services,Conference Expenses,13-Jun-2016,TRAVELODGE,Conferencesseminars fees etc,55.90,0.00,55.90
Neighbourhood Services,Direct Services,Catering - Green Lane Canteen,Supplies and Services,Provisions,13-Jun-2016,BRAMBLES FOODS LTD,Catering costs - provisions,88.09,0.00,88.09
Neighbourhood Services,Direct Services,Catering - Green Lane Canteen,Supplies and Services,Provisions,13-Jun-2016,BRAKE BROS LTD,Catering costs - provisions,232.51,0.00,232.51
Resources,Resources Management,Resources Management,Supplies and Services,Provisions,13-Jun-2016,CO-OP GROUP 310016,Catering costs - provisions,2.05,0.00,2.05
Resources,I.C.T. Services,Administration,Supplies and Services,Equipment and Materials,13-Jun-2016,WWW.NCHSOFTWARE.COM,Other consumables,24.84,0.00,24.84
Resources,I.C.T. Services,Administration,Supplies and Services,Equipment and Materials,13-Jun-2016,WWW.NCHSOFTWARE.COM,Other consumables,89.43,0.00,89.43
Resources,I.C.T. Services,Administration,Supplies and Services,Newspapers Books and Periodicals,13-Jun-2016,Amazon UK Marketplace,Books-school library,162.50,0.00,162.50
Resources,I.C.T. Services,Administration,Supplies and Services,Newspapers Books and Periodicals,13-Jun-2016,Amazon UK Marketplace,Books-school library,89.70,0.00,89.70
Resources,I.C.T. Services,Administration,Supplies and Services,Newspapers Books and Periodicals,13-Jun-2016,Amazon UK Marketplace,Books-school library,89.90,0.00,89.90
Resources,I.C.T. Services,Administration,Supplies and Services,Newspapers Books and Periodicals,13-Jun-2016,Amazon EU,Books-school library,19.99,0.00,19.99
Resources,I.C.T. Services,Administration,Employees,Recruitment Instruction and Training,13-Jun-2016,WWW.192.COM,Training-all costs,179.94,29.99,149.95
Resources,I.C.T. Services,Administration,Supplies and Services,Equipment and Materials,13-Jun-2016,WWW.ICO.GOV.UK,Equipment-purchase and rental,35.00,0.00,35.00
Resources,I.C.T. Services,Administration,Supplies and Services,Equipment and Materials,13-Jun-2016,WWW.ICO.GOV.UK,Equipment-purchase and rental,35.00,0.00,35.00
Resources,I.C.T. Services,Administration,Supplies and Services,Equipment and Materials,13-Jun-2016,WWW.ICO.GOV.UK,Equipment-purchase and rental,35.00,0.00,35.00
Resources,I.C.T. Services,Administration,Supplies and Services,Equipment and Materials,13-Jun-2016,WWW.ICO.GOV.UK,Equipment-purchase and rental,35.00,0.00,35.00
Neighbourhood Services,Culture & Sport,Events,Supplies and Services,Newspapers Books and Periodicals,13-Jun-2016,Amazon UK Marketplace,Books-school library,230.44,0.00,230.44
Neighbourhood Services,Direct Services,C&G - North Grounds Maintenance,Supplies and Services,Equipment and Materials,13-Jun-2016,NEW ROW FARM NURSERIES,Misc equipment tools and materials,99.00,16.50,82.50
Neighbourhood Services,Direct Services,C&G - North Grounds Maintenance,Supplies and Services,Equipment and Materials,13-Jun-2016,NEW ROW FARM NURSERIES,Misc equipment tools and materials,19.00,0.00,19.00
Neighbourhood Services,Culture & Sport,Bp Auckland Town Hall Cafe,Supplies and Services,Provisions,13-Jun-2016,BRAMBLES FOODS LTD,Catering costs - provisions,104.45,0.00,104.45
Neighbourhood Services,Direct Services,Catering - Service Direct,Supplies and Services,Provisions,13-Jun-2016,BRAMBLES FOODS LTD,Catering costs - provisions,75.78,0.00,75.78
Children and Adult Services,Childrens Services,Bishop Auckland and Barnard Castle Locality,Supplies and Services,Newspapers Books and Periodicals,13-Jun-2016,Amazon UK Marketplace,Books-school library,15.40,0.00,15.40
Children and Adult Services,Childrens Services,Dean Bank Childrens Centre,Supplies and Services,Provisions,13-Jun-2016,CO-OP GROUP 010518,Catering costs - provisions,2.05,0.00,2.05
Dedicated Schools Grant,Dedicated Schools Grant,Part Sighted-Belmont Comp,Supplies and Services,Equipment and Materials,13-Jun-2016,Kindle Unlimited,Equipment-purchase and rental,7.99,0.00,7.99
Neighbourhood Services,Culture & Sport,Woodhouse Close Leisure Complex,Supplies and Services,Provisions,13-Jun-2016,JR HOLLAND FOODSERVICE,Catering costs - provisions,48.93,0.00,48.93
Neighbourhood Services,Culture & Sport,Locality 2 Team Management,Supplies and Services,Clothing Uniforms and Laundry,13-Jun-2016,ARGOS LTD,Clothing uniforms and laundry,15.92,0.00,15.92
Resources,I.C.T. Services,Administration,Supplies and Services,Newspapers Books and Periodicals,14-Jun-2016,Amazon EU,Books-school library,2.97,0.00,2.97
Resources,I.C.T. Services,Administration,Supplies and Services,Equipment and Materials,14-Jun-2016,WWW.NCHSOFTWARE.COM,Other consumables,0.68,0.00,0.68
Resources,I.C.T. Services,Administration,Supplies and Services,Equipment and Materials,14-Jun-2016,WWW.NCHSOFTWARE.COM,Other consumables,2.46,0.00,2.46
Children and Adult Services,Education,Selby Cottage Childcare Centre,Supplies and Services,Clothing Uniforms and Laundry,14-Jun-2016,THE RANGE,Clothing uniforms and laundry,83.98,0.00,83.98
Children and Adult Services,Education,Selby Cottage Childcare Centre,Supplies and Services,Furniture,14-Jun-2016,IKEA,Furniture repair and replacement,139.20,0.00,139.20
Children and Adult Services,Education,Selby Cottage Childcare Centre,Supplies and Services,Provisions,14-Jun-2016,TESCO STORES 2278,Catering costs - provisions,14.00,0.00,14.00
Children and Adult Services,Childrens Services,Bishop Auckland and Barnard Castle Locality,Supplies and Services,Provisions,14-Jun-2016,TESCO STORES 6329,Catering costs - provisions,47.11,0.00,47.11
Neighbourhood Services,Direct Services,Fleet - Chilton Fleet,Supplies and Services,Printing Stationery and Gen Off Exps,14-Jun-2016,Amazon UK Marketplace,Stationery,41.10,0.00,41.10
Neighbourhood Services,Direct Services,Nei.Prot - Countywide Civic Pride,Supplies and Services,Miscellaneous Expenses,14-Jun-2016,Amazon UK Marketplace,Other expenses,5.44,0.00,5.44
Children and Adult Services,Education,Curric and Professional Development,Supplies and Services,Conference Expenses,14-Jun-2016,PAYPAL DYNAMONORTH,Conferencesseminars fees etc,156.00,26.00,130.00
Neighbourhood Services,Direct Services,Nei.Prot - Countywide Civic Pride,Supplies and Services,Miscellaneous Expenses,14-Jun-2016,Amazon UK Marketplace,Other expenses,37.99,0.00,37.99
Children and Adult Services,Childrens Services,Secure Management,Supplies and Services,Miscellaneous Expenses,14-Jun-2016,Amazon UK Marketplace,Other expenses,4.26,0.00,4.26
Children and Adult Services,Childrens Services,Secure Management,Supplies and Services,Miscellaneous Expenses,14-Jun-2016,Amazon UK Marketplace,Other expenses,15.48,0.00,15.48
Children and Adult Services,Childrens Services,9 Cedar Drive Aycliffe,Supplies and Services,Provisions,14-Jun-2016,GREGGS- S3495,Catering costs - provisions,8.80,0.00,8.80
Children and Adult Services,Childrens Services,9 Cedar Drive Aycliffe,Supplies and Services,Equipment and Materials,14-Jun-2016,WILKO RETAIL LIMIT,Equipment-purchase and rental,-8.00,0.00,-8.00
Children and Adult Services,Planning & Service Strategy,Training - Provider Services,Income,Fees and Charges,14-Jun-2016,COUNTY COURT,Fees-legal,100.00,0.00,100.00
Neighbourhood Services,Direct Services,Catering - County Hall Restaurant,Supplies and Services,Provisions,14-Jun-2016,JR HOLLAND FOODSERVICE,Catering costs - provisions,91.57,0.00,91.57
Neighbourhood Services,Direct Services,Catering - County Hall Restaurant,Supplies and Services,Provisions,14-Jun-2016,JR HOLLAND FOODSERVICE,Catering costs - provisions,55.61,0.00,55.61
Neighbourhood Services,Direct Services,Catering - County Hall Restaurant,Supplies and Services,Provisions,14-Jun-2016,JR HOLLAND FOODSERVICE,Catering costs - provisions,6.58,0.00,6.58
Neighbourhood Services,Culture & Sport,Gala Theatre - Catering etc,Supplies and Services,Provisions,14-Jun-2016,JR HOLLAND FOODSERVICE,Catering costs - provisions,27.36,0.00,27.36
Neighbourhood Services,Culture & Sport,Gala Theatre - Catering etc,Supplies and Services,Provisions,14-Jun-2016,BRAKE BROS LTD,Catering costs - provisions,83.46,13.91,69.55
Neighbourhood Services,Culture & Sport,Gala Theatre - Catering etc,Supplies and Services,Provisions,14-Jun-2016,BRAKE BROS LTD,Catering costs - provisions,68.45,,68.45
Children and Adult Services,Childrens Services,Framwellgate Moor CU,Supplies and Services,Newspapers Books and Periodicals,14-Jun-2016,Amazon UK Marketplace,Books-school library,30.12,0.00,30.12
Children and Adult Services,Childrens Services,Framwellgate Moor CU,Supplies and Services,Provisions,14-Jun-2016,ASDA HOME SHOPPING,Catering costs - provisions,152.12,0.00,152.12
Children and Adult Services,Childrens Services,Framwellgate Moor CU,Supplies and Services,Provisions,14-Jun-2016,ASDA HOME SHOPPING,Catering costs - provisions,-0.38,0.00,-0.38
Children and Adult Services,Childrens Services,Ferryhill and Newton Aycliffe Locality,Supplies and Services,Provisions,14-Jun-2016,ASDA SUPERSTORE 4987,Catering costs - provisions,4.10,0.00,4.10
Neighbourhood Services,Direct Services,Fleet - Chilton Fleet,Transport,Running Costs of Vehicles,14-Jun-2016,DVLA VEHICLE TAX,Vehicle Excise Duty (VED),652.50,0.00,652.50
Neighbourhood Services,Direct Services,Fleet - Meadowfield Fleet,Transport,Running Costs of Vehicles,14-Jun-2016,DVLA VEHICLE TAX,Vehicle Excise Duty (VED),167.50,0.00,167.50
Neighbourhood Services,Direct Services,Fleet - Chilton Fleet,Transport,Running Costs of Vehicles,14-Jun-2016,DVLA VEHICLE TAX,Vehicle Excise Duty (VED),652.50,0.00,652.50
Neighbourhood Services,Direct Services,Fleet - Chilton Fleet,Transport,Running Costs of Vehicles,14-Jun-2016,DVLA VEHICLE TAX,Vehicle Excise Duty (VED),652.50,0.00,652.50
Neighbourhood Services,Direct Services,Fleet - Chilton Fleet,Transport,Running Costs of Vehicles,14-Jun-2016,DVLA VEHICLE TAX,Vehicle Excise Duty (VED),202.50,0.00,202.50
Neighbourhood Services,Direct Services,Fleet - Chilton Fleet,Transport,Running Costs of Vehicles,14-Jun-2016,DVLA VEHICLE TAX,Vehicle Excise Duty (VED),212.50,0.00,212.50
Neighbourhood Services,Direct Services,Fleet - Morrison Busty Fleet,Transport,Running Costs of Vehicles,14-Jun-2016,DVLA VEHICLE TAX,Vehicle Excise Duty (VED),232.50,0.00,232.50
Neighbourhood Services,Direct Services,Fleet - Morrison Busty Fleet,Transport,Running Costs of Vehicles,14-Jun-2016,DVLA VEHICLE TAX,Vehicle Excise Duty (VED),652.50,0.00,652.50
Neighbourhood Services,Direct Services,Fleet - Chilton Fleet,Transport,Running Costs of Vehicles,14-Jun-2016,DVLA VEHICLE TAX,Vehicle Excise Duty (VED),652.50,0.00,652.50
Neighbourhood Services,Direct Services,Fleet - Meadowfield Fleet,Transport,Running Costs of Vehicles,14-Jun-2016,DVLA VEHICLE TAX,Vehicle Excise Duty (VED),212.50,0.00,212.50
Neighbourhood Services,Direct Services,Fleet - Chilton Fleet,Transport,Running Costs of Vehicles,14-Jun-2016,DVLA VEHICLE TAX,Vehicle Excise Duty (VED),232.50,0.00,232.50
Neighbourhood Services,Direct Services,Fleet - Chilton Fleet,Transport,Running Costs of Vehicles,14-Jun-2016,DVLA VEHICLE TAX,Vehicle Excise Duty (VED),652.50,0.00,652.50
Neighbourhood Services,Direct Services,Fleet - Meadowfield Fleet,Transport,Running Costs of Vehicles,14-Jun-2016,DVLA VEHICLE TAX,Vehicle Excise Duty (VED),232.50,0.00,232.50
Neighbourhood Services,Direct Services,Fleet - Hackworth Road Fleet,Transport,Running Costs of Vehicles,14-Jun-2016,DVLA VEHICLE TAX,Vehicle Excise Duty (VED),652.50,0.00,652.50
Neighbourhood Services,Direct Services,Fleet - Morrison Busty Fleet,Transport,Running Costs of Vehicles,14-Jun-2016,DVLA VEHICLE TAX,Vehicle Excise Duty (VED),652.50,0.00,652.50
Neighbourhood Services,Direct Services,Fleet - Morrison Busty Fleet,Transport,Running Costs of Vehicles,14-Jun-2016,DVLA VEHICLE TAX,Vehicle Excise Duty (VED),202.50,0.00,202.50
Neighbourhood Services,Direct Services,Fleet - Morrison Busty Fleet,Transport,Running Costs of Vehicles,14-Jun-2016,DVLA VEHICLE TAX,Vehicle Excise Duty (VED),167.50,0.00,167.50
Neighbourhood Services,Direct Services,Fleet - Hackworth Road Fleet,Transport,Running Costs of Vehicles,14-Jun-2016,DVLA VEHICLE TAX,Vehicle Excise Duty (VED),232.50,0.00,232.50
Neighbourhood Services,Direct Services,Fleet - Meadowfield Fleet,Transport,Running Costs of Vehicles,14-Jun-2016,DVLA VEHICLE TAX,Vehicle Excise Duty (VED),232.50,0.00,232.50
Neighbourhood Services,Direct Services,Fleet - Chilton Fleet,Transport,Running Costs of Vehicles,14-Jun-2016,DVLA VEHICLE TAX,Vehicle Excise Duty (VED),652.50,0.00,652.50
Neighbourhood Services,Direct Services,Fleet - Chilton Fleet,Transport,Running Costs of Vehicles,14-Jun-2016,DVLA VEHICLE TAX,Vehicle Excise Duty (VED),232.50,0.00,232.50
Neighbourhood Services,Direct Services,Fleet - Meadowfield Fleet,Transport,Running Costs of Vehicles,14-Jun-2016,DVLA VEHICLE TAX,Vehicle Excise Duty (VED),187.50,0.00,187.50
Neighbourhood Services,Direct Services,Fleet - Meadowfield Fleet,Transport,Running Costs of Vehicles,14-Jun-2016,DVLA VEHICLE TAX,Vehicle Excise Duty (VED),232.50,0.00,232.50
Neighbourhood Services,Direct Services,Fleet - Chilton Fleet,Transport,Running Costs of Vehicles,14-Jun-2016,DVLA VEHICLE TAX,Vehicle Excise Duty (VED),652.50,0.00,652.50
Neighbourhood Services,Direct Services,Fleet - Chilton Fleet,Transport,Running Costs of Vehicles,14-Jun-2016,DVLA VEHICLE TAX,Vehicle Excise Duty (VED),652.50,0.00,652.50
Neighbourhood Services,Direct Services,Fleet - Hackworth Road Fleet,Transport,Running Costs of Vehicles,14-Jun-2016,DVLA VEHICLE TAX,Vehicle Excise Duty (VED),232.50,0.00,232.50
Neighbourhood Services,Direct Services,Fleet - Meadowfield Fleet,Transport,Running Costs of Vehicles,14-Jun-2016,DVLA VEHICLE TAX,Vehicle Excise Duty (VED),232.50,0.00,232.50
Neighbourhood Services,Direct Services,Fleet - Chilton Fleet,Transport,Running Costs of Vehicles,14-Jun-2016,DVLA VEHICLE TAX,Vehicle Excise Duty (VED),232.50,0.00,232.50
Neighbourhood Services,Direct Services,Fleet - Chilton Fleet,Transport,Running Costs of Vehicles,14-Jun-2016,DVLA VEHICLE TAX,Vehicle Excise Duty (VED),232.50,0.00,232.50
Neighbourhood Services,Direct Services,Fleet - Chilton Fleet,Transport,Running Costs of Vehicles,14-Jun-2016,DVLA VEHICLE TAX,Vehicle Excise Duty (VED),212.50,0.00,212.50
Neighbourhood Services,Direct Services,Fleet - Hackworth Road Fleet,Transport,Running Costs of Vehicles,14-Jun-2016,DVLA VEHICLE TAX,Vehicle Excise Duty (VED),232.50,0.00,232.50
Neighbourhood Services,Direct Services,Fleet - Meadowfield Fleet,Transport,Running Costs of Vehicles,14-Jun-2016,DVLA VEHICLE TAX,Vehicle Excise Duty (VED),232.50,0.00,232.50
Neighbourhood Services,Direct Services,Fleet - Hackworth Road Fleet,Transport,Running Costs of Vehicles,14-Jun-2016,DVLA VEHICLE TAX,Vehicle Excise Duty (VED),232.50,0.00,232.50
Neighbourhood Services,Direct Services,Fleet - Hackworth Road Fleet,Transport,Running Costs of Vehicles,14-Jun-2016,DVLA VEHICLE TAX,Vehicle Excise Duty (VED),232.50,0.00,232.50
Neighbourhood Services,Direct Services,Fleet - Meadowfield Fleet,Transport,Running Costs of Vehicles,14-Jun-2016,DVLA VEHICLE TAX,Vehicle Excise Duty (VED),167.50,0.00,167.50
Neighbourhood Services,Direct Services,Fleet - Meadowfield Fleet,Transport,Running Costs of Vehicles,14-Jun-2016,DVLA VEHICLE TAX,Vehicle Excise Duty (VED),167.50,0.00,167.50
Neighbourhood Services,Direct Services,Fleet - Morrison Busty Fleet,Transport,Running Costs of Vehicles,14-Jun-2016,DVLA VEHICLE TAX,Vehicle Excise Duty (VED),202.50,0.00,202.50
Neighbourhood Services,Direct Services,Fleet - Chilton Fleet,Transport,Running Costs of Vehicles,14-Jun-2016,DVLA VEHICLE TAX,Vehicle Excise Duty (VED),232.50,0.00,232.50
Regeneration & Economic Development,Economic Development and Housing,Employability - Youth Contract,Supplies and Services,Equipment and Materials,14-Jun-2016,GRO HM PASSPORT OFFICE,Equipment-purchase and rental,9.25,0.00,9.25
Children and Adult Services,Childrens Services,Support Services,Supplies and Services,Clothing Uniforms and Laundry,14-Jun-2016,NEXT DIRECTORY,Clothing uniforms and laundry,31.99,0.00,31.99
Neighbourhood Services,Direct Services,C&G - North Grounds Maintenance,Supplies and Services,Equipment and Materials,14-Jun-2016,BESCOL,Other consumables,134.69,22.45,112.24
Neighbourhood Services,Culture & Sport,Hardwick Park Catering,Supplies and Services,Provisions,14-Jun-2016,JR HOLLAND FOODSERVICE,Catering costs - provisions,54.65,0.00,54.65
Neighbourhood Services,Culture & Sport,Hardwick Park Catering,Supplies and Services,Provisions,14-Jun-2016,JR HOLLAND FOODSERVICE,Catering costs - provisions,9.02,0.00,9.02
Neighbourhood Services,Culture & Sport,Hardwick Park Catering,Supplies and Services,Provisions,14-Jun-2016,JR HOLLAND FOODSERVICE,Catering costs - provisions,4.16,0.00,4.16
Neighbourhood Services,Culture & Sport,Hardwick Park Catering,Supplies and Services,Provisions,14-Jun-2016,BRAKE BROS LTD,Catering costs - provisions,59.04,9.84,49.20
Neighbourhood Services,Culture & Sport,Hardwick Park Catering,Supplies and Services,Provisions,14-Jun-2016,BRAKE BROS LTD,Catering costs - provisions,94.30,,94.30
Neighbourhood Services,Direct Services,Catering - Green Lane Canteen,Supplies and Services,Provisions,14-Jun-2016,BRAKE BROS LTD,Catering costs - provisions,21.60,3.60,18.00
Neighbourhood Services,Direct Services,Catering - Green Lane Canteen,Supplies and Services,Provisions,14-Jun-2016,BRAKE BROS LTD,Catering costs - provisions,307.73,,307.73
Children and Adult Services,Childrens Services,Tow Law CU,Supplies and Services,Furniture,14-Jun-2016,POUNDSTRETCHER 692,Furniture repair and replacement,51.08,0.00,51.08
Children and Adult Services,Childrens Services,Tow Law CU,Supplies and Services,Provisions,14-Jun-2016,ASDA STORES,Catering costs - provisions,81.85,0.00,81.85
Children and Adult Services,Childrens Services,Bishop Auckland Teenage Parent Programme,Supplies and Services,Provisions,14-Jun-2016,ASDA STORES,Catering costs - provisions,7.75,0.00,7.75
Neighbourhood Services,Direct Services,C&G - South Grounds Maintenance,Supplies and Services,Equipment and Materials,14-Jun-2016,MAXWELLS D I Y,Other consumables,22.96,0.00,22.96
Children and Adult Services,Childrens Services,Middlestone Moor CU,Supplies and Services,Provisions,14-Jun-2016,TESCO STORES 2916,Catering costs - provisions,14.18,0.00,14.18
Children and Adult Services,Childrens Services,Consett and Stanley Locality,Supplies and Services,Miscellaneous Expenses,14-Jun-2016,WWW.BEAMISH.ORG.UK,Other expenses,48.50,0.00,48.50
Resources,I.C.T. Services,Administration,Transport,Public Transport,14-Jun-2016,OYSTER RENEW WEB,Staff travelling,50.00,0.00,50.00
Resources,I.C.T. Services,Administration,Supplies and Services,Conference Expenses,14-Jun-2016,HILTON,Conferencesseminars fees etc,124.00,0.00,124.00
Resources,I.C.T. Services,Administration,Supplies and Services,Conference Expenses,14-Jun-2016,HILTON,Conferencesseminars fees etc,146.00,0.00,146.00
Neighbourhood Services,Culture & Sport,Events,Supplies and Services,Newspapers Books and Periodicals,14-Jun-2016,Amazon UK Marketplace,Books-school library,286.98,0.00,286.98
Neighbourhood Services,Direct Services,C&G - North Grounds Maintenance,Supplies and Services,Provisions,14-Jun-2016,J VAN VLIET GATESHEAD,Catering costs - provisions,85.68,14.28,71.40
Neighbourhood Services,Culture & Sport,Bp Auckland Town Hall Cafe,Supplies and Services,Provisions,14-Jun-2016,JR HOLLAND FOODSERVICE,Catering costs - provisions,12.10,0.00,12.10
Neighbourhood Services,Direct Services,Catering - Service Direct,Supplies and Services,Provisions,14-Jun-2016,BRAKE BROS LTD,Catering costs - provisions,53.57,0.00,53.57
Children and Adult Services,Childrens Services,Durham and Chester Le Street Locality,Supplies and Services,Provisions,14-Jun-2016,TESCO STORES 2371,Catering costs - provisions,12.27,0.00,12.27
Neighbourhood Services,Direct Services,C&G - North Grounds Maintenance,Supplies and Services,Newspapers Books and Periodicals,14-Jun-2016,TOOLSTATION LTD,Books-school library,54.98,9.16,45.82
Children and Adult Services,Childrens Services,Ferryhill 0 - 5,Supplies and Services,Provisions,14-Jun-2016,ASDA SUPERSTORE 4987,Catering costs - provisions,9.94,0.00,9.94
Neighbourhood Services,Culture & Sport,Wellbeing4Life,Supplies and Services,Clothing Uniforms and Laundry,14-Jun-2016,B&M RETAIL LTD,Clothing uniforms and laundry,14.15,0.00,14.15
Children and Adult Services,Childrens Services,Ferryhill 0 - 5,Supplies and Services,Clothing Uniforms and Laundry,14-Jun-2016,THE RANGE,Clothing uniforms and laundry,15.96,0.00,15.96
Children and Adult Services,Childrens Services,Laurel Avenue Childrens Centre,Supplies and Services,Provisions,14-Jun-2016,TESCO STORES 2371,Catering costs - provisions,11.31,0.00,11.31
Neighbourhood Services,Culture & Sport,Woodhouse Close Leisure Complex,Supplies and Services,Provisions,14-Jun-2016,JR HOLLAND FOODSERVICE,Catering costs - provisions,2.38,0.00,2.38
Assistant Chief Executive,Policy & Communications Division,Corporate Policy,Supplies and Services,Printing Stationery and Gen Off Exps,14-Jun-2016,WP-EMBLEMATIC,Stationery,44.00,0.00,44.00
Assistant Chief Executive,Policy & Communications Division,Corporate Policy,Supplies and Services,Equipment and Materials,14-Jun-2016,WILKO DURHAM 426,Equipment-purchase and rental,-8.00,0.00,-8.00
Regeneration & Economic Development,Economic Development and Housing,Employability - Youth Contract,Supplies and Services,Clothing Uniforms and Laundry,14-Jun-2016,SSELECT,Clothing uniforms and laundry,45.01,0.00,45.01
Children and Adult Services,Childrens Services,Families First Seaham,Supplies and Services,Printing Stationery and Gen Off Exps,14-Jun-2016,AMAZON UK RETAIL AMAZO,Stationery,7.63,0.00,7.63
Regeneration & Economic Development,Economic Development and Housing,Business Growth and Innovation General,Supplies and Services,Computers and Communications,14-Jun-2016,WATCHFULPAYPAL,Computer hardware,14.09,0.00,14.09
Children and Adult Services,Childrens Services,Support Services,Supplies and Services,Equipment and Materials,14-Jun-2016,SPORTSDIRECT.COM,Equipment-purchase and rental,22.99,3.83,19.16
Resources,I.C.T. Services,Administration,Supplies and Services,Conference Expenses,14-Jun-2016,RAMADA PLAZA SOUTHPORT,Conferencesseminars fees etc,138.00,0.00,138.00
Neighbourhood Services,Direct Services,C&G - North Grounds Maintenance,Supplies and Services,Equipment and Materials,14-Jun-2016,HSS HIRE,Direct materials,-91.82,-15.30,-76.52
Neighbourhood Services,Direct Services,C&G - North Grounds Maintenance,Supplies and Services,Equipment and Materials,14-Jun-2016,HSS HIRE,Direct materials,-91.82,-15.30,-76.52
Resources,Financial Services,Collections,Supplies and Services,Miscellaneous Expenses,14-Jun-2016,HALFORDS ON LINE,Other expenses,44.94,7.49,37.45
Resources,Financial Services,Collections,Supplies and Services,Miscellaneous Expenses,14-Jun-2016,HALFORDS ON LINE,Other expenses,54.04,,54.04
Children and Adult Services,Education,Selby Cottage Childcare Centre,Supplies and Services,Provisions,15-Jun-2016,TESCO STORES 2278,Catering costs - provisions,12.20,0.00,12.20
Neighbourhood Services,Direct Services,Nei.Prot - Countywide Civic Pride,Supplies and Services,Miscellaneous Expenses,15-Jun-2016,Amazon UK Marketplace,Other expenses,5.96,0.00,5.96
Neighbourhood Services,Direct Services,Fleet - Chilton Fleet,Supplies and Services,Printing Stationery and Gen Off Exps,15-Jun-2016,Amazon UK Marketplace,Stationery,41.96,0.00,41.96
Neighbourhood Services,Direct Services,Nei.Prot - Countywide Civic Pride,Supplies and Services,Miscellaneous Expenses,15-Jun-2016,Amazon UK Marketplace,Other expenses,2.19,0.00,2.19
Children and Adult Services,Childrens Services,9 Cedar Drive Aycliffe,Supplies and Services,Equipment and Materials,15-Jun-2016,SCREWFIX DIRECT,Equipment-purchase and rental,249.96,41.66,208.30
Children and Adult Services,Childrens Services,9 Cedar Drive Aycliffe,Supplies and Services,Equipment and Materials,15-Jun-2016,SCREWFIX DIRECT,Equipment-purchase and rental,0.03,,0.03
Children and Adult Services,Childrens Services,9 Cedar Drive Aycliffe,Supplies and Services,Clothing Uniforms and Laundry,15-Jun-2016,ARGOS LTD,Clothing uniforms and laundry,16.99,0.00,16.99
Children and Adult Services,Childrens Services,9 Cedar Drive Aycliffe,Supplies and Services,Provisions,15-Jun-2016,TESCO STORES 2916,Catering costs - provisions,22.00,0.00,22.00
Children and Adult Services,Childrens Services,9 Cedar Drive Aycliffe,Supplies and Services,Clothing Uniforms and Laundry,15-Jun-2016,ARGOS LTD,Clothing uniforms and laundry,6.50,1.08,5.42
Neighbourhood Services,Direct Services,Nei.Prot - Countywide Civic Pride,Supplies and Services,Miscellaneous Expenses,15-Jun-2016,Amazon UK Marketplace,Other expenses,-49.96,0.00,-49.96
Neighbourhood Services,Direct Services,Catering - County Hall Restaurant,Supplies and Services,Provisions,15-Jun-2016,JR HOLLAND FOODSERVICE,Catering costs - provisions,87.91,0.00,87.91
Neighbourhood Services,Direct Services,Catering - County Hall Restaurant,Supplies and Services,Provisions,15-Jun-2016,JR HOLLAND FOODSERVICE,Catering costs - provisions,31.35,0.00,31.35
Neighbourhood Services,Direct Services,Catering - County Hall Restaurant,Supplies and Services,Provisions,15-Jun-2016,JR HOLLAND FOODSERVICE,Catering costs - provisions,25.84,0.00,25.84
Neighbourhood Services,Direct Services,Catering - County Hall Restaurant,Supplies and Services,Provisions,15-Jun-2016,BRAKE BROS LTD,Catering costs - provisions,150.96,25.16,125.80
Neighbourhood Services,Direct Services,Catering - County Hall Restaurant,Supplies and Services,Provisions,15-Jun-2016,BRAKE BROS LTD,Catering costs - provisions,265.90,,265.90
Neighbourhood Services,Direct Services,Catering - County Hall Restaurant,Supplies and Services,Provisions,15-Jun-2016,BRAKE BROS LTD,Catering costs - provisions,175.76,0.00,175.76
Children and Adult Services,Head of Adults,Substance Misuse,Supplies and Services,Equipment and Materials,15-Jun-2016,GO NORTH EAST - V/T,Other consumables,105.84,0.00,105.84
Children and Adult Services,Head of Adults,Substance Misuse,Supplies and Services,Equipment and Materials,15-Jun-2016,ARRIVA PASSENGER S,Other consumables,92.00,0.00,92.00
Children and Adult Services,Childrens Services,Support Services,Supplies and Services,Clothing Uniforms and Laundry,15-Jun-2016,PAYPAL 2SQUAREDRET,Clothing uniforms and laundry,44.00,0.00,44.00
Children and Adult Services,Childrens Services,Support Services,Supplies and Services,Newspapers Books and Periodicals,15-Jun-2016,Amazon EU,Books-school library,8.00,0.00,8.00
Children and Adult Services,Childrens Services,Support Services,Supplies and Services,Newspapers Books and Periodicals,15-Jun-2016,Amazon EU,Books-school library,5.59,0.00,5.59
Children and Adult Services,Childrens Services,Support Services,Supplies and Services,Provisions,15-Jun-2016,TESCO STORES 6329,Catering costs - provisions,92.74,0.00,92.74
Neighbourhood Services,Culture & Sport,Hardwick Park Catering,Supplies and Services,Provisions,15-Jun-2016,JR HOLLAND FOODSERVICE,Catering costs - provisions,47.36,0.00,47.36
Neighbourhood Services,Culture & Sport,Hardwick Park Catering,Supplies and Services,Provisions,15-Jun-2016,BRAKE BROS LTD,Catering costs - provisions,10.86,1.81,9.05
Neighbourhood Services,Culture & Sport,Hardwick Park Catering,Supplies and Services,Provisions,15-Jun-2016,BRAKE BROS LTD,Catering costs - provisions,176.71,,176.71
Neighbourhood Services,Direct Services,Catering - Green Lane Canteen,Supplies and Services,Provisions,15-Jun-2016,JR HOLLAND FOODSERVICE,Catering costs - provisions,30.60,0.00,30.60
Neighbourhood Services,Direct Services,Catering - Green Lane Canteen,Supplies and Services,Provisions,15-Jun-2016,JR HOLLAND FOODSERVICE,Catering costs - provisions,1.50,0.00,1.50
Children and Adult Services,Childrens Services,Bishop Auckland 0 - 5,Supplies and Services,Provisions,15-Jun-2016,SAINSBURYS LOC4623,Catering costs - provisions,7.75,0.00,7.75
Children and Adult Services,Childrens Services,Bishop Auckland 0 - 5,Supplies and Services,Provisions,15-Jun-2016,TESCO STORES 6329,Catering costs - provisions,14.21,0.00,14.21
Children and Adult Services,Childrens Services,Middlestone Moor CU,Supplies and Services,Provisions,15-Jun-2016,TESCO STORES 2371,Catering costs - provisions,162.54,0.00,162.54
Children and Adult Services,Childrens Services,Coxhoe Satelite Home,Supplies and Services,Provisions,15-Jun-2016,ASDA SUPERSTORE 4987,Catering costs - provisions,68.62,0.00,68.62
Regeneration & Economic Development,Spatial Policy Planning Assets & Environment,North Pennines - Peatscapes,Supplies and Services,Printing Stationery and Gen Off Exps,15-Jun-2016,Amazon UK Marketplace,Stationery,23.62,0.00,23.62
Regeneration & Economic Development,Spatial Policy Planning Assets & Environment,North Pennines Nectarworks,Supplies and Services,Printing Stationery and Gen Off Exps,15-Jun-2016,Amazon EU,Stationery,14.85,0.00,14.85
Regeneration & Economic Development,Spatial Policy Planning Assets & Environment,North Pennines - Cold Blooded & Spineless,Supplies and Services,Newspapers Books and Periodicals,15-Jun-2016,Wordery,Books-school library,20.76,0.00,20.76
Regeneration & Economic Development,Spatial Policy Planning Assets & Environment,North Pennines Allen Valleys Landscape Partnership,Transport,Public Transport,15-Jun-2016,TRAINLINE,Staff travelling,46.41,0.00,46.41
Regeneration & Economic Development,Spatial Policy Planning Assets & Environment,North Pennines Allen Valleys Landscape Partnership,Transport,Public Transport,15-Jun-2016,TRAINLINE,Staff travelling,45.39,0.00,45.39
Regeneration & Economic Development,Spatial Policy Planning Assets & Environment,North Pennines Allen Valleys Landscape Partnership,Transport,Public Transport,15-Jun-2016,TRAINLINE,Staff travelling,-43.00,0.00,-43.00
Resources,I.C.T. Services,Administration,Supplies and Services,Equipment and Materials,15-Jun-2016,WWW.ICO.GOV.UK,Equipment-purchase and rental,35.00,0.00,35.00
Resources,I.C.T. Services,Administration,Supplies and Services,Conference Expenses,15-Jun-2016,HILTON,Conferencesseminars fees etc,146.00,0.00,146.00
Neighbourhood Services,Culture & Sport,Bp Auckland Town Hall Cafe,Supplies and Services,Provisions,15-Jun-2016,JR HOLLAND FOODSERVICE,Catering costs - provisions,17.12,0.00,17.12
Neighbourhood Services,Direct Services,Catering - Service Direct,Supplies and Services,Provisions,15-Jun-2016,JR HOLLAND FOODSERVICE,Catering costs - provisions,43.39,0.00,43.39
Neighbourhood Services,Direct Services,Catering - Service Direct,Supplies and Services,Provisions,15-Jun-2016,JR HOLLAND FOODSERVICE,Catering costs - provisions,13.45,0.00,13.45
Neighbourhood Services,Direct Services,Catering - Service Direct,Supplies and Services,Provisions,15-Jun-2016,BRAKE BROS LTD,Catering costs - provisions,80.76,13.46,67.30
Neighbourhood Services,Direct Services,Catering - Service Direct,Supplies and Services,Provisions,15-Jun-2016,BRAKE BROS LTD,Catering costs - provisions,111.16,,111.16
Neighbourhood Services,Direct Services,C&G - North Grounds Maintenance,Supplies and Services,Newspapers Books and Periodicals,15-Jun-2016,TOOLSTATION LTD,Books-school library,8.90,1.48,7.42
Neighbourhood Services,Direct Services,C&G - North Grounds Maintenance,Supplies and Services,Equipment and Materials,15-Jun-2016,GUSTHARTS CHAINSAW CTR,Misc equipment tools and materials,491.18,81.86,409.32
Neighbourhood Services,Culture & Sport,Woodhouse Close Leisure Complex,Supplies and Services,Provisions,15-Jun-2016,JR HOLLAND FOODSERVICE,Catering costs - provisions,30.03,0.00,30.03
Neighbourhood Services,Culture & Sport,Woodhouse Close Leisure Complex,Supplies and Services,Provisions,15-Jun-2016,BRAKE BROS LTD,Catering costs - provisions,63.16,0.00,63.16
Children and Adult Services,Childrens Services,Support Services,Supplies and Services,Clothing Uniforms and Laundry,15-Jun-2016,NEW LOOK INTERNET,Clothing uniforms and laundry,13.98,0.00,13.98
Children and Adult Services,Childrens Services,Support Services,Supplies and Services,Clothing Uniforms and Laundry,15-Jun-2016,TESCO CLOTHING UK,Clothing uniforms and laundry,9.95,0.00,9.95
Children and Adult Services,Childrens Services,Coxhoe Satelite Home,Supplies and Services,Provisions,15-Jun-2016,ALDI,Catering costs - provisions,30.67,0.00,30.67
Resources,I.C.T. Services,Administration,Supplies and Services,Equipment and Materials,15-Jun-2016,AMAZON UK RETAIL AMAZO,Other consumables,15.90,0.00,15.90
Regeneration & Economic Development,Economic Development and Housing,Business Growth and Innovation General,Supplies and Services,Computers and Communications,16-Jun-2016,WATCHFULPAYPAL,Computer hardware,0.39,0.00,0.39
Children and Adult Services,Education,Selby Cottage Childcare Centre,Supplies and Services,Furniture,16-Jun-2016,IKEA SACAT,Furniture repair and replacement,377.00,0.00,377.00
Children and Adult Services,Education,Selby Cottage Childcare Centre,Supplies and Services,Provisions,16-Jun-2016,TESCO STORES 2278,Catering costs - provisions,6.05,0.00,6.05
Regeneration & Economic Development,Economic Development and Housing,Wembley Phase 2 (John & Thomas Street),Income,Fees and Charges,16-Jun-2016,HMCOURT-SERVICES.G,Fees-legal,100.00,0.00,100.00
Regeneration & Economic Development,Economic Development and Housing,Business Growth and Innovation General,Supplies and Services,Newspapers Books and Periodicals,16-Jun-2016,FASTHOSTS INTERNET,Books-school library,7.18,1.20,5.98
Regeneration & Economic Development,Economic Development and Housing,Business Growth and Innovation General,Supplies and Services,Newspapers Books and Periodicals,16-Jun-2016,FASTHOSTS INTERNET,Books-school library,13.19,2.20,10.99
Regeneration & Economic Development,Economic Development and Housing,Business Growth and Innovation General,Supplies and Services,Newspapers Books and Periodicals,16-Jun-2016,FASTHOSTS INTERNET,Books-school library,7.18,1.20,5.98
Regeneration & Economic Development,Economic Development and Housing,Group Repair,Income,Fees and Charges,16-Jun-2016,HMCOURT-SERVICES.G,Fees-legal,100.00,0.00,100.00
Resources,Financial Services,Collections,Income,Fees and Charges,16-Jun-2016,WWW.MONEYCLAIM.GOV,Fees-legal,507.74,0.00,507.74
Children and Adult Services,Education,EYDCP-Sustainability EDS,Supplies and Services,Miscellaneous Expenses,16-Jun-2016,Amazon UK Marketplace,Other expenses,11.97,0.00,11.97
Neighbourhood Services,Direct Services,Catering - County Hall Restaurant,Supplies and Services,Provisions,16-Jun-2016,JR HOLLAND FOODSERVICE,Catering costs - provisions,69.44,0.00,69.44
Neighbourhood Services,Direct Services,Catering - County Hall Restaurant,Supplies and Services,Provisions,16-Jun-2016,JR HOLLAND FOODSERVICE,Catering costs - provisions,34.10,0.00,34.10
Neighbourhood Services,Direct Services,Catering - County Hall Restaurant,Supplies and Services,Provisions,16-Jun-2016,JR HOLLAND FOODSERVICE,Catering costs - provisions,13.16,0.00,13.16
Neighbourhood Services,Direct Services,Catering - County Hall Restaurant,Supplies and Services,Provisions,16-Jun-2016,JR HOLLAND FOODSERVICE,Catering costs - provisions,6.24,0.00,6.24
Neighbourhood Services,Culture & Sport,Bp Auckland Town Hall Library,Supplies and Services,Newspapers Books and Periodicals,16-Jun-2016,HOME BARGAINS,Books-school library,9.15,0.00,9.15
Neighbourhood Services,Culture & Sport,Gala Theatre - Catering etc,Supplies and Services,Provisions,16-Jun-2016,JR HOLLAND FOODSERVICE,Catering costs - provisions,42.92,0.00,42.92
Neighbourhood Services,Culture & Sport,Gala Theatre - Catering etc,Supplies and Services,Provisions,16-Jun-2016,JR HOLLAND FOODSERVICE,Catering costs - provisions,1.86,0.00,1.86
Neighbourhood Services,Culture & Sport,Office Services,Supplies and Services,Advertising,16-Jun-2016,TWITTER ADVERTISING,Advertising other than for staff,50.00,0.00,50.00
Regeneration & Economic Development,Economic Development and Housing,Employability - Youth Contract,Transport,Public Transport,16-Jun-2016,ARRIVA PASSENGER S,Contract tickets,85.50,0.00,85.50
Neighbourhood Services,Culture & Sport,Active4Life,Supplies and Services,Miscellaneous Expenses,16-Jun-2016,Amazon UK Marketplace,Other expenses,53.98,0.00,53.98
Children and Adult Services,Childrens Services,Support Services,Supplies and Services,Provisions,16-Jun-2016,TESCO STORES 6329,Catering costs - provisions,58.57,0.00,58.57
Neighbourhood Services,Direct Services,C&G - North Grounds Maintenance,Supplies and Services,Newspapers Books and Periodicals,16-Jun-2016,GRALANDS WOODWORK SUPP,Books-school library,38.50,6.42,32.08
Neighbourhood Services,Culture & Sport,Hardwick Park Catering,Supplies and Services,Provisions,16-Jun-2016,JR HOLLAND FOODSERVICE,Catering costs - provisions,17.40,0.00,17.40
Neighbourhood Services,Culture & Sport,Hardwick Park Catering,Supplies and Services,Provisions,16-Jun-2016,JR HOLLAND FOODSERVICE,Catering costs - provisions,4.16,0.00,4.16
Resources,I.C.T. Services,Operations - System & Repairs Team,Supplies and Services,Computers and Communications,16-Jun-2016,WWW.HARDWAREXPRESS,Computer hardware,33.98,5.66,28.32
Regeneration & Economic Development,Economic Development and Housing,Durham Works Flexible Fund,Supplies and Services,Clothing Uniforms and Laundry,16-Jun-2016,MATALAN,Clothing uniforms and laundry,48.05,8.01,40.04
Neighbourhood Services,Projects and Business services,Business Support,Supplies and Services,Subsistence,16-Jun-2016,PREZZO,Subsistence,40.83,6.81,34.02
Resources,I.C.T. Services,Administration,Supplies and Services,Equipment and Materials,16-Jun-2016,WWW.ICO.GOV.UK,Equipment-purchase and rental,35.00,0.00,35.00
Resources,I.C.T. Services,Administration,Supplies and Services,Equipment and Materials,16-Jun-2016,WWW.ICO.GOV.UK,Equipment-purchase and rental,35.00,0.00,35.00
Children and Adult Services,Childrens Services,Bishop Auckland and Barnard Castle Locality,Supplies and Services,Newspapers Books and Periodicals,16-Jun-2016,Amazon UK Marketplace,Books-school library,43.60,0.00,43.60
Children and Adult Services,Childrens Services,Ferryhill 0 - 5,Supplies and Services,Equipment and Materials,16-Jun-2016,WILKO DURHAM 426,Equipment-purchase and rental,7.05,0.00,7.05
Neighbourhood Services,Culture & Sport,Wellbeing4Life,Supplies and Services,Equipment and Materials,16-Jun-2016,SPORTSDIRECT 264,Equipment-purchase and rental,12.99,0.00,12.99
Neighbourhood Services,Culture & Sport,Woodhouse Close Leisure Complex,Supplies and Services,Provisions,16-Jun-2016,BRAKE BROS LTD,Catering costs - provisions,46.44,7.74,38.70
Neighbourhood Services,Culture & Sport,Woodhouse Close Leisure Complex,Supplies and Services,Provisions,16-Jun-2016,BRAKE BROS LTD,Catering costs - provisions,152.06,,152.06
Resources,I.C.T. Services,Administration,Supplies and Services,Newspapers Books and Periodicals,17-Jun-2016,Amazon UK Marketplace,Books-school library,7.87,0.00,7.87
Children and Adult Services,Education,Selby Cottage Childcare Centre,Supplies and Services,Provisions,17-Jun-2016,TESCO STORES 2278,Catering costs - provisions,39.92,0.00,39.92
Children and Adult Services,Education,Selby Cottage Childcare Centre,Supplies and Services,Provisions,17-Jun-2016,TESCO STORES 2278,Catering costs - provisions,13.20,0.00,13.20
Children and Adult Services,Education,Selby Cottage Childcare Centre,Supplies and Services,Clothing Uniforms and Laundry,17-Jun-2016,B&M RETAIL LTD,Clothing uniforms and laundry,5.90,0.00,5.90
Children and Adult Services,Education,Selby Cottage Childcare Centre,Supplies and Services,Clothing Uniforms and Laundry,17-Jun-2016,POUNDLAND LTD 1330,Clothing uniforms and laundry,8.05,0.00,8.05
Children and Adult Services,Education,Dean Bank Childcare,Income,Fees and Charges,17-Jun-2016,WWW.MONEYCLAIM.GOV,Fees-legal,410.00,0.00,410.00
Regeneration & Economic Development,Economic Development and Housing,Business Growth and Innovation General,Supplies and Services,Equipment and Materials,17-Jun-2016,PatentInspirationEU,Misc equipment tools and materials,78.70,0.00,78.70
Neighbourhood Services,Direct Services,Catering - County Hall Restaurant,Supplies and Services,Provisions,17-Jun-2016,JR HOLLAND FOODSERVICE,Catering costs - provisions,104.84,0.00,104.84
Neighbourhood Services,Direct Services,Catering - County Hall Restaurant,Supplies and Services,Provisions,17-Jun-2016,JR HOLLAND FOODSERVICE,Catering costs - provisions,13.16,0.00,13.16
Neighbourhood Services,Direct Services,Catering - County Hall Restaurant,Supplies and Services,Provisions,17-Jun-2016,BRAKE BROS LTD,Catering costs - provisions,84.96,14.16,70.80
Neighbourhood Services,Direct Services,Catering - County Hall Restaurant,Supplies and Services,Provisions,17-Jun-2016,BRAKE BROS LTD,Catering costs - provisions,125.61,,125.61
Children and Adult Services,Education,Dean Bank Childcare,Supplies and Services,Clothing Uniforms and Laundry,17-Jun-2016,B&M RETAIL LTD,Clothing uniforms and laundry,18.98,0.00,18.98
Children and Adult Services,Education,Dean Bank Childcare,Supplies and Services,Provisions,17-Jun-2016,CO-OP GROUP 010518,Catering costs - provisions,7.48,0.00,7.48
Children and Adult Services,Childrens Services,Support Services,Supplies and Services,Provisions,17-Jun-2016,TESCO STORES 6329,Catering costs - provisions,87.96,0.00,87.96
Neighbourhood Services,Direct Services,C&G - North Grounds Maintenance,Supplies and Services,Equipment and Materials,17-Jun-2016,AZTEC CHEMICALS LTD,Direct materials,180.00,30.00,150.00
Neighbourhood Services,Culture & Sport,Hardwick Park Catering,Supplies and Services,Provisions,17-Jun-2016,JR HOLLAND FOODSERVICE,Catering costs - provisions,22.54,0.00,22.54
Neighbourhood Services,Culture & Sport,Hardwick Park Catering,Supplies and Services,Provisions,17-Jun-2016,BRAKE BROS LTD,Catering costs - provisions,157.80,26.30,131.50
Neighbourhood Services,Culture & Sport,Hardwick Park Catering,Supplies and Services,Provisions,17-Jun-2016,BRAKE BROS LTD,Catering costs - provisions,242.17,,242.17
Neighbourhood Services,Culture & Sport,Hardwick Park Catering,Supplies and Services,Provisions,17-Jun-2016,BRAKE BROS LTD,Catering costs - provisions,171.18,28.53,142.65
Neighbourhood Services,Culture & Sport,Hardwick Park Catering,Supplies and Services,Provisions,17-Jun-2016,BRAKE BROS LTD,Catering costs - provisions,59.07,,59.07
Neighbourhood Services,Culture & Sport,Parks & Countryside,Supplies and Services,Subscriptions,17-Jun-2016,UKTICKETPRINTINGCOUK,Subscriptions,126.18,21.03,105.15
Neighbourhood Services,Direct Services,Catering - Green Lane Canteen,Supplies and Services,Provisions,17-Jun-2016,JR HOLLAND FOODSERVICE,Catering costs - provisions,49.89,0.00,49.89
Neighbourhood Services,Direct Services,C&G - South Grounds Maintenance,Supplies and Services,Equipment and Materials,17-Jun-2016,TUDOR ENVIRONMENTAL,Equipment-purchase and rental,168.00,28.00,140.00
Regeneration & Economic Development,Spatial Policy Planning Assets & Environment,North Pennines - Peatscapes,Supplies and Services,Printing Stationery and Gen Off Exps,17-Jun-2016,Amazon UK Marketplace,Stationery,3.77,0.63,3.14
Resources,I.C.T. Services,Administration,Supplies and Services,Equipment and Materials,17-Jun-2016,SUNDERLAND CC,Equipment-purchase and rental,20.00,0.00,20.00
Resources,I.C.T. Services,Administration,Supplies and Services,Newspapers Books and Periodicals,17-Jun-2016,Amazon UK Marketplace,Books-school library,22.89,0.00,22.89
Neighbourhood Services,Culture & Sport,Bp Auckland Town Hall Cafe,Supplies and Services,Provisions,17-Jun-2016,JR HOLLAND FOODSERVICE,Catering costs - provisions,12.12,0.00,12.12
Regeneration & Economic Development,Transport and Contracted Services,Care Connect All Localities,Supplies and Services,Telephones,17-Jun-2016,BT BILL PAYMENT 2,Telephones general-all costs,97.07,16.18,80.89
Regeneration & Economic Development,Transport and Contracted Services,Care Connect All Localities,Supplies and Services,Telephones,17-Jun-2016,BT BILL PAYMENT 2,Telephones general-all costs,97.07,16.18,80.89
Neighbourhood Services,Direct Services,Catering - Service Direct,Supplies and Services,Provisions,17-Jun-2016,JR HOLLAND FOODSERVICE,Catering costs - provisions,34.79,0.00,34.79
Neighbourhood Services,Direct Services,Catering - Service Direct,Supplies and Services,Provisions,17-Jun-2016,JR HOLLAND FOODSERVICE,Catering costs - provisions,9.87,0.00,9.87
Children and Adult Services,Childrens Services,Dean Bank Childrens Centre,Supplies and Services,Provisions,17-Jun-2016,CO-OP GROUP 010518,Catering costs - provisions,7.64,0.00,7.64
Children and Adult Services,Childrens Services,Durham 5 - 19,Supplies and Services,Newspapers Books and Periodicals,17-Jun-2016,Amazon EU,Books-school library,83.04,0.00,83.04
Children and Adult Services,Childrens Services,Durham 5 - 19,Supplies and Services,Newspapers Books and Periodicals,17-Jun-2016,Amazon EU,Books-school library,167.86,0.00,167.86
Children and Adult Services,Childrens Services,Durham 5 - 19,Supplies and Services,Newspapers Books and Periodicals,17-Jun-2016,Amazon EU,Books-school library,135.32,0.00,135.32
Neighbourhood Services,Culture & Sport,Wharton Park,Supplies and Services,Equipment and Materials,17-Jun-2016,Amazon EU,Materials,21.78,0.00,21.78
Children and Adult Services,Childrens Services,Support Services,Supplies and Services,Provisions,18-Jun-2016,TESCO STORES 6329,Catering costs - provisions,85.87,0.00,85.87
Resources,Resources Management,Resources Management,Supplies and Services,Provisions,18-Jun-2016,TESCO STORES 2371,Catering costs - provisions,32.66,0.00,32.66
Children and Adult Services,Childrens Services,New Lea Childrens Home,Supplies and Services,Provisions,18-Jun-2016,ASDA HOME SHOPPING,Catering costs - provisions,223.09,0.00,223.09
Regeneration & Economic Development,Economic Development and Housing,Employability - Youth Contract,Supplies and Services,Clothing Uniforms and Laundry,19-Jun-2016,JACAMO (INTERNET),Clothing uniforms and laundry,13.50,0.00,13.50
Regeneration & Economic Development,Economic Development and Housing,Employability - Youth Contract,Supplies and Services,Clothing Uniforms and Laundry,19-Jun-2016,JACAMO (INTERNET),Clothing uniforms and laundry,13.50,0.00,13.50
Regeneration & Economic Development,Economic Development and Housing,Employability - Youth Contract,Supplies and Services,Clothing Uniforms and Laundry,19-Jun-2016,JACAMO (INTERNET),Clothing uniforms and laundry,22.50,0.00,22.50
Children and Adult Services,Childrens Services,High Etherley Satelite Home,Supplies and Services,Provisions,19-Jun-2016,TESCO STORES 6329,Catering costs - provisions,32.64,0.00,32.64
Resources,I.C.T. Services,Administration,Supplies and Services,Newspapers Books and Periodicals,19-Jun-2016,Amazon UK Marketplace,Books-school library,162.50,0.00,162.50
Regeneration & Economic Development,Economic Development and Housing,Business Growth and Innovation General,Supplies and Services,Equipment and Materials,20-Jun-2016,PatentInspirationEU,Misc equipment tools and materials,2.16,0.00,2.16
Children and Adult Services,Education,Selby Cottage Childcare Centre,Supplies and Services,Provisions,20-Jun-2016,TESCO STORES 2278,Catering costs - provisions,35.20,0.00,35.20
Neighbourhood Services,EnvironmentHealth & Consumer Protection,Works in Default Holding Code,Income,Fees and Charges,20-Jun-2016,WWW.MONEYCLAIM.GOV,Fees-legal,70.00,0.00,70.00
Children and Adult Services,Childrens Services,9 Cedar Drive Aycliffe,Supplies and Services,Provisions,20-Jun-2016,TESCO STORES 2916,Catering costs - provisions,6.74,0.00,6.74
Neighbourhood Services,Direct Services,Catering - County Hall Restaurant,Supplies and Services,Provisions,20-Jun-2016,BRAMBLES FOODS LTD,Catering costs - provisions,572.61,0.00,572.61
Neighbourhood Services,Direct Services,Catering - County Hall Restaurant,Supplies and Services,Provisions,20-Jun-2016,JR HOLLAND FOODSERVICE,Catering costs - provisions,37.27,0.00,37.27
Neighbourhood Services,Direct Services,Catering - County Hall Restaurant,Supplies and Services,Provisions,20-Jun-2016,JR HOLLAND FOODSERVICE,Catering costs - provisions,13.52,0.00,13.52
Neighbourhood Services,Direct Services,Catering - County Hall Restaurant,Supplies and Services,Provisions,20-Jun-2016,JR HOLLAND FOODSERVICE,Catering costs - provisions,11.02,0.00,11.02
Neighbourhood Services,Direct Services,Catering - County Hall Restaurant,Supplies and Services,Provisions,20-Jun-2016,JR HOLLAND FOODSERVICE,Catering costs - provisions,1.80,0.00,1.80
Neighbourhood Services,Direct Services,Catering - County Hall Restaurant,Supplies and Services,Provisions,20-Jun-2016,BRAKE BROS LTD,Catering costs - provisions,250.24,0.00,250.24
Regeneration & Economic Development,Spatial Policy Planning Assets & Environment,North Pennines - Bowlees,Supplies and Services,Provisions,20-Jun-2016,ALSTON WHOLEFOODS,Catering costs - provisions,8.07,0.00,8.07
Regeneration & Economic Development,Spatial Policy Planning Assets & Environment,North Pennines - Bowlees,Supplies and Services,Equipment and Materials,20-Jun-2016,AMAZON UK RETAIL AMAZO,Equipment-purchase and rental,87.99,0.00,87.99
Regeneration & Economic Development,Spatial Policy Planning Assets & Environment,North Pennines - Bowlees,Supplies and Services,Provisions,20-Jun-2016,CO-OP GROUP 700911,Catering costs - provisions,5.97,0.00,5.97
Neighbourhood Services,Culture & Sport,Office Services,Supplies and Services,Computers and Communications,20-Jun-2016,CREATESEND/COM,Computer software,288.00,0.00,288.00
Regeneration & Economic Development,Economic Development and Housing,Employability - Youth Contract,Transport,Public Transport,20-Jun-2016,GO NORTH EAST - V/T,Staff travelling,4.85,0.00,4.85
Children and Adult Services,Education,Dean Bank Childcare,Supplies and Services,Provisions,20-Jun-2016,ASDA HOME SHOPPING,Catering costs - provisions,78.70,0.00,78.70
Children and Adult Services,Education,Dean Bank Childcare,Supplies and Services,Provisions,20-Jun-2016,ASDA HOME SHOPPING,Catering costs - provisions,-4.00,0.00,-4.00
Resources,Legal & Democratic Services,Democratic Representation,Supplies and Services,Provisions,20-Jun-2016,MARKS&SPENCER PLC SF,Catering costs - provisions,6.00,0.00,6.00
Neighbourhood Services,Direct Services,C&G - North Grounds Maintenance,Supplies and Services,Equipment and Materials,20-Jun-2016,JG PAXTON & SONS LTD,Direct materials,51.97,8.66,43.31
Children and Adult Services,Childrens Services,Support Services,Supplies and Services,Computers and Communications,20-Jun-2016,VERY.CO.UK,Computer hardware,23.00,0.00,23.00
Children and Adult Services,Childrens Services,Support Services,Supplies and Services,Computers and Communications,20-Jun-2016,VERY.CO.UK,Computer hardware,7.68,0.00,7.68
Children and Adult Services,Childrens Services,Support Services,Supplies and Services,Computers and Communications,20-Jun-2016,VERY.CO.UK,Computer hardware,7.68,0.00,7.68
Children and Adult Services,Childrens Services,Support Services,Supplies and Services,Computers and Communications,20-Jun-2016,VERY.CO.UK,Computer hardware,3.99,0.00,3.99
Neighbourhood Services,Culture & Sport,Hardwick Park Catering,Supplies and Services,Provisions,20-Jun-2016,JR HOLLAND FOODSERVICE,Catering costs - provisions,10.02,0.00,10.02
Neighbourhood Services,Culture & Sport,Hardwick Park Catering,Supplies and Services,Provisions,20-Jun-2016,BRAKE BROS LTD,Catering costs - provisions,49.86,8.31,41.55
Neighbourhood Services,Culture & Sport,Hardwick Park Catering,Supplies and Services,Provisions,20-Jun-2016,BRAKE BROS LTD,Catering costs - provisions,100.94,,100.94
Neighbourhood Services,Culture & Sport,Hardwick Park Catering,Supplies and Services,Provisions,20-Jun-2016,JR HOLLAND FOODSERVICE,Catering costs - provisions,-5.08,0.00,-5.08
Regeneration & Economic Development,Economic Development and Housing,Europe Direct Scheme,Supplies and Services,Miscellaneous Expenses,20-Jun-2016,Stuttgarter Strassenba,International visits,1.86,0.00,1.86
Regeneration & Economic Development,Economic Development and Housing,Europe Direct Scheme,Supplies and Services,Miscellaneous Expenses,20-Jun-2016,DB BAHN AUTOMATEN,International visits,3.09,0.00,3.09
Regeneration & Economic Development,Economic Development and Housing,Europe Direct Scheme,Supplies and Services,Miscellaneous Expenses,20-Jun-2016,RITAZZA - 18271415,International visits,2.95,0.00,2.95
Neighbourhood Services,Direct Services,Catering - Green Lane Canteen,Supplies and Services,Provisions,20-Jun-2016,BRAMBLES FOODS LTD,Catering costs - provisions,88.09,0.00,88.09
Neighbourhood Services,Direct Services,Catering - Green Lane Canteen,Supplies and Services,Provisions,20-Jun-2016,JR HOLLAND FOODSERVICE,Catering costs - provisions,-1.36,0.00,-1.36
Neighbourhood Services,Culture & Sport,Woodhouse Close Leisure Complex,Supplies and Services,Equipment and Materials,20-Jun-2016,Amazon EU,Equipment-purchase and rental,54.74,0.00,54.74
Children and Adult Services,Childrens Services,Bishop Auckland 0 - 5,Supplies and Services,Provisions,20-Jun-2016,WM MORRISON 040,Catering costs - provisions,14.06,0.00,14.06
Neighbourhood Services,Direct Services,C&G - South Grounds Maintenance,Supplies and Services,Equipment and Materials,20-Jun-2016,MAXWELLS D I Y,Other consumables,24.96,0.00,24.96
Neighbourhood Services,Projects and Business services,Business Support,Supplies and Services,Subsistence,20-Jun-2016,PREZZO,Subsistence,36.86,6.14,30.72
Children and Adult Services,Childrens Services,Consett and Stanley Locality,Supplies and Services,Provisions,20-Jun-2016,ASDA 4387,Catering costs - provisions,37.00,0.00,37.00
Children and Adult Services,Childrens Services,Seaham Childrens Centre,Supplies and Services,Newspapers Books and Periodicals,20-Jun-2016,Amazon UK Marketplace,Books-school library,21.99,0.00,21.99
Resources,I.C.T. Services,Administration,Third Party Payments,Rendered by Private Contractors,20-Jun-2016,HOOTSUITE MEDIA INC.,Payments to sub-contractors,4.89,0.00,4.89
Neighbourhood Services,Culture & Sport,Events,Third Party Payments,Rendered by Private Contractors,20-Jun-2016,CARRIER BAG SHOP,Payments to sub-contractors,58.87,9.81,49.06
Neighbourhood Services,Culture & Sport,Bp Auckland Town Hall Cafe,Supplies and Services,Provisions,20-Jun-2016,BRAMBLES FOODS LTD,Catering costs - provisions,175.17,0.00,175.17
Neighbourhood Services,Direct Services,Catering - Service Direct,Supplies and Services,Provisions,20-Jun-2016,BRAMBLES FOODS LTD,Catering costs - provisions,75.78,0.00,75.78
Neighbourhood Services,Direct Services,C&G - North Grounds Maintenance,Supplies and Services,Equipment and Materials,20-Jun-2016,MKM BUILDING SUPPLIES,Equipment-purchase and rental,117.12,19.52,97.60
Neighbourhood Services,Culture & Sport,Positive Futures,Supplies and Services,Provisions,20-Jun-2016,W M MORRISONS,Catering costs - provisions,8.44,0.00,8.44
Children and Adult Services,Childrens Services,Ferryhill 0 - 5,Supplies and Services,Provisions,20-Jun-2016,ASDA HOME SHOPPING,Catering costs - provisions,50.48,0.00,50.48
Neighbourhood Services,Culture & Sport,Wharton Park,Supplies and Services,Printing Stationery and Gen Off Exps,20-Jun-2016,VALUE PRODUCTS LTD,Stationery,23.52,3.92,19.60
Neighbourhood Services,Culture & Sport,Woodhouse Close Leisure Complex,Supplies and Services,Provisions,20-Jun-2016,JR HOLLAND FOODSERVICE,Catering costs - provisions,53.37,0.00,53.37
Neighbourhood Services,Culture & Sport,Woodhouse Close Leisure Complex,Supplies and Services,Provisions,20-Jun-2016,BRAKE BROS LTD,Catering costs - provisions,89.11,0.00,89.11
Neighbourhood Services,Culture & Sport,Freemans Place Leisure Centre,Supplies and Services,Miscellaneous Expenses,20-Jun-2016,TVLICENSING.CO.UK,Licences,145.50,0.00,145.50
Children and Adult Services,Childrens Services,Consett and Stanley Locality,Supplies and Services,Equipment and Materials,20-Jun-2016,WILKO.COM,Equipment-purchase and rental,91.45,0.00,91.45
Regeneration & Economic Development,Economic Development and Housing,Europe Direct Scheme,Supplies and Services,Miscellaneous Expenses,21-Jun-2016,Stuttgarter Strassenba,International visits,0.05,0.00,0.05
Regeneration & Economic Development,Economic Development and Housing,Europe Direct Scheme,Supplies and Services,Miscellaneous Expenses,21-Jun-2016,DB BAHN AUTOMATEN,International visits,0.08,0.00,0.08
Resources,I.C.T. Services,Administration,Third Party Payments,Rendered by Private Contractors,21-Jun-2016,HOOTSUITE MEDIA INC.,Payments to sub-contractors,0.13,0.00,0.13
Children and Adult Services,Education,Selby Cottage Childcare Centre,Supplies and Services,Provisions,21-Jun-2016,TESCO STORES 2371,Catering costs - provisions,15.05,0.00,15.05
Children and Adult Services,Education,Selby Cottage Childcare Centre,Supplies and Services,Provisions,21-Jun-2016,ASDA HOME SHOPPING,Catering costs - provisions,147.21,0.00,147.21
Children and Adult Services,Education,Selby Cottage Childcare Centre,Supplies and Services,Provisions,21-Jun-2016,ASDA HOME SHOPPING,Catering costs - provisions,5.00,0.00,5.00
Children and Adult Services,Childrens Services,Bishop Auckland and Barnard Castle Locality,Supplies and Services,Provisions,21-Jun-2016,TESCO STORES 6329,Catering costs - provisions,54.61,0.00,54.61
Children and Adult Services,Head of Adults,OP Management,Income,Fees and Charges,21-Jun-2016,WWW.MONEYCLAIM.GOV,Fees-legal,105.00,0.00,105.00
Children and Adult Services,Head of Adults,Mental Health S28A and Central,Income,Fees and Charges,21-Jun-2016,WWW.MONEYCLAIM.GOV,Fees-legal,185.00,0.00,185.00
Children and Adult Services,Childrens Services,Bishop Auckland 0 - 5,Supplies and Services,Miscellaneous Expenses,21-Jun-2016,HALL HILL FARM,Training-other activities,143.50,0.00,143.50
Children and Adult Services,Childrens Services,Bishop Auckland and Barnard Castle Locality,Supplies and Services,Provisions,21-Jun-2016,CO-OP GROUP 310015,Catering costs - provisions,5.74,0.00,5.74
Children and Adult Services,Childrens Services,Coxhoe Satelite Home,Supplies and Services,Provisions,21-Jun-2016,CO-OP GROUP 310016,Catering costs - provisions,11.33,0.00,11.33
Children and Adult Services,Childrens Services,Coxhoe Satelite Home,Supplies and Services,Provisions,21-Jun-2016,CO-OP GROUP 310016,Catering costs - provisions,3.78,0.00,3.78
Neighbourhood Services,Direct Services,Catering - County Hall Restaurant,Supplies and Services,Provisions,21-Jun-2016,JR HOLLAND FOODSERVICE,Catering costs - provisions,65.06,0.00,65.06
Neighbourhood Services,Direct Services,Catering - County Hall Restaurant,Supplies and Services,Provisions,21-Jun-2016,JR HOLLAND FOODSERVICE,Catering costs - provisions,6.58,0.00,6.58
Neighbourhood Services,Direct Services,Catering - County Hall Restaurant,Supplies and Services,Provisions,21-Jun-2016,BRAKE BROS LTD,Catering costs - provisions,-11.49,0.00,-11.49
Neighbourhood Services,Culture & Sport,Gala Theatre - Catering etc,Supplies and Services,Provisions,21-Jun-2016,JR HOLLAND FOODSERVICE,Catering costs - provisions,40.69,0.00,40.69
Neighbourhood Services,Culture & Sport,Gala Theatre - Catering etc,Supplies and Services,Provisions,21-Jun-2016,BRAKE BROS LTD,Catering costs - provisions,79.68,13.28,66.40
Neighbourhood Services,Culture & Sport,Gala Theatre - Catering etc,Supplies and Services,Provisions,21-Jun-2016,BRAKE BROS LTD,Catering costs - provisions,67.52,,67.52
Neighbourhood Services,Culture & Sport,Gala Theatre - Catering etc,Supplies and Services,Provisions,21-Jun-2016,BRAKE BROS LTD,Catering costs - provisions,39.10,0.00,39.10
Children and Adult Services,Childrens Services,Framwellgate Moor CU,Supplies and Services,Equipment and Materials,21-Jun-2016,CURRYS ONLINE,Equipment-purchase and rental,109.99,0.00,109.99
Neighbourhood Services,Culture & Sport,Office Services,Supplies and Services,Advertising,21-Jun-2016,TWITTER ADVERTISING,Advertising other than for staff,50.00,0.00,50.00
Neighbourhood Services,Direct Services,Fleet - Chilton Fleet,Transport,Running Costs of Vehicles,21-Jun-2016,DVLA VEHICLE TAX,Vehicle Excise Duty (VED),232.50,0.00,232.50
Neighbourhood Services,Direct Services,Fleet - Hackworth Road Fleet,Transport,Running Costs of Vehicles,21-Jun-2016,WWW.DVLA.GOV.UK,Vehicle Excise Duty (VED),232.50,0.00,232.50
Neighbourhood Services,Direct Services,Fleet - Chilton Fleet,Transport,Running Costs of Vehicles,21-Jun-2016,WWW.DVLA.GOV.UK,Vehicle Excise Duty (VED),232.50,0.00,232.50
Neighbourhood Services,Direct Services,Fleet - Chilton Fleet,Transport,Running Costs of Vehicles,21-Jun-2016,WWW.DVLA.GOV.UK,Vehicle Excise Duty (VED),232.50,0.00,232.50
Regeneration & Economic Development,Economic Development and Housing,Employability - Youth Contract,Supplies and Services,Clothing Uniforms and Laundry,21-Jun-2016,YOURS,Clothing uniforms and laundry,43.00,0.00,43.00
Children and Adult Services,Childrens Services,Support Services,Supplies and Services,Miscellaneous Expenses,21-Jun-2016,WWW.THETORTOISESHOP.CO,Other expenses,210.95,0.00,210.95
Children and Adult Services,Childrens Services,Support Services,Supplies and Services,Equipment and Materials,21-Jun-2016,WWW.FOOTASYLUM.COM,Equipment-purchase and rental,33.94,0.00,33.94
Children and Adult Services,Childrens Services,Support Services,Supplies and Services,Clothing Uniforms and Laundry,21-Jun-2016,MAINLINE MENSWEAR,Clothing uniforms and laundry,34.95,0.00,34.95
Children and Adult Services,Childrens Services,Support Services,Supplies and Services,Computers and Communications,21-Jun-2016,VERY.CO.UK,Computer hardware,25.00,0.00,25.00
Children and Adult Services,Childrens Services,Support Services,Supplies and Services,Computers and Communications,21-Jun-2016,VERY.CO.UK,Computer hardware,10.80,0.00,10.80
Children and Adult Services,Childrens Services,Support Services,Supplies and Services,Clothing Uniforms and Laundry,21-Jun-2016,WWW.ASOS.COM,Clothing uniforms and laundry,37.45,0.00,37.45
Neighbourhood Services,Direct Services,C&G - North Grounds Maintenance,Supplies and Services,Equipment and Materials,21-Jun-2016,AZTEC CHEMICALS LTD,Direct materials,180.00,30.00,150.00
Neighbourhood Services,Culture & Sport,Hardwick Park Catering,Supplies and Services,Provisions,21-Jun-2016,JR HOLLAND FOODSERVICE,Catering costs - provisions,48.48,0.00,48.48
Neighbourhood Services,Culture & Sport,Hardwick Park Catering,Supplies and Services,Provisions,21-Jun-2016,JR HOLLAND FOODSERVICE,Catering costs - provisions,12.95,0.00,12.95
Children and Adult Services,Childrens Services,Tow Law CU,Supplies and Services,Conference Expenses,21-Jun-2016,"CENTER PARCS, LEISURE",Conferencesseminars fees etc,134.00,0.00,134.00
Children and Adult Services,Childrens Services,Bishop Auckland Teenage Parent Programme,Supplies and Services,Provisions,21-Jun-2016,TESCO STORES 6329,Catering costs - provisions,9.08,0.00,9.08
Regeneration & Economic Development,Economic Development and Housing,B& B - Temp Accom,Supplies and Services,Grants to Voluntary Organisations,21-Jun-2016,PREMIER INN,Accommodation assistance,73.00,0.00,73.00
Neighbourhood Services,Projects and Business services,Business Support,Supplies and Services,Newspapers Books and Periodicals,21-Jun-2016,Amazon UK Marketplace,Books-school library,7.25,1.21,6.04
Neighbourhood Services,Projects and Business services,Business Support,Supplies and Services,Newspapers Books and Periodicals,21-Jun-2016,Amazon UK Marketplace,Books-school library,30.26,0.00,30.26
Resources,I.C.T. Services,Administration,Supplies and Services,Equipment and Materials,21-Jun-2016,DISCLOSURE SCOT,Equipment-purchase and rental,25.00,0.00,25.00
Resources,I.C.T. Services,Administration,Supplies and Services,Computers and Communications,21-Jun-2016,WWW.LINDY.CO.UK,Computer hardware,80.93,0.00,80.93
Neighbourhood Services,Culture & Sport,Events,Supplies and Services,Equipment and Materials,21-Jun-2016,AVT IMPORTS,Direct materials,35.04,5.84,29.20
Neighbourhood Services,Culture & Sport,Events,Supplies and Services,Furniture,21-Jun-2016,NUCASA,Furniture repair and replacement,215.97,0.00,215.97
Neighbourhood Services,Direct Services,C&G - North Grounds Maintenance,Supplies and Services,Equipment and Materials,21-Jun-2016,NEW ROW FARM NURSERIES,Misc equipment tools and materials,441.00,73.50,367.50
Neighbourhood Services,Direct Services,C&G - North Grounds Maintenance,Supplies and Services,Equipment and Materials,21-Jun-2016,NEW ROW FARM NURSERIES,Misc equipment tools and materials,441.00,73.50,367.50
Neighbourhood Services,Direct Services,C&G - North Grounds Maintenance,Supplies and Services,Equipment and Materials,21-Jun-2016,HARELAW SAWMILL,Equipment-purchase and rental,39.28,6.55,32.73
Neighbourhood Services,Culture & Sport,Bp Auckland Town Hall Cafe,Supplies and Services,Provisions,21-Jun-2016,JR HOLLAND FOODSERVICE,Catering costs - provisions,20.31,0.00,20.31
Neighbourhood Services,Direct Services,Catering - Service Direct,Supplies and Services,Provisions,21-Jun-2016,BRAKE BROS LTD,Catering costs - provisions,54.29,0.00,54.29
Regeneration & Economic Development,Economic Development and Housing,Employability - Youth Contract,Supplies and Services,Printing Stationery and Gen Off Exps,21-Jun-2016,TESCO STORES 6329,Estab-purchase from donations,50.05,0.00,50.05
Neighbourhood Services,Projects and Business services,Business Support,Supplies and Services,Conference Expenses,21-Jun-2016,TVLICENSING.CO.UK,Conferencesseminars fees etc,145.50,0.00,145.50
Children and Adult Services,Education,Selby Cottage Childcare Centre,Supplies and Services,Equipment and Materials,22-Jun-2016,WILKO RETAIL LIMIT,Equipment-purchase and rental,132.27,0.00,132.27
Children and Adult Services,Education,Selby Cottage Childcare Centre,Supplies and Services,Provisions,22-Jun-2016,TESCO STORES 2278,Catering costs - provisions,4.75,0.00,4.75
Children and Adult Services,Childrens Services,Bishop Auckland and Barnard Castle Locality,Supplies and Services,Miscellaneous Expenses,22-Jun-2016,FLAMINGOLANDTICKET,Other expenses,310.00,0.00,310.00
Children and Adult Services,Head of Adults,Mental Health S28A and Central,Income,Fees and Charges,22-Jun-2016,WWW.MONEYCLAIM.GOV,Fees-legal,906.81,0.00,906.81
Children and Adult Services,Planning & Service Strategy,Local Safeguarding Childrens Board,Supplies and Services,Conference Expenses,22-Jun-2016,EB SUICIDE BEREAVEMEN,Conferencesseminars fees etc,125.94,20.99,104.95
Children and Adult Services,Childrens Services,Coxhoe Satelite Home,Employees,Recruitment Instruction and Training,22-Jun-2016,THE WHO CARE TRUST,Training-all costs,44.75,0.00,44.75
Neighbourhood Services,Direct Services,Catering - County Hall Restaurant,Supplies and Services,Provisions,22-Jun-2016,JR HOLLAND FOODSERVICE,Catering costs - provisions,98.78,0.00,98.78
Neighbourhood Services,Direct Services,Catering - County Hall Restaurant,Supplies and Services,Provisions,22-Jun-2016,JR HOLLAND FOODSERVICE,Catering costs - provisions,31.35,0.00,31.35
Neighbourhood Services,Direct Services,Catering - County Hall Restaurant,Supplies and Services,Provisions,22-Jun-2016,BRAKE BROS LTD,Catering costs - provisions,117.24,19.54,97.70
Neighbourhood Services,Direct Services,Catering - County Hall Restaurant,Supplies and Services,Provisions,22-Jun-2016,BRAKE BROS LTD,Catering costs - provisions,175.76,,175.76
Neighbourhood Services,Direct Services,Catering - County Hall Restaurant,Supplies and Services,Provisions,22-Jun-2016,BRAKE BROS LTD,Catering costs - provisions,97.22,0.00,97.22
Children and Adult Services,Childrens Services,Framwellgate Moor CU,Supplies and Services,Provisions,22-Jun-2016,ASDA HOME SHOPPING,Catering costs - provisions,151.96,0.00,151.96
Children and Adult Services,Childrens Services,Framwellgate Moor CU,Supplies and Services,Provisions,22-Jun-2016,ASDA HOME SHOPPING,Catering costs - provisions,-1.00,0.00,-1.00
Neighbourhood Services,Culture & Sport,Local Delivery-Libraries,Supplies and Services,Newspapers Books and Periodicals,22-Jun-2016,Amazon EU,Books-school library,11.14,0.00,11.14
Neighbourhood Services,Direct Services,Fleet - Meadowfield Fleet,Transport,Running Costs of Vehicles,22-Jun-2016,POST OFFICE COUNTER,Vehicle Excise Duty (VED),167.50,0.00,167.50
Children and Adult Services,Childrens Services,High Etherley Satelite Home,Supplies and Services,Provisions,22-Jun-2016,TESCO STORES 6329,Catering costs - provisions,224.75,0.00,224.75
Neighbourhood Services,Culture & Sport,Hardwick Park Catering,Supplies and Services,Provisions,22-Jun-2016,JR HOLLAND FOODSERVICE,Catering costs - provisions,74.89,0.00,74.89
Neighbourhood Services,Culture & Sport,Hardwick Park Catering,Supplies and Services,Provisions,22-Jun-2016,BRAKE BROS LTD,Catering costs - provisions,492.54,82.09,410.45
Neighbourhood Services,Culture & Sport,Hardwick Park Catering,Supplies and Services,Provisions,22-Jun-2016,BRAKE BROS LTD,Catering costs - provisions,78.14,,78.14
Neighbourhood Services,Culture & Sport,Hardwick Park Catering,Supplies and Services,Provisions,22-Jun-2016,BRAKE BROS LTD,Catering costs - provisions,186.66,31.11,155.55
Neighbourhood Services,Culture & Sport,Hardwick Park Catering,Supplies and Services,Provisions,22-Jun-2016,BRAKE BROS LTD,Catering costs - provisions,183.06,,183.06
Regeneration & Economic Development,Economic Development and Housing,Europe Direct Scheme,Supplies and Services,Miscellaneous Expenses,22-Jun-2016,Stuttgarter Strassenba,International visits,1.84,0.00,1.84
Regeneration & Economic Development,Economic Development and Housing,International Relations,Supplies and Services,Miscellaneous Expenses,22-Jun-2016,DB BAHN AUTOMATEN,International visits,10.44,0.00,10.44
Neighbourhood Services,Direct Services,Catering - Green Lane Canteen,Supplies and Services,Provisions,22-Jun-2016,JR HOLLAND FOODSERVICE,Catering costs - provisions,39.80,0.00,39.80
Children and Adult Services,Childrens Services,Tow Law CU,Supplies and Services,Conference Expenses,22-Jun-2016,"CENTER PARCS, LEISURE",Conferencesseminars fees etc,34.00,0.00,34.00
Children and Adult Services,Childrens Services,Bishop Auckland 0 - 5,Supplies and Services,Provisions,22-Jun-2016,TESCO STORES 6329,Catering costs - provisions,14.75,0.00,14.75
Regeneration & Economic Development,Economic Development and Housing,Employability - Youth Contract,Supplies and Services,Provisions,22-Jun-2016,ASDA HOME SHOPPING,Catering costs - provisions,36.65,0.00,36.65
Regeneration & Economic Development,Economic Development and Housing,Employability - Youth Contract,Supplies and Services,Provisions,22-Jun-2016,ASDA HOME SHOPPING,Catering costs - provisions,-12.00,0.00,-12.00
Children and Adult Services,Childrens Services,Coxhoe Satelite Home,Supplies and Services,Provisions,22-Jun-2016,ALDI,Catering costs - provisions,66.39,0.00,66.39
Children and Adult Services,Childrens Services,Coxhoe Satelite Home,Supplies and Services,Clothing Uniforms and Laundry,22-Jun-2016,POUNDWORLD RETAIL,Clothing uniforms and laundry,29.00,4.83,24.17
Children and Adult Services,Childrens Services,Coxhoe Satelite Home,Supplies and Services,Provisions,22-Jun-2016,TESCO STORES 2371,Catering costs - provisions,104.57,0.00,104.57
Children and Adult Services,Childrens Services,Coxhoe Satelite Home,Supplies and Services,Clothing Uniforms and Laundry,22-Jun-2016,B&M RETAIL LTD,Clothing uniforms and laundry,3.98,0.00,3.98
Regeneration & Economic Development,Spatial Policy Planning Assets & Environment,North Pennines - Peatscapes,Supplies and Services,Postages,22-Jun-2016,MYHERMES.CO.UK,Postages,5.95,0.99,4.96
Regeneration & Economic Development,Spatial Policy Planning Assets & Environment,North Pennines - Peatscapes,Supplies and Services,Postages,22-Jun-2016,MYHERMES.CO.UK,Postages,5.95,0.99,4.96
Regeneration & Economic Development,Spatial Policy Planning Assets & Environment,North Pennines - Peatscapes,Supplies and Services,Postages,22-Jun-2016,MYHERMES.CO.UK,Postages,5.95,0.99,4.96
Regeneration & Economic Development,Spatial Policy Planning Assets & Environment,North Pennines - Peatscapes,Supplies and Services,Postages,22-Jun-2016,MYHERMES.CO.UK,Postages,35.70,5.95,29.75
Resources,I.C.T. Services,Administration,Supplies and Services,Newspapers Books and Periodicals,22-Jun-2016,Amazon UK Marketplace,Books-school library,4.97,0.00,4.97
Resources,I.C.T. Services,Administration,Supplies and Services,Newspapers Books and Periodicals,22-Jun-2016,Amazon EU,Books-school library,10.31,0.00,10.31
Resources,I.C.T. Services,Administration,Third Party Payments,Rendered by Private Contractors,22-Jun-2016,GLOBAL INSIGHT CONFERE,Payments to sub-contractors,718.80,119.80,599.00
Neighbourhood Services,Culture & Sport,Events,Supplies and Services,Newspapers Books and Periodicals,22-Jun-2016,Amazon EU,Books-school library,22.35,0.00,22.35
Regeneration & Economic Development,Transport and Contracted Services,Care Connect All Localities,Supplies and Services,Telephones,22-Jun-2016,BT BILL PAYMENT 2,Telephones general-all costs,83.82,13.97,69.85
Regeneration & Economic Development,Transport and Contracted Services,Care Connect All Localities,Supplies and Services,Telephones,22-Jun-2016,BT BILL PAYMENT 2,Telephones general-all costs,78.98,13.16,65.82
Regeneration & Economic Development,Transport and Contracted Services,Care Connect All Localities,Supplies and Services,Telephones,22-Jun-2016,BT BILL PAYMENT 2,Telephones general-all costs,78.66,13.11,65.55
Regeneration & Economic Development,Transport and Contracted Services,Care Connect All Localities,Supplies and Services,Telephones,22-Jun-2016,BT BILL PAYMENT 2,Telephones general-all costs,49.72,8.29,41.43
Regeneration & Economic Development,Transport and Contracted Services,Care Connect All Localities,Supplies and Services,Telephones,22-Jun-2016,BT BILL PAYMENT 2,Telephones general-all costs,15.30,2.55,12.75
Neighbourhood Services,Direct Services,Catering - Service Direct,Supplies and Services,Provisions,22-Jun-2016,JR HOLLAND FOODSERVICE,Catering costs - provisions,31.60,0.00,31.60
Neighbourhood Services,Direct Services,Catering - Service Direct,Supplies and Services,Provisions,22-Jun-2016,BRAKE BROS LTD,Catering costs - provisions,91.02,15.17,75.85
Neighbourhood Services,Direct Services,Catering - Service Direct,Supplies and Services,Provisions,22-Jun-2016,BRAKE BROS LTD,Catering costs - provisions,83.01,,83.01
Children and Adult Services,Childrens Services,Ferryhill 0 - 5,Supplies and Services,Newspapers Books and Periodicals,22-Jun-2016,BOOK PEOPLE VOUCHER,Books-school library,15.00,0.00,15.00
Children and Adult Services,Childrens Services,Laurel Avenue Childrens Centre,Supplies and Services,Provisions,22-Jun-2016,TESCO STORES 2371,Catering costs - provisions,19.73,0.00,19.73
Children and Adult Services,Childrens Services,Laurel Avenue Childrens Centre,Supplies and Services,Clothing Uniforms and Laundry,22-Jun-2016,B & M RETAIL,Clothing uniforms and laundry,19.53,0.00,19.53
Children and Adult Services,Childrens Services,Laurel Avenue Childrens Centre,Supplies and Services,Newspapers Books and Periodicals,22-Jun-2016,HOME BARGAINS,Books-school library,9.93,1.66,8.27
Neighbourhood Services,Culture & Sport,Hardwick Hall Country Park,Supplies and Services,Miscellaneous Expenses,22-Jun-2016,WWW.SPARKSGIFTWHOLESAL,Other expenses,63.95,10.66,53.29
Neighbourhood Services,Culture & Sport,Woodhouse Close Leisure Complex,Supplies and Services,Provisions,22-Jun-2016,JR HOLLAND FOODSERVICE,Catering costs - provisions,21.51,0.00,21.51
Resources,Financial Services,Administration,Supplies and Services,Services,22-Jun-2016,DISCLOSURE SCOT,Disclosure & Barring (DBS) Fees,25.00,0.00,25.00
Resources,Financial Services,Administration,Supplies and Services,Services,22-Jun-2016,DISCLOSURE SCOT,Disclosure & Barring (DBS) Fees,25.00,0.00,25.00
Resources,Financial Services,Administration,Supplies and Services,Services,22-Jun-2016,DISCLOSURE SCOT,Disclosure & Barring (DBS) Fees,25.00,0.00,25.00
Children and Adult Services,Head of Adults,OP/PD Durham & CLS,Supplies and Services,Miscellaneous Expenses,22-Jun-2016,WWW.GOV.UK,Licences,40.00,0.00,40.00
Neighbourhood Services,Culture & Sport,Locality 2 Team Management,Supplies and Services,Equipment and Materials,22-Jun-2016,HOMEPLAN DIY LIMITED,Other consumables,17.99,0.00,17.99
Regeneration & Economic Development,Economic Development and Housing,Employability - Youth Contract,Supplies and Services,Clothing Uniforms and Laundry,22-Jun-2016,SSELECT,Clothing uniforms and laundry,13.04,0.00,13.04
Children and Adult Services,Childrens Services,Peterlee and Seaham Locality,Supplies and Services,Furniture,22-Jun-2016,THE AUTHENTIC BLIND CO,Furniture repair and replacement,103.00,17.17,85.83
Children and Adult Services,Childrens Services,Families First Seaham,Supplies and Services,Equipment and Materials,22-Jun-2016,TESCO DIRECT,Equipment-purchase and rental,188.45,0.00,188.45
Regeneration & Economic Development,Economic Development and Housing,International Relations,Supplies and Services,Miscellaneous Expenses,23-Jun-2016,Stuttgarter Strassenba,International visits,0.05,0.00,0.05
Regeneration & Economic Development,Economic Development and Housing,Europe Direct Scheme,Supplies and Services,Miscellaneous Expenses,23-Jun-2016,DB BAHN AUTOMATEN,International visits,0.29,0.00,0.29
Children and Adult Services,Childrens Services,Secure Management,Supplies and Services,Clothing Uniforms and Laundry,23-Jun-2016,WWW.TESSUTI.CO.UK,Clothing uniforms and laundry,54.99,0.00,54.99
Regeneration & Economic Development,Economic Development and Housing,Business Growth and Innovation General,Third Party Payments,Rendered by Private Contractors,23-Jun-2016,MAILCHIMP,Payments to sub-contractors,50.30,0.00,50.30
Regeneration & Economic Development,Economic Development and Housing,Group Repair,Income,Fees and Charges,23-Jun-2016,HMCOURT-SERVICES.G,Fees-legal,100.00,0.00,100.00
Neighbourhood Services,Direct Services,Catering - County Hall Restaurant,Supplies and Services,Provisions,23-Jun-2016,JR HOLLAND FOODSERVICE,Catering costs - provisions,124.68,0.00,124.68
Neighbourhood Services,Direct Services,Catering - County Hall Restaurant,Supplies and Services,Provisions,23-Jun-2016,JR HOLLAND FOODSERVICE,Catering costs - provisions,13.16,0.00,13.16
Neighbourhood Services,Direct Services,Catering - County Hall Restaurant,Supplies and Services,Provisions,23-Jun-2016,BRAKE BROS LTD,Catering costs - provisions,133.72,0.00,133.72
Neighbourhood Services,Culture & Sport,Gala Theatre - Catering etc,Supplies and Services,Provisions,23-Jun-2016,JR HOLLAND FOODSERVICE,Catering costs - provisions,37.29,0.00,37.29
Neighbourhood Services,Culture & Sport,Locality 1 Team Management,Supplies and Services,Equipment and Materials,23-Jun-2016,HOMEBASE LTD 822,Equipment-purchase and rental,144.31,24.05,120.26
Children and Adult Services,Childrens Services,High Etherley Satelite Home,Supplies and Services,Newspapers Books and Periodicals,23-Jun-2016,Amazon UK Marketplace,Books-school library,47.98,0.00,47.98
Children and Adult Services,Education,EDC Premises,Supplies and Services,Miscellaneous Expenses,23-Jun-2016,Amazon UK Marketplace,Other expenses,19.95,0.00,19.95
Neighbourhood Services,Technical Services,Strategic Highways - Road Safety ETP,Supplies and Services,Miscellaneous Expenses,23-Jun-2016,BIKEABILITY MATERIALS,Other expenses,253.96,0.00,253.96
Regeneration & Economic Development,Economic Development and Housing,Europe Direct Scheme,Supplies and Services,Provisions,23-Jun-2016,SAINSBURYS 0776,Catering costs - provisions,40.00,0.00,40.00
Regeneration & Economic Development,Economic Development and Housing,Europe Direct Scheme,Supplies and Services,Provisions,23-Jun-2016,SAINSBURYS 0776,Catering costs - provisions,10.00,0.00,10.00
Neighbourhood Services,Culture & Sport,Hardwick Park Catering,Supplies and Services,Provisions,23-Jun-2016,JR HOLLAND FOODSERVICE,Catering costs - provisions,24.19,0.00,24.19
Resources,I.C.T. Services,Operations - System & Repairs Team,Supplies and Services,Newspapers Books and Periodicals,23-Jun-2016,Amazon UK Marketplace,Books-school library,44.80,0.00,44.80
Neighbourhood Services,Culture & Sport,Gala Theatre Stage School,Supplies and Services,Clothing Uniforms and Laundry,23-Jun-2016,TOP SHOP,Clothing uniforms and laundry,56.00,0.00,56.00
Children and Adult Services,Childrens Services,Secure Management,Supplies and Services,Miscellaneous Expenses,23-Jun-2016,ACTIVITYBOOKERCOM,Other hired and contracted services,69.98,0.00,69.98
Regeneration & Economic Development,Spatial Policy Planning Assets & Environment,North Pennines - Cold Blooded & Spineless,Supplies and Services,Provisions,23-Jun-2016,SCOTMID CO-OP STANHOPE,Catering costs - provisions,30.83,0.00,30.83
Children and Adult Services,Childrens Services,TTF-Attachment and Results,Supplies and Services,Equipment and Materials,23-Jun-2016,TESCO - Rinkit LTD,Other consumables,54.39,0.00,54.39
Children and Adult Services,Childrens Services,TTF-Attachment and Results,Supplies and Services,Equipment and Materials,23-Jun-2016,TESCO - Seller_IST_1_2,Other consumables,57.99,0.00,57.99
Resources,I.C.T. Services,Administration,Third Party Payments,Rendered by Private Contractors,23-Jun-2016,WP-INSTANTSSL CERTIFIC,Payments to sub-contractors,77.94,12.99,64.95
Resources,I.C.T. Services,Administration,Supplies and Services,Computers and Communications,23-Jun-2016,WWW.GETTYIMAGES.COM,Computer hardware,29.00,0.00,29.00
Resources,Financial Services,SF-Financial Services Team,Supplies and Services,Services,23-Jun-2016,HMCOURTS-SERVICE.G,Court Costs,"-1,863.00",0.00,-1863.00
Children and Adult Services,Childrens Services,Peterlee and Seaham Locality,Supplies and Services,Equipment and Materials,23-Jun-2016,WILKO.COM,Equipment-purchase and rental,134.00,22.33,111.67
Children and Adult Services,Childrens Services,Peterlee and Seaham Locality,Supplies and Services,Equipment and Materials,23-Jun-2016,WILKO.COM,Equipment-purchase and rental,146.95,24.49,122.46
Children and Adult Services,Childrens Services,CDYOS - Support,Supplies and Services,Provisions,23-Jun-2016,ASDA HOME SHOPPING,Catering costs - provisions,32.80,0.00,32.80
Neighbourhood Services,Culture & Sport,Bp Auckland Town Hall Cafe,Supplies and Services,Provisions,23-Jun-2016,JR HOLLAND FOODSERVICE,Catering costs - provisions,15.48,0.00,15.48
Neighbourhood Services,Culture & Sport,Bp Auckland Town Hall Cafe,Supplies and Services,Provisions,23-Jun-2016,JR HOLLAND FOODSERVICE,Catering costs - provisions,4.20,0.00,4.20
Neighbourhood Services,Technical Services,Training and Development,Employees,Recruitment Instruction and Training,23-Jun-2016,WWW.BPEC.ORG.UK,Training-all costs,109.00,0.00,109.00
Children and Adult Services,Childrens Services,Ferryhill 0 - 5,Supplies and Services,Newspapers Books and Periodicals,23-Jun-2016,HOME BARGAINS SPENNYMO,Books-school library,4.74,0.79,3.95
Neighbourhood Services,Culture & Sport,Hardwick Park Catering,Supplies and Services,Equipment and Materials,23-Jun-2016,WWW.DRINKSTUFF.COM,Catering equipment,103.92,17.32,86.60
Neighbourhood Services,Culture & Sport,Woodhouse Close Leisure Complex,Supplies and Services,Provisions,23-Jun-2016,BRAKE BROS LTD,Catering costs - provisions,85.08,14.18,70.90
Neighbourhood Services,Culture & Sport,Woodhouse Close Leisure Complex,Supplies and Services,Provisions,23-Jun-2016,BRAKE BROS LTD,Catering costs - provisions,102.32,,102.32
Children and Adult Services,Education,16-19 Education & Training,Supplies and Services,Postages,23-Jun-2016,POST OFFICE SHOP,Postages,377.99,0.00,377.99
Regeneration & Economic Development,Economic Development and Housing,Business Growth and Innovation General,Third Party Payments,Rendered by Private Contractors,24-Jun-2016,MAILCHIMP,Payments to sub-contractors,1.38,0.00,1.38
Children and Adult Services,Childrens Services,Secure Management,Supplies and Services,Equipment and Materials,24-Jun-2016,Amazon UK Marketplace,Other consumables,39.99,0.00,39.99
Neighbourhood Services,Direct Services,Catering - County Hall Restaurant,Supplies and Services,Provisions,24-Jun-2016,JR HOLLAND FOODSERVICE,Catering costs - provisions,47.73,0.00,47.73
Neighbourhood Services,Direct Services,Catering - County Hall Restaurant,Supplies and Services,Provisions,24-Jun-2016,JR HOLLAND FOODSERVICE,Catering costs - provisions,22.04,0.00,22.04
Neighbourhood Services,Direct Services,Catering - County Hall Restaurant,Supplies and Services,Provisions,24-Jun-2016,JR HOLLAND FOODSERVICE,Catering costs - provisions,13.16,0.00,13.16
Neighbourhood Services,Direct Services,Catering - County Hall Restaurant,Supplies and Services,Provisions,24-Jun-2016,BRAKE BROS LTD,Catering costs - provisions,195.90,32.65,163.25
Neighbourhood Services,Direct Services,Catering - County Hall Restaurant,Supplies and Services,Provisions,24-Jun-2016,BRAKE BROS LTD,Catering costs - provisions,249.37,,249.37
Neighbourhood Services,Direct Services,Catering - County Hall Restaurant,Supplies and Services,Provisions,24-Jun-2016,BRAKE BROS LTD,Catering costs - provisions,95.64,15.94,79.70
Neighbourhood Services,Direct Services,Catering - County Hall Restaurant,Supplies and Services,Provisions,24-Jun-2016,BRAKE BROS LTD,Catering costs - provisions,178.10,,178.10
Children and Adult Services,Childrens Services,Ferryhill One Point Hub,Supplies and Services,Printing Stationery and Gen Off Exps,24-Jun-2016,Amazon EU,Stationery,19.74,0.00,19.74
Neighbourhood Services,Culture & Sport,Office Services,Supplies and Services,Equipment and Materials,24-Jun-2016,GOOGLE ADWS2420292471,Misc equipment tools and materials,22.82,0.00,22.82
Regeneration & Economic Development,Economic Development and Housing,Employability - Youth Contract,Transport,Public Transport,24-Jun-2016,WWW.SIMPLYGO.COM,Staff travelling,18.40,0.00,18.40
Children and Adult Services,Childrens Services,Durham 0 - 5,Supplies and Services,Miscellaneous Expenses,24-Jun-2016,Amazon UK Marketplace,Other expenses,8.55,0.00,8.55
Children and Adult Services,Childrens Services,Durham 0 - 5,Supplies and Services,Miscellaneous Expenses,24-Jun-2016,Amazon UK Marketplace,Other expenses,24.96,0.00,24.96
Neighbourhood Services,Culture & Sport,Hardwick Park Catering,Supplies and Services,Provisions,24-Jun-2016,JR HOLLAND FOODSERVICE,Catering costs - provisions,26.04,0.00,26.04
Neighbourhood Services,Culture & Sport,Hardwick Park Catering,Supplies and Services,Provisions,24-Jun-2016,BRAKE BROS LTD,Catering costs - provisions,535.68,89.28,446.40
Neighbourhood Services,Culture & Sport,Hardwick Park Catering,Supplies and Services,Provisions,24-Jun-2016,BRAKE BROS LTD,Catering costs - provisions,145.62,,145.62
Neighbourhood Services,Culture & Sport,Hardwick Park Catering,Supplies and Services,Provisions,24-Jun-2016,BRAKE BROS LTD,Catering costs - provisions,288.36,48.06,240.30
Neighbourhood Services,Culture & Sport,Hardwick Park Catering,Supplies and Services,Provisions,24-Jun-2016,BRAKE BROS LTD,Catering costs - provisions,286.03,,286.03
Neighbourhood Services,Culture & Sport,Hardwick Park Catering,Supplies and Services,Provisions,24-Jun-2016,JR HOLLAND FOODSERVICE,Catering costs - provisions,-1.72,0.00,-1.72
Regeneration & Economic Development,Economic Development and Housing,International Relations,Supplies and Services,Miscellaneous Expenses,24-Jun-2016,ILLY,International visits,3.50,0.00,3.50
Regeneration & Economic Development,Economic Development and Housing,International Relations,Supplies and Services,Miscellaneous Expenses,24-Jun-2016,RELAY 352625PX,International visits,4.23,0.00,4.23
Neighbourhood Services,Direct Services,Catering - Green Lane Canteen,Supplies and Services,Provisions,24-Jun-2016,JR HOLLAND FOODSERVICE,Catering costs - provisions,32.95,0.00,32.95
Neighbourhood Services,Direct Services,C&G - South Grounds Maintenance,Supplies and Services,Newspapers Books and Periodicals,24-Jun-2016,RICKERBY,Books-school library,376.51,62.75,313.76
Regeneration & Economic Development,Economic Development and Housing,Employability - Youth Contract,Supplies and Services,Provisions,24-Jun-2016,MARKS&SPENCER PLC,Catering costs - provisions,25.00,0.00,25.00
Regeneration & Economic Development,Economic Development and Housing,Employability - Youth Contract,Supplies and Services,Clothing Uniforms and Laundry,24-Jun-2016,OUTFIT,Clothing uniforms and laundry,26.15,0.00,26.15
Children and Adult Services,Childrens Services,Coxhoe Satelite Home,Supplies and Services,Provisions,24-Jun-2016,TESCO STORES 2371,Catering costs - provisions,18.18,0.00,18.18
Neighbourhood Services,Culture & Sport,Bp Auckland Town Hall Cafe,Supplies and Services,Provisions,24-Jun-2016,JR HOLLAND FOODSERVICE,Catering costs - provisions,12.40,0.00,12.40
Neighbourhood Services,Direct Services,Catering - Service Direct,Supplies and Services,Provisions,24-Jun-2016,JR HOLLAND FOODSERVICE,Catering costs - provisions,35.16,0.00,35.16
Neighbourhood Services,Direct Services,Catering - Service Direct,Supplies and Services,Provisions,24-Jun-2016,JR HOLLAND FOODSERVICE,Catering costs - provisions,9.87,0.00,9.87
Children and Adult Services,Childrens Services,Bishop Auckland and Barnard Castle Locality,Supplies and Services,Miscellaneous Expenses,24-Jun-2016,WWW.BAKERROSS.CO.UK,Other expenses,153.41,25.57,127.84
Neighbourhood Services,Culture & Sport,Woodhouse Close Leisure Complex,Supplies and Services,Provisions,24-Jun-2016,BRAKE BROS LTD,Catering costs - provisions,84.80,0.00,84.80
Children and Adult Services,Childrens Services,Support Services,Supplies and Services,Clothing Uniforms and Laundry,24-Jun-2016,NEW LOOK INTERNET,Clothing uniforms and laundry,-24.99,0.00,-24.99
Children and Adult Services,Childrens Services,9 Cedar Drive Aycliffe,Supplies and Services,Provisions,25-Jun-2016,TESCO STORES 2916,Catering costs - provisions,25.24,0.00,25.24
Children and Adult Services,Childrens Services,High Etherley Satelite Home,Supplies and Services,Provisions,25-Jun-2016,TESCO STORES 2371,Catering costs - provisions,8.00,0.00,8.00
Children and Adult Services,Childrens Services,Ferryhill 0 - 5,Supplies and Services,Newspapers Books and Periodicals,25-Jun-2016,HOME BARGAINS SPENNYMO,Books-school library,7.92,1.32,6.60
Children and Adult Services,Childrens Services,Ferryhill 0 - 5,Supplies and Services,Newspapers Books and Periodicals,25-Jun-2016,HOME BARGAINS SPENNYMO,Books-school library,0.03,,0.03
Resources,Financial Services,Administration,Supplies and Services,Newspapers Books and Periodicals,25-Jun-2016,Amazon UK Marketplace,Books-school library,22.85,0.00,22.85
Children and Adult Services,Childrens Services,Consett and Stanley Locality,Supplies and Services,Newspapers Books and Periodicals,26-Jun-2016,Amazon UK Marketplace,Books-school library,65.21,10.87,54.34
Regeneration & Economic Development,Economic Development and Housing,International Relations,Supplies and Services,Miscellaneous Expenses,27-Jun-2016,ILLY,International visits,0.10,0.00,0.10
Regeneration & Economic Development,Economic Development and Housing,International Relations,Supplies and Services,Miscellaneous Expenses,27-Jun-2016,RELAY 352625PX,International visits,0.12,0.00,0.12
Children and Adult Services,Education,Shildon Childcare,Supplies and Services,Provisions,27-Jun-2016,ASDA HOME SHOPPING,Catering costs - provisions,37.54,0.00,37.54
Children and Adult Services,Education,Shildon Childcare,Supplies and Services,Equipment and Materials,27-Jun-2016,HOME BARGAINS,Toys,12.96,0.00,12.96
Children and Adult Services,Childrens Services,9 Cedar Drive Aycliffe,Supplies and Services,Provisions,27-Jun-2016,TESCO STORES 2916,Catering costs - provisions,122.38,0.00,122.38
Children and Adult Services,Childrens Services,9 Cedar Drive Aycliffe,Supplies and Services,Provisions,27-Jun-2016,TESCO STORES 2916,Catering costs - provisions,23.82,0.00,23.82
Neighbourhood Services,Direct Services,Catering - County Hall Restaurant,Supplies and Services,Provisions,27-Jun-2016,BRAMBLES FOODS LTD,Catering costs - provisions,560.58,0.00,560.58
Neighbourhood Services,Direct Services,Catering - County Hall Restaurant,Supplies and Services,Provisions,27-Jun-2016,JR HOLLAND FOODSERVICE,Catering costs - provisions,6.94,0.00,6.94
Neighbourhood Services,Direct Services,Catering - County Hall Restaurant,Supplies and Services,Provisions,27-Jun-2016,BRAKE BROS LTD,Catering costs - provisions,112.97,0.00,112.97
Resources,I.C.T. Services,ICT School Services - DLG,Supplies and Services,Subscriptions,27-Jun-2016,WEB NETWORKSOLUTIONS,Subscriptions,99.71,0.00,99.71
Regeneration & Economic Development,Spatial Policy Planning Assets & Environment,North Pennines - Bowlees,Supplies and Services,Equipment and Materials,27-Jun-2016,Amazon UK Marketplace,Catering equipment,39.99,0.00,39.99
Neighbourhood Services,Culture & Sport,Local Delivery-Libraries,Supplies and Services,Newspapers Books and Periodicals,27-Jun-2016,Amazon UK Marketplace,Books-school library,2.81,0.00,2.81
Regeneration & Economic Development,Economic Development and Housing,Employability - Youth Contract,Transport,Public Transport,27-Jun-2016,GO NORTH EAST - V/T,Staff travelling,4.85,0.00,4.85
Children and Adult Services,Education,Dean Bank Childcare,Supplies and Services,Provisions,27-Jun-2016,ASDA HOME SHOPPING,Catering costs - provisions,58.67,0.00,58.67
Neighbourhood Services,Culture & Sport,Hardwick Park Catering,Supplies and Services,Provisions,27-Jun-2016,JR HOLLAND FOODSERVICE,Catering costs - provisions,34.50,0.00,34.50
Neighbourhood Services,Culture & Sport,Hardwick Park Catering,Supplies and Services,Provisions,27-Jun-2016,BRAKE BROS LTD,Catering costs - provisions,76.92,12.82,64.10
Neighbourhood Services,Culture & Sport,Hardwick Park Catering,Supplies and Services,Provisions,27-Jun-2016,BRAKE BROS LTD,Catering costs - provisions,142.86,,142.86
Resources,I.C.T. Services,Operations - System & Repairs Team,Supplies and Services,Equipment and Materials,27-Jun-2016,THE REPLACE BASE LTD,Other consumables,31.15,0.00,31.15
Neighbourhood Services,Culture & Sport,Gala Theatre Stage School,Supplies and Services,Clothing Uniforms and Laundry,27-Jun-2016,WWW.ASOS.COM,Clothing uniforms and laundry,50.00,0.00,50.00
Neighbourhood Services,Direct Services,Catering - Green Lane Canteen,Supplies and Services,Provisions,27-Jun-2016,BRAMBLES FOODS LTD,Catering costs - provisions,88.09,0.00,88.09
Children and Adult Services,Head of Adults,Durham Pathways,Employees,Recruitment Instruction and Training,27-Jun-2016,PAYPAL LHAMBLY,Training-all costs,31.99,0.00,31.99
Children and Adult Services,Head of Adults,Spennymoor Pathways,Supplies and Services,Miscellaneous Expenses,27-Jun-2016,ASDA 4387,Other expenses,22.95,0.00,22.95
Children and Adult Services,Childrens Services,Tow Law CU,Supplies and Services,Provisions,27-Jun-2016,CO-OP GROUP 010989,Catering costs - provisions,18.29,0.00,18.29
Children and Adult Services,Childrens Services,Bishop Auckland 0 - 5,Supplies and Services,Provisions,27-Jun-2016,SAINSBURYS SACAT 2199,Catering costs - provisions,17.66,0.00,17.66
Children and Adult Services,Childrens Services,Bishop Auckland 0 - 5,Supplies and Services,Provisions,27-Jun-2016,SAINSBURYS SACAT 2199,Catering costs - provisions,1.75,0.00,1.75
Children and Adult Services,Childrens Services,Bishop Auckland 0 - 5,Supplies and Services,Newspapers Books and Periodicals,27-Jun-2016,HOME BARGAINS,Books-school library,22.95,0.00,22.95
Resources,I.C.T. Services,Administration,Supplies and Services,Equipment and Materials,27-Jun-2016,DISCLOSURE SCOT,Equipment-purchase and rental,25.00,0.00,25.00
Resources,I.C.T. Services,Administration,Supplies and Services,Conference Expenses,27-Jun-2016,SCARMAN,Conferencesseminars fees etc,-118.00,-19.67,-98.33
Neighbourhood Services,Culture & Sport,Bp Auckland Town Hall Cafe,Supplies and Services,Provisions,27-Jun-2016,BRAMBLES FOODS LTD,Catering costs - provisions,115.15,0.00,115.15
Neighbourhood Services,Culture & Sport,Bp Auckland Town Hall Cafe,Supplies and Services,Provisions,27-Jun-2016,BRAKE BROS LTD,Catering costs - provisions,12.24,2.04,10.20
Neighbourhood Services,Culture & Sport,Bp Auckland Town Hall Cafe,Supplies and Services,Provisions,27-Jun-2016,BRAKE BROS LTD,Catering costs - provisions,106.08,,106.08
Neighbourhood Services,Direct Services,Catering - Service Direct,Supplies and Services,Provisions,27-Jun-2016,BRAMBLES FOODS LTD,Catering costs - provisions,75.78,0.00,75.78
Children and Adult Services,Childrens Services,Ferryhill 0 - 5,Supplies and Services,Provisions,27-Jun-2016,TESCO STORES 6329,Catering costs - provisions,34.24,0.00,34.24
Children and Adult Services,Childrens Services,Ferryhill 0 - 5,Supplies and Services,Equipment and Materials,27-Jun-2016,CARD FACTORY,Other consumables,11.94,0.00,11.94
Children and Adult Services,Childrens Services,Ferryhill 0 - 5,Supplies and Services,Equipment and Materials,27-Jun-2016,CARD FACTORY,Other consumables,0.99,0.00,0.99
Neighbourhood Services,Culture & Sport,Wellbeing4Life,Supplies and Services,Provisions,27-Jun-2016,SAINSBURYS SACAT 0776,Catering costs - provisions,46.25,0.00,46.25
Neighbourhood Services,Culture & Sport,Woodhouse Close Leisure Complex,Supplies and Services,Provisions,27-Jun-2016,JR HOLLAND FOODSERVICE,Catering costs - provisions,45.65,0.00,45.65
Children and Adult Services,Childrens Services,Peterlee and Seaham Locality,Supplies and Services,Furniture,27-Jun-2016,RFC CARPETS,Furniture repair and replacement,215.00,35.83,179.17
Regeneration & Economic Development,Economic Development and Housing,Business Growth and Innovation General,Supplies and Services,Computers and Communications,27-Jun-2016,FONTS.COM,Computer hardware,9.60,1.60,8.00
Resources,I.C.T. Services,Administration,Supplies and Services,Conference Expenses,27-Jun-2016,IBIS STYLES LONDON EXC,Conferencesseminars fees etc,65.00,0.00,65.00
Resources,I.C.T. Services,Administration,Supplies and Services,Conference Expenses,27-Jun-2016,IBIS STYLES LONDON EXC,Conferencesseminars fees etc,65.00,0.00,65.00
Neighbourhood Services,Culture & Sport,Bp Auckland Town Hall Cafe,Supplies and Services,Provisions,27-Jun-2016,BRAKE BROS LTD,Catering costs - provisions,23.58,3.93,19.65
Neighbourhood Services,Culture & Sport,Bp Auckland Town Hall Cafe,Supplies and Services,Provisions,27-Jun-2016,BRAKE BROS LTD,Catering costs - provisions,613.07,,613.07
Children and Adult Services,Childrens Services,Operations Manager Adoption & Fostering,Employees,Recruitment Instruction and Training,27-Jun-2016,WWW.CORAM.ORG.UK,Training-all costs,17.95,0.00,17.95
Resources,I.C.T. Services,ICT School Services - DLG,Supplies and Services,Subscriptions,28-Jun-2016,WEB NETWORKSOLUTIONS,Subscriptions,2.74,0.00,2.74
Children and Adult Services,Education,Selby Cottage Childcare Centre,Income,Fees and Charges,28-Jun-2016,WWW.MONEYCLAIM.GOV,Fees-legal,35.00,0.00,35.00
Neighbourhood Services,EnvironmentHealth & Consumer Protection,Works in Default Holding Code,Income,Fees and Charges,28-Jun-2016,WWW.MONEYCLAIM.GOV,Fees-legal,35.00,0.00,35.00
Children and Adult Services,Childrens Services,Bishop Auckland and Barnard Castle Locality,Supplies and Services,Provisions,28-Jun-2016,TESCO STORES 6329,Catering costs - provisions,56.12,0.00,56.12
Children and Adult Services,Childrens Services,Bishop Auckland and Barnard Castle Locality,Supplies and Services,Provisions,28-Jun-2016,TESCO STORES 6329,Catering costs - provisions,9.30,0.00,9.30
Regeneration & Economic Development,Economic Development and Housing,Business Growth and Innovation General,Supplies and Services,Equipment and Materials,28-Jun-2016,AUDIENSE SOCIALBRO,Other consumables,29.48,4.91,24.57
Neighbourhood Services,Direct Services,C&G - South Grounds Maintenance,Supplies and Services,Equipment and Materials,28-Jun-2016,MKM PETERLEE,Equipment-purchase and rental,7.19,1.20,5.99
Neighbourhood Services,Direct Services,C&G - South Grounds Maintenance,Supplies and Services,Equipment and Materials,28-Jun-2016,SCREWFIX,Equipment-purchase and rental,11.96,1.99,9.97
Children and Adult Services,Childrens Services,Coxhoe Satelite Home,Supplies and Services,Newspapers Books and Periodicals,28-Jun-2016,Amazon UK Marketplace,Books-school library,44.99,0.00,44.99
Neighbourhood Services,Direct Services,Catering - County Hall Restaurant,Supplies and Services,Provisions,28-Jun-2016,FREEMAN CATERING BUTCH,Catering costs - provisions,108.60,0.00,108.60
Neighbourhood Services,Direct Services,Catering - County Hall Restaurant,Supplies and Services,Provisions,28-Jun-2016,FREEMAN CATERING BUTCH,Catering costs - provisions,74.31,0.00,74.31
Neighbourhood Services,Direct Services,Catering - County Hall Restaurant,Supplies and Services,Provisions,28-Jun-2016,FREEMAN CATERING BUTCH,Catering costs - provisions,64.07,0.00,64.07
Neighbourhood Services,Direct Services,Catering - County Hall Restaurant,Supplies and Services,Provisions,28-Jun-2016,FREEMAN CATERING BUTCH,Catering costs - provisions,50.08,0.00,50.08
Neighbourhood Services,Direct Services,Catering - County Hall Restaurant,Supplies and Services,Provisions,28-Jun-2016,FREEMAN CATERING BUTCH,Catering costs - provisions,40.54,0.00,40.54
Neighbourhood Services,Direct Services,Catering - County Hall Restaurant,Supplies and Services,Provisions,28-Jun-2016,JR HOLLAND FOODSERVICE,Catering costs - provisions,35.21,0.00,35.21
Neighbourhood Services,Direct Services,Catering - County Hall Restaurant,Supplies and Services,Provisions,28-Jun-2016,JR HOLLAND FOODSERVICE,Catering costs - provisions,6.58,0.00,6.58
Neighbourhood Services,Direct Services,C&G - South Grounds Maintenance,Supplies and Services,Equipment and Materials,28-Jun-2016,TRAVIS PERKINS,Equipment-purchase and rental,39.17,6.53,32.64
Neighbourhood Services,Culture & Sport,Gala Theatre - Catering etc,Supplies and Services,Provisions,28-Jun-2016,FREEMAN CATERING BUTCH,Catering costs - provisions,43.72,0.00,43.72
Neighbourhood Services,Culture & Sport,Gala Theatre - Catering etc,Supplies and Services,Provisions,28-Jun-2016,FREEMAN CATERING BUTCH,Catering costs - provisions,25.32,0.00,25.32
Neighbourhood Services,Culture & Sport,Gala Theatre - Catering etc,Supplies and Services,Provisions,28-Jun-2016,JR HOLLAND FOODSERVICE,Catering costs - provisions,37.96,0.00,37.96
Neighbourhood Services,Culture & Sport,Gala Theatre - Catering etc,Supplies and Services,Provisions,28-Jun-2016,BRAKE BROS LTD,Catering costs - provisions,15.24,2.54,12.70
Neighbourhood Services,Culture & Sport,Gala Theatre - Catering etc,Supplies and Services,Provisions,28-Jun-2016,BRAKE BROS LTD,Catering costs - provisions,33.03,,33.03
Children and Adult Services,Childrens Services,Framwellgate Moor CU,Supplies and Services,Provisions,28-Jun-2016,ASDA HOME SHOPPING,Catering costs - provisions,173.48,0.00,173.48
Children and Adult Services,Childrens Services,Framwellgate Moor CU,Supplies and Services,Provisions,28-Jun-2016,ASDA HOME SHOPPING,Catering costs - provisions,-1.70,0.00,-1.70
Neighbourhood Services,Culture & Sport,Office Services,Supplies and Services,Advertising,28-Jun-2016,TWITTER ADVERTISING,Advertising other than for staff,40.00,0.00,40.00
Neighbourhood Services,Direct Services,Fleet - Hackworth Road Fleet,Transport,Running Costs of Vehicles,28-Jun-2016,POST OFFICE COUNTER,Vehicle Excise Duty (VED),212.50,0.00,212.50
Regeneration & Economic Development,Economic Development and Housing,Employability - Youth Contract,Transport,Public Transport,28-Jun-2016,WWW.SIMPLYGO.COM,Staff travelling,18.40,0.00,18.40
Children and Adult Services,Education,Dean Bank Childcare,Supplies and Services,Provisions,28-Jun-2016,ASDA HOME SHOPPING,Catering costs - provisions,5.00,0.00,5.00
Children and Adult Services,Childrens Services,Support Services,Supplies and Services,Newspapers Books and Periodicals,28-Jun-2016,Amazon UK Marketplace,Books-school library,11.99,0.00,11.99
Children and Adult Services,Childrens Services,Support Services,Supplies and Services,Equipment and Materials,28-Jun-2016,WWW.FOOTASYLUM.COM,Equipment-purchase and rental,74.99,0.00,74.99
Children and Adult Services,Childrens Services,Support Services,Supplies and Services,Computers and Communications,28-Jun-2016,VERY.CO.UK,Computer hardware,78.00,0.00,78.00
Children and Adult Services,Childrens Services,Support Services,Supplies and Services,Computers and Communications,28-Jun-2016,VERY.CO.UK,Computer hardware,59.00,0.00,59.00
Children and Adult Services,Childrens Services,Support Services,Supplies and Services,Computers and Communications,28-Jun-2016,VERY.CO.UK,Computer hardware,26.75,0.00,26.75
Children and Adult Services,Childrens Services,Support Services,Supplies and Services,Computers and Communications,28-Jun-2016,VERY.CO.UK,Computer hardware,3.99,0.00,3.99
Neighbourhood Services,Direct Services,C&G - South Grounds Maintenance,Supplies and Services,Equipment and Materials,28-Jun-2016,SCREWFIX,Equipment-purchase and rental,24.16,4.03,20.13
Neighbourhood Services,Direct Services,C&G - North Grounds Maintenance,Supplies and Services,Equipment and Materials,28-Jun-2016,BESCOL,Other consumables,41.42,6.90,34.52
Neighbourhood Services,Direct Services,C&G - North Grounds Maintenance,Supplies and Services,Miscellaneous Expenses,28-Jun-2016,TOM CONWAY MOTORCYCLES,Other hired and contracted services,49.99,0.00,49.99
Neighbourhood Services,Culture & Sport,Hardwick Park Catering,Supplies and Services,Provisions,28-Jun-2016,FREEMAN CATERING BUTCH,Catering costs - provisions,36.02,0.00,36.02
Neighbourhood Services,Culture & Sport,Hardwick Park Catering,Supplies and Services,Provisions,28-Jun-2016,FREEMAN CATERING BUTCH,Catering costs - provisions,33.47,0.00,33.47
Neighbourhood Services,Culture & Sport,Hardwick Park Catering,Supplies and Services,Provisions,28-Jun-2016,FREEMAN CATERING BUTCH,Catering costs - provisions,33.06,0.00,33.06
Neighbourhood Services,Culture & Sport,Hardwick Park Catering,Supplies and Services,Provisions,28-Jun-2016,FREEMAN CATERING BUTCH,Catering costs - provisions,32.16,0.00,32.16
Neighbourhood Services,Culture & Sport,Hardwick Park Catering,Supplies and Services,Provisions,28-Jun-2016,FREEMAN CATERING BUTCH,Catering costs - provisions,21.71,0.00,21.71
Neighbourhood Services,Culture & Sport,Hardwick Park Catering,Supplies and Services,Provisions,28-Jun-2016,FREEMAN CATERING BUTCH,Catering costs - provisions,21.27,0.00,21.27
Neighbourhood Services,Culture & Sport,Hardwick Park Catering,Supplies and Services,Provisions,28-Jun-2016,FREEMAN CATERING BUTCH,Catering costs - provisions,16.17,0.00,16.17
Neighbourhood Services,Culture & Sport,Hardwick Park Catering,Supplies and Services,Provisions,28-Jun-2016,JR HOLLAND FOODSERVICE,Catering costs - provisions,72.02,0.00,72.02
Neighbourhood Services,Culture & Sport,Hardwick Park Catering,Supplies and Services,Provisions,28-Jun-2016,JR HOLLAND FOODSERVICE,Catering costs - provisions,53.37,0.00,53.37
Neighbourhood Services,Culture & Sport,Hardwick Park Catering,Supplies and Services,Provisions,28-Jun-2016,JR HOLLAND FOODSERVICE,Catering costs - provisions,2.16,0.00,2.16
Neighbourhood Services,Culture & Sport,Gala Theatre Stage School,Supplies and Services,Clothing Uniforms and Laundry,28-Jun-2016,PAYPAL IDEALHERE,Clothing uniforms and laundry,230.89,0.00,230.89
Neighbourhood Services,Direct Services,Catering - Green Lane Canteen,Supplies and Services,Provisions,28-Jun-2016,FREEMAN CATERING BUTCH,Catering costs - provisions,80.65,0.00,80.65
Neighbourhood Services,Direct Services,Catering - Green Lane Canteen,Supplies and Services,Provisions,28-Jun-2016,FREEMAN CATERING BUTCH,Catering costs - provisions,76.16,0.00,76.16
Neighbourhood Services,Direct Services,Catering - Green Lane Canteen,Supplies and Services,Provisions,28-Jun-2016,FREEMAN CATERING BUTCH,Catering costs - provisions,42.80,0.00,42.80
Neighbourhood Services,Direct Services,Catering - Green Lane Canteen,Supplies and Services,Provisions,28-Jun-2016,FREEMAN CATERING BUTCH,Catering costs - provisions,9.73,0.00,9.73
Children and Adult Services,Childrens Services,Tow Law CU,Supplies and Services,Equipment and Materials,28-Jun-2016,WILKO RETAIL LIMIT,Equipment-purchase and rental,29.90,0.00,29.90
Children and Adult Services,Childrens Services,Tow Law CU,Supplies and Services,Provisions,28-Jun-2016,TESCO STORES 2371,Catering costs - provisions,242.71,0.00,242.71
Children and Adult Services,Childrens Services,Bishop Auckland 0 - 5,Supplies and Services,Provisions,28-Jun-2016,WM MORRISON 040,Catering costs - provisions,8.87,0.00,8.87
Children and Adult Services,Childrens Services,Coxhoe Satelite Home,Supplies and Services,Provisions,28-Jun-2016,ASDA SUPERSTORE,Catering costs - provisions,41.37,0.00,41.37
Children and Adult Services,Childrens Services,Seaham Childrens Centre,Supplies and Services,Furniture,28-Jun-2016,IKEA ONLINE,Furniture repair and replacement,388.00,0.00,388.00
Resources,I.C.T. Services,Administration,Supplies and Services,Equipment and Materials,28-Jun-2016,DISCLOSURE SCOT,Equipment-purchase and rental,25.00,0.00,25.00
Resources,I.C.T. Services,Administration,Supplies and Services,Newspapers Books and Periodicals,28-Jun-2016,Amazon UK Marketplace,Books-school library,47.94,0.00,47.94
Resources,I.C.T. Services,Administration,Supplies and Services,Newspapers Books and Periodicals,28-Jun-2016,Amazon UK Marketplace,Books-school library,85.72,0.00,85.72
Children and Adult Services,Childrens Services,Peterlee and Seaham Locality,Supplies and Services,Clothing Uniforms and Laundry,28-Jun-2016,WWW.THERANGE.CO.UK,Clothing uniforms and laundry,147.96,24.66,123.30
Neighbourhood Services,Culture & Sport,Bp Auckland Town Hall Cafe,Supplies and Services,Provisions,28-Jun-2016,JR HOLLAND FOODSERVICE,Catering costs - provisions,20.52,0.00,20.52
Regeneration & Economic Development,Transport and Contracted Services,Care Connect All Localities,Supplies and Services,Telephones,28-Jun-2016,BT BILL PAYMENT 2,Telephones general-all costs,-12.07,-2.01,-10.06
Neighbourhood Services,Direct Services,Catering - Service Direct,Supplies and Services,Provisions,28-Jun-2016,FREEMAN CATERING BUTCH,Catering costs - provisions,67.32,0.00,67.32
Neighbourhood Services,Direct Services,Catering - Service Direct,Supplies and Services,Provisions,28-Jun-2016,FREEMAN CATERING BUTCH,Catering costs - provisions,61.24,0.00,61.24
Neighbourhood Services,Direct Services,Catering - Service Direct,Supplies and Services,Provisions,28-Jun-2016,FREEMAN CATERING BUTCH,Catering costs - provisions,52.29,0.00,52.29
Neighbourhood Services,Direct Services,Catering - Service Direct,Supplies and Services,Provisions,28-Jun-2016,FREEMAN CATERING BUTCH,Catering costs - provisions,44.54,0.00,44.54
Neighbourhood Services,Direct Services,Catering - Service Direct,Supplies and Services,Provisions,28-Jun-2016,FREEMAN CATERING BUTCH,Catering costs - provisions,39.15,0.00,39.15
Neighbourhood Services,Direct Services,Catering - Service Direct,Supplies and Services,Provisions,28-Jun-2016,FREEMAN CATERING BUTCH,Catering costs - provisions,38.40,0.00,38.40
Neighbourhood Services,Direct Services,Catering - Service Direct,Supplies and Services,Provisions,28-Jun-2016,BRAKE BROS LTD,Catering costs - provisions,49.64,0.00,49.64
Children and Adult Services,Childrens Services,Durham and Chester Le Street Locality,Supplies and Services,Provisions,28-Jun-2016,TESCO STORES 2371,Catering costs - provisions,25.17,0.00,25.17
Children and Adult Services,Childrens Services,Bishop Auckland and Barnard Castle Locality,Supplies and Services,Furniture,28-Jun-2016,POUNDSTRETCHER 692,Furniture repair and replacement,96.85,0.00,96.85
Neighbourhood Services,Culture & Sport,Wellbeing4Life,Supplies and Services,Provisions,28-Jun-2016,ASDA SUPERSTORE 4987,Catering costs - provisions,57.45,0.00,57.45
Children and Adult Services,Childrens Services,New Lea Childrens Home,Supplies and Services,Provisions,28-Jun-2016,ASDA HOME SHOPPING,Catering costs - provisions,228.97,0.00,228.97
Neighbourhood Services,Culture & Sport,Woodhouse Close Leisure Complex,Supplies and Services,Provisions,28-Jun-2016,FREEMAN CATERING BUTCH,Catering costs - provisions,37.56,0.00,37.56
Children and Adult Services,Childrens Services,Support Services,Supplies and Services,Clothing Uniforms and Laundry,28-Jun-2016,NEW LOOK INTERNET,Clothing uniforms and laundry,33.98,0.00,33.98
Children and Adult Services,Childrens Services,Durham 5 - 19,Supplies and Services,Equipment and Materials,28-Jun-2016,AMAZON UK RETAIL AMAZO,Other consumables,251.64,0.00,251.64
Children and Adult Services,Education,Selby Cottage Childcare Centre,Supplies and Services,Provisions,29-Jun-2016,TESCO STORES 2278,Catering costs - provisions,4.38,0.00,4.38
Children and Adult Services,Childrens Services,Secure Management,Supplies and Services,Miscellaneous Expenses,29-Jun-2016,TESCO DELIVERY SAVER2,Other expenses,6.00,0.00,6.00
Resources,Financial Services,SF-Financial Services Team,Supplies and Services,Provisions,29-Jun-2016,ASDA 4387,Catering costs - provisions,149.00,24.83,124.17
Neighbourhood Services,Direct Services,Catering - County Hall Restaurant,Supplies and Services,Provisions,29-Jun-2016,JR HOLLAND FOODSERVICE,Catering costs - provisions,176.08,0.00,176.08
Neighbourhood Services,Direct Services,Catering - County Hall Restaurant,Supplies and Services,Provisions,29-Jun-2016,JR HOLLAND FOODSERVICE,Catering costs - provisions,31.35,0.00,31.35
Neighbourhood Services,Direct Services,Catering - County Hall Restaurant,Supplies and Services,Provisions,29-Jun-2016,BRAKE BROS LTD,Catering costs - provisions,169.62,28.27,141.35
Neighbourhood Services,Direct Services,Catering - County Hall Restaurant,Supplies and Services,Provisions,29-Jun-2016,BRAKE BROS LTD,Catering costs - provisions,244.96,,244.96
Neighbourhood Services,Direct Services,Catering - County Hall Restaurant,Supplies and Services,Provisions,29-Jun-2016,BRAKE BROS LTD,Catering costs - provisions,148.68,0.00,148.68
Resources,I.C.T. Services,Domains,Supplies and Services,Subscriptions,29-Jun-2016,WEB NETWORKSOLUTIONS,Subscriptions,52.67,0.00,52.67
Children and Adult Services,Childrens Services,Bishop Auckland 0 - 5,Supplies and Services,Provisions,29-Jun-2016,WM MORRISON 026,Catering costs - provisions,20.21,0.00,20.21
Regeneration & Economic Development,Economic Development and Housing,Employability - Youth Contract,Supplies and Services,Clothing Uniforms and Laundry,29-Jun-2016,JACAMO (INTERNET),Clothing uniforms and laundry,-13.50,0.00,-13.50
Regeneration & Economic Development,Economic Development and Housing,Employability - Youth Contract,Supplies and Services,Clothing Uniforms and Laundry,29-Jun-2016,JACAMO (INTERNET),Clothing uniforms and laundry,-13.50,0.00,-13.50
Regeneration & Economic Development,Economic Development and Housing,Employability - Youth Contract,Supplies and Services,Clothing Uniforms and Laundry,29-Jun-2016,JACAMO (INTERNET),Clothing uniforms and laundry,-22.50,0.00,-22.50
Children and Adult Services,Childrens Services,High Etherley Satelite Home,Supplies and Services,Provisions,29-Jun-2016,TESCO STORES 6329,Catering costs - provisions,202.60,0.00,202.60
Children and Adult Services,Childrens Services,Support Services,Supplies and Services,Newspapers Books and Periodicals,29-Jun-2016,Amazon UK Marketplace,Books-school library,42.26,0.00,42.26
Children and Adult Services,Childrens Services,Support Services,Supplies and Services,Provisions,29-Jun-2016,TESCO STORES 6329,Catering costs - provisions,108.26,0.00,108.26
Neighbourhood Services,Culture & Sport,Hardwick Park Catering,Supplies and Services,Provisions,29-Jun-2016,JR HOLLAND FOODSERVICE,Catering costs - provisions,18.64,0.00,18.64
Neighbourhood Services,Culture & Sport,Hardwick Park Catering,Supplies and Services,Provisions,29-Jun-2016,BRAKE BROS LTD,Catering costs - provisions,-3.24,0.00,-3.24
Neighbourhood Services,Culture & Sport,Hardwick Park Catering,Supplies and Services,Provisions,29-Jun-2016,BRAKE BROS LTD,Catering costs - provisions,-14.44,-2.41,-12.03
Resources,I.C.T. Services,Operations - System & Repairs Team,Supplies and Services,Equipment and Materials,29-Jun-2016,PAYPAL BITZANDPCS,Equipment-purchase and rental,8.29,0.00,8.29
Neighbourhood Services,Culture & Sport,Gala Theatre Stage School,Supplies and Services,Newspapers Books and Periodicals,29-Jun-2016,Amazon UK Marketplace,Books-school library,16.95,0.00,16.95
Neighbourhood Services,Culture & Sport,Gala Theatre Stage School,Supplies and Services,Newspapers Books and Periodicals,29-Jun-2016,Amazon UK Marketplace,Books-school library,19.24,0.00,19.24
Neighbourhood Services,Culture & Sport,Gala Theatre Stage School,Supplies and Services,Clothing Uniforms and Laundry,29-Jun-2016,PAYPAL BE JEALOUS,Clothing uniforms and laundry,21.96,0.00,21.96
Regeneration & Economic Development,Economic Development and Housing,Durham Employment & Skills - General,Employees,Recruitment Instruction and Training,29-Jun-2016,CITB,Training-all costs,30.00,5.00,25.00
Neighbourhood Services,Culture & Sport,Parks & Countryside,Supplies and Services,Miscellaneous Expenses,29-Jun-2016,WWW.RISUSWHOLESALE,Other expenses,16.79,2.80,13.99
Neighbourhood Services,Direct Services,Catering - Green Lane Canteen,Supplies and Services,Provisions,29-Jun-2016,JR HOLLAND FOODSERVICE,Catering costs - provisions,49.97,0.00,49.97
Neighbourhood Services,Direct Services,Catering - Green Lane Canteen,Supplies and Services,Provisions,29-Jun-2016,BRAKE BROS LTD,Catering costs - provisions,62.85,0.00,62.85
Neighbourhood Services,Direct Services,C&G - South Grounds Maintenance,Supplies and Services,Equipment and Materials,29-Jun-2016,AYCLIFFE DECORATIV,Equipment-purchase and rental,41.00,6.83,34.17
Neighbourhood Services,Projects and Business services,Business Support,Supplies and Services,Subscriptions,29-Jun-2016,WWW DEBTRECOVERYPLUS C,Subscriptions,154.50,0.00,154.50
Children and Adult Services,Childrens Services,Consett and Stanley Locality,Employees,Recruitment Instruction and Training,29-Jun-2016,PAYPAL ANDREWSCULL,Training-all costs,210.00,0.00,210.00
Regeneration & Economic Development,Spatial Policy Planning Assets & Environment,North Pennines Nectarworks,Supplies and Services,Miscellaneous Expenses,29-Jun-2016,Amazon UK Marketplace,Training-other activities,12.72,2.12,10.60
Regeneration & Economic Development,Economic Development and Housing,Business Services General,Transport,Public Transport,29-Jun-2016,INTERNATIONAL CENT,Staff travelling,3.60,0.00,3.60
Resources,I.C.T. Services,Administration,Employees,Recruitment Instruction and Training,29-Jun-2016,SAMSUNG UK,Training-all costs,328.99,0.00,328.99
Resources,I.C.T. Services,Administration,Supplies and Services,Newspapers Books and Periodicals,29-Jun-2016,Amazon UK Marketplace,Books-school library,450.15,0.00,450.15
Resources,I.C.T. Services,Administration,Supplies and Services,Newspapers Books and Periodicals,29-Jun-2016,Amazon UK Marketplace,Books-school library,405.61,0.00,405.61
Resources,I.C.T. Services,Administration,Supplies and Services,Computers and Communications,29-Jun-2016,WWW.MISCO.CO.UK,Computer software,68.27,0.00,68.27
Resources,I.C.T. Services,Administration,Supplies and Services,Conference Expenses,29-Jun-2016,JURYS MANCHESTER I,Conferencesseminars fees etc,264.00,0.00,264.00
Neighbourhood Services,Culture & Sport,Events,Supplies and Services,Equipment and Materials,29-Jun-2016,AVT IMPORTS,Direct materials,168.65,28.11,140.54
Regeneration & Economic Development,Transport and Contracted Services,Care Connect All Localities,Supplies and Services,Telephones,29-Jun-2016,BT BILL PAYMENT 2,Telephones general-all costs,-13.48,-2.25,-11.23
Neighbourhood Services,Direct Services,Catering - Service Direct,Supplies and Services,Provisions,29-Jun-2016,JR HOLLAND FOODSERVICE,Catering costs - provisions,59.93,0.00,59.93
Neighbourhood Services,Direct Services,Catering - Service Direct,Supplies and Services,Provisions,29-Jun-2016,JR HOLLAND FOODSERVICE,Catering costs - provisions,13.45,0.00,13.45
Neighbourhood Services,Direct Services,Catering - Service Direct,Supplies and Services,Provisions,29-Jun-2016,BRAKE BROS LTD,Catering costs - provisions,50.82,8.47,42.35
Neighbourhood Services,Direct Services,Catering - Service Direct,Supplies and Services,Provisions,29-Jun-2016,BRAKE BROS LTD,Catering costs - provisions,80.41,,80.41
Children and Adult Services,Childrens Services,New Lea Childrens Home,Supplies and Services,Miscellaneous Expenses,29-Jun-2016,GAME RETAIL LTD BASING,Other expenses,199.94,0.00,199.94
Neighbourhood Services,Culture & Sport,Woodhouse Close Leisure Complex,Supplies and Services,Provisions,29-Jun-2016,JR HOLLAND FOODSERVICE,Catering costs - provisions,29.21,0.00,29.21
Resources,Financial Services,Quality / Subsidy / Appeals / Training,Supplies and Services,Services,29-Jun-2016,DISCLOSURE SCOT,Disclosure & Barring (DBS) Fees,25.00,0.00,25.00
Resources,Financial Services,Quality / Subsidy / Appeals / Training,Supplies and Services,Services,29-Jun-2016,DISCLOSURE SCOT,Disclosure & Barring (DBS) Fees,25.00,0.00,25.00
Resources,Financial Services,Quality / Subsidy / Appeals / Training,Supplies and Services,Services,29-Jun-2016,DISCLOSURE SCOT,Disclosure & Barring (DBS) Fees,25.00,0.00,25.00
Children and Adult Services,Education,School Admissions and Transport,Supplies and Services,Postages,29-Jun-2016,POST OFFICE SHOP,Postages,3.00,0.50,2.50
Children and Adult Services,Education,School Admissions and Transport,Supplies and Services,Postages,29-Jun-2016,POST OFFICE SHOP,Postages,228.99,,228.99
Children and Adult Services,Childrens Services,Seaham Childrens Centre,Supplies and Services,Equipment and Materials,29-Jun-2016,AMAZON UK RETAIL AMAZO,Other consumables,59.97,0.00,59.97
Resources,I.C.T. Services,Domains,Supplies and Services,Subscriptions,30-Jun-2016,WEB NETWORKSOLUTIONS,Subscriptions,1.45,0.00,1.45
Children and Adult Services,Childrens Services,Bishop Auckland 0 - 5,Supplies and Services,Provisions,30-Jun-2016,TESCO STORES 6329,Catering costs - provisions,13.25,0.00,13.25
Children and Adult Services,Childrens Services,Support Services,Supplies and Services,Newspapers Books and Periodicals,30-Jun-2016,Amazon UK Marketplace,Books-school library,28.99,0.00,28.99
Children and Adult Services,Childrens Services,Coxhoe Satelite Home,Supplies and Services,Provisions,30-Jun-2016,ALDI,Catering costs - provisions,3.36,0.56,2.80
Children and Adult Services,Childrens Services,Coxhoe Satelite Home,Supplies and Services,Provisions,30-Jun-2016,ALDI,Catering costs - provisions,59.02,,59.02
Resources,I.C.T. Services,Operations - System & Repairs Team,Supplies and Services,Equipment and Materials,30-Jun-2016,THE REPLACE BASE LTD,Other consumables,11.58,0.00,11.58
Regeneration & Economic Development,Economic Development and Housing,Durham Works Flexible Fund,Supplies and Services,Clothing Uniforms and Laundry,30-Jun-2016,NEW LOOK MCOMM,Clothing uniforms and laundry,18.98,0.00,18.98
Neighbourhood Services,Culture & Sport,Events,Supplies and Services,Equipment and Materials,30-Jun-2016,CPC,Other consumables,156.17,26.03,130.14
